BIOGUIDE_ID,OFFICE,QUARTER,CATEGORY,DATE,PAYEE,START DATE,END DATE,PURPOSE,AMOUNT,YEAR,TRANSCODE,TRANSCODELONG,RECORDID,RECIP (orig.)
,OFFICE OF THE SPEAKER,2011Q1,PERSONNEL COMPENSATION,"","CASSIDY, ED",01/03/11,03/31/11,DIRECTOR OF HOUSE OPERATIONS,"41,066.67",FISCAL YEAR 2011,"","","","CASSIDY, ED"
,OFFICE OF THE SPEAKER,2011Q1,PERSONNEL COMPENSATION,"","DALY, BRENDAN",01/01/11,01/02/11,COMMUNICATIONS DIRECTOR,958.33,FISCAL YEAR 2011,"","","","DALY, BRENDAN"
,OFFICE OF THE SPEAKER,2011Q1,PERSONNEL COMPENSATION,"","DALY, BRENDAN",01/01/11,01/02/11,COMMUNICATIONS DIRECTOR (OTHER COMPENSATION),"13,416.67",FISCAL YEAR 2011,"","","","DALY, BRENDAN"
,OFFICE OF THE SPEAKER,2011Q1,PERSONNEL COMPENSATION,"","ELSHAMI,NADEEM",01/01/11,01/02/11,DEPUTY COMMUNICATIONS DIRECTOR,943.73,FISCAL YEAR 2011,"","","","ELSHAMI,NADEEM"
,OFFICE OF THE SPEAKER,2011Q1,PERSONNEL COMPENSATION,"","GREEN, JO-MARIE S",01/03/11,03/31/11,GEN COUNSEL & CHIEF OF LEG OPS,"42,044.44",FISCAL YEAR 2011,"","","","GREEN, JO-MARIE S"
,OFFICE OF THE SPEAKER,2011Q1,PERSONNEL COMPENSATION,"","HARTZ, JERRY",01/01/11,01/02/11,DIRECTOR OF FLOOR OPERATIONS,955.71,FISCAL YEAR 2011,"","","","HARTZ, JERRY"
,OFFICE OF THE SPEAKER,2011Q1,PERSONNEL COMPENSATION,"","JACKSON,BARRY S",01/03/11,03/31/11,CHIEF OF STAFF,"42,166.67",FISCAL YEAR 2011,"","","","JACKSON,BARRY S"
,OFFICE OF THE SPEAKER,2011Q1,PERSONNEL COMPENSATION,"","ONEK,JOSEPH",01/01/11,01/02/11,SENIOR COUNSEL TO THE SPEAKER,958.33,FISCAL YEAR 2011,"","","","ONEK,JOSEPH"
,OFFICE OF THE SPEAKER,2011Q1,PERSONNEL COMPENSATION,"","ONEK,JOSEPH",01/01/11,01/02/11,SENIOR COUNSEL TO THE SPEAKER (OTHER COMPENSATION),"13,416.67",FISCAL YEAR 2011,"","","","ONEK,JOSEPH"
,OFFICE OF THE SPEAKER,2011Q1,PERSONNEL COMPENSATION,"","PIERSON, JAY",01/03/11,03/31/11,FLOOR ASSISTANT,"41,164.44",FISCAL YEAR 2011,"","","","PIERSON, JAY"
,OFFICE OF THE SPEAKER,2011Q1,PERSONNEL COMPENSATION,"","PORTER, EMILY S",02/01/11,03/31/11,ASST TO THE SPEAKER FOR POLICY,"18,333.34",FISCAL YEAR 2011,"","","","PORTER, EMILY S"
,OFFICE OF THE SPEAKER,2011Q1,PERSONNEL COMPENSATION,"","RICCI,MICHAEL",02/01/11,03/31/11,DIRECTOR OF SPEECHWRITING,"21,000.00",FISCAL YEAR 2011,"","","","RICCI,MICHAEL"
,OFFICE OF THE SPEAKER,2011Q1,PERSONNEL COMPENSATION,"","SCHNITTGER, DAVID M",01/03/11,03/31/11,"DEP CHIEF OF STAFF,COMMUN OPS","42,166.67",FISCAL YEAR 2011,"","","","SCHNITTGER, DAVID M"
,OFFICE OF THE SPEAKER,2011Q1,PERSONNEL COMPENSATION,"","SOMMERS, MICHAEL J",01/03/11,03/31/11,DEP CHIEF OF STAF FOR LEAD OPS,"42,166.67",FISCAL YEAR 2011,"","","","SOMMERS, MICHAEL J"
,OFFICE OF THE SPEAKER,2011Q1,PERSONNEL COMPENSATION,"","STEWART, DAVID B",02/01/11,02/28/11,ASST TO SPEAKER FOR POLICY,"11,041.67",FISCAL YEAR 2011,"","","","STEWART, DAVID B"
,OFFICE OF THE SPEAKER,2011Q1,PERSONNEL COMPENSATION,"","STEWART, JENNIFER M",03/01/11,03/31/11,ASST TO SPEAKER FOR POLICY,"9,166.67",FISCAL YEAR 2011,"","","","STEWART, JENNIFER M"
,OFFICE OF THE SPEAKER,2011Q1,PERSONNEL COMPENSATION,"","ANDRES, ELIZABETH G",01/03/11,03/31/11,DIRECTOR OF ADVANCE,"18,308.90",FISCAL YEAR 2011,"","","","ANDRES, ELIZABETH G"
,OFFICE OF THE SPEAKER,2011Q1,PERSONNEL COMPENSATION,"","ANDREWS,THOMAS S",01/03/11,03/31/11,SENIOR STAFF ASSISTANT,"7,822.23",FISCAL YEAR 2011,"","","","ANDREWS,THOMAS S"
,OFFICE OF THE SPEAKER,2011Q1,PERSONNEL COMPENSATION,"","ANDREWS,THOMAS S",01/01/11,02/28/11,SENIOR STAFF ASSISTANT (OVERTIME),"1,921.13",FISCAL YEAR 2011,"","","","ANDREWS,THOMAS S"
,OFFICE OF THE SPEAKER,2011Q1,PERSONNEL COMPENSATION,"","AVONDOGLIO,BRYANT J",01/03/11,03/31/11,ADVANCE & DIGITAL PRODUC MGR,"19,555.56",FISCAL YEAR 2011,"","","","AVONDOGLIO,BRYANT J"
,OFFICE OF THE SPEAKER,2011Q1,PERSONNEL COMPENSATION,"","BARRY,MARY K",01/01/11,01/02/11,SCHEDULING ASSISTANT,284.50,FISCAL YEAR 2011,"","","","BARRY,MARY K"
,OFFICE OF THE SPEAKER,2011Q1,PERSONNEL COMPENSATION,"","BECKER,ALEXANDER M",03/07/11,03/31/11,STAFF ASSISTANT,"1,866.67",FISCAL YEAR 2011,"","","","BECKER,ALEXANDER M"
,OFFICE OF THE SPEAKER,2011Q1,PERSONNEL COMPENSATION,"","BENJAMIN, WILLIAM C",01/03/11,03/31/11,DIR OF INFORMATION TECHNOLOGY,"22,733.33",FISCAL YEAR 2011,"","","","BENJAMIN, WILLIAM C"
,OFFICE OF THE SPEAKER,2011Q1,PERSONNEL COMPENSATION,"","BERENS,KELLY E",01/01/11,01/02/11,DIRECTOR OF ADVANCE,398.30,FISCAL YEAR 2011,"","","","BERENS,KELLY E"
,OFFICE OF THE SPEAKER,2011Q1,PERSONNEL COMPENSATION,"","BLAKE,KRISTENE",01/03/11,01/31/11,DEP SCHEDULER/EXEC ASSISTANT,"4,666.67",FISCAL YEAR 2011,"","","","BLAKE,KRISTENE"
,OFFICE OF THE SPEAKER,2011Q1,PERSONNEL COMPENSATION,"","BLAKE,KRISTENE",02/01/11,03/31/11,EXECUTIVE ASSISTANT,"10,000.00",FISCAL YEAR 2011,"","","","BLAKE,KRISTENE"
,OFFICE OF THE SPEAKER,2011Q1,PERSONNEL COMPENSATION,"","BOYD,KATHRYN E",01/03/11,03/31/11,ASST COMMUNICATIONS DIRECTOR,"19,555.56",FISCAL YEAR 2011,"","","","BOYD,KATHRYN E"
,OFFICE OF THE SPEAKER,2011Q1,PERSONNEL COMPENSATION,"","BOYLE,ERIN M",01/03/11,01/31/11,STAFF ASSISTANT,"2,177.78",FISCAL YEAR 2011,"","","","BOYLE,ERIN M"
,OFFICE OF THE SPEAKER,2011Q1,PERSONNEL COMPENSATION,"","BOYLE,ERIN M",01/03/11,01/31/11,STAFF ASSISTANT (OVERTIME),242.30,FISCAL YEAR 2011,"","","","BOYLE,ERIN M"
,OFFICE OF THE SPEAKER,2011Q1,PERSONNEL COMPENSATION,"","BUCK, BRENDAN K",01/03/11,03/31/11,PRESS SECRETARY,"28,111.10",FISCAL YEAR 2011,"","","","BUCK, BRENDAN K"
,OFFICE OF THE SPEAKER,2011Q1,PERSONNEL COMPENSATION,"","CASHMAN,MARY D",01/01/11,01/02/11,ASSIST TO THE CHIEF OF STAFF,369.84,FISCAL YEAR 2011,"","","","CASHMAN,MARY D"
,OFFICE OF THE SPEAKER,2011Q1,PERSONNEL COMPENSATION,"","CHAPLIN, KRISTEN F",01/03/11,03/31/11,DIR OF SCHEDLNG & SPEC EVENTS,"23,833.33",FISCAL YEAR 2011,"","","","CHAPLIN, KRISTEN F"
,OFFICE OF THE SPEAKER,2011Q1,PERSONNEL COMPENSATION,"","CHERRY,STEPHANIE",01/01/11,01/02/11,PRESS ADVISOR,371.38,FISCAL YEAR 2011,"","","","CHERRY,STEPHANIE"
,OFFICE OF THE SPEAKER,2011Q1,PERSONNEL COMPENSATION,"","CHIU,CRYSTAL S",01/01/11,01/02/11,PRESS ASSISTANT,288.29,FISCAL YEAR 2011,"","","","CHIU,CRYSTAL S"
,OFFICE OF THE SPEAKER,2011Q1,PERSONNEL COMPENSATION,"","CHIU,CRYSTAL S",01/01/11,01/02/11,PRESS ASSISTANT (OTHER COMPENSATION),"4,036.04",FISCAL YEAR 2011,"","","","CHIU,CRYSTAL S"
,OFFICE OF THE SPEAKER,2011Q1,PERSONNEL COMPENSATION,"","DESTEFANO,JOHN",01/03/11,03/31/11,SR ADVISOR FOR MEMBER SERVICES,"40,333.33",FISCAL YEAR 2011,"","","","DESTEFANO,JOHN"
,OFFICE OF THE SPEAKER,2011Q1,PERSONNEL COMPENSATION,"","DEWHIRST, DIANE",01/01/11,01/02/11,SENIOR ADVISOR,633.33,FISCAL YEAR 2011,"","","","DEWHIRST, DIANE"
,OFFICE OF THE SPEAKER,2011Q1,PERSONNEL COMPENSATION,"","ECKARD,NASTASHA",02/01/11,03/31/11,LEGISLATIVE ASSISTANT,"8,666.66",FISCAL YEAR 2011,"","","","ECKARD,NASTASHA"
,OFFICE OF THE SPEAKER,2011Q1,PERSONNEL COMPENSATION,"","FALLON,BRIDGET C",01/01/11,01/02/11,DIRECTOR OF PROTOCOL,654.82,FISCAL YEAR 2011,"","","","FALLON,BRIDGET C"
,OFFICE OF THE SPEAKER,2011Q1,PERSONNEL COMPENSATION,"","FULWOOD,KATHERINE A",01/01/11,01/02/11,STAFF ASSISTANT - CORRES,159.32,FISCAL YEAR 2011,"","","","FULWOOD,KATHERINE A"
,OFFICE OF THE SPEAKER,2011Q1,PERSONNEL COMPENSATION,"","FULWOOD,KATHERINE A",12/01/10,12/31/10,STAFF ASSISTANT - CORRES. (OVERTIME),403.28,FISCAL YEAR 2011,"","","","FULWOOD,KATHERINE A"
,OFFICE OF THE SPEAKER,2011Q1,PERSONNEL COMPENSATION,"","GEORGE,EVANGELINE M",01/01/11,01/02/11,PRESS ASSISTANT,204.84,FISCAL YEAR 2011,"","","","GEORGE,EVANGELINE M"
,OFFICE OF THE SPEAKER,2011Q1,PERSONNEL COMPENSATION,"","GILLESPIE,MAURA M",01/03/11,03/31/11,STAFF ASSISTANT,"6,844.44",FISCAL YEAR 2011,"","","","GILLESPIE,MAURA M"
,OFFICE OF THE SPEAKER,2011Q1,PERSONNEL COMPENSATION,"","GILLESPIE,MAURA M",01/03/11,02/28/11,STAFF ASSISTANT (OVERTIME),625.96,FISCAL YEAR 2011,"","","","GILLESPIE,MAURA M"
,OFFICE OF THE SPEAKER,2011Q1,PERSONNEL COMPENSATION,"","GREENE,WILLIAM P",01/03/11,03/31/11,DIRECTOR-OUTREACH,"33,073.33",FISCAL YEAR 2011,"","","","GREENE,WILLIAM P"
,OFFICE OF THE SPEAKER,2011Q1,PERSONNEL COMPENSATION,"","HALEY, KATHERINE C",01/03/11,03/31/11,ASST TO SPEAKER FOR POLICY,"21,633.33",FISCAL YEAR 2011,"","","","HALEY, KATHERINE C"
,OFFICE OF THE SPEAKER,2011Q1,PERSONNEL COMPENSATION,"","HAMMILL, ANDREW T",01/01/11,01/02/11,PRESS SECRETARY,540.55,FISCAL YEAR 2011,"","","","HAMMILL, ANDREW T"
,OFFICE OF THE SPEAKER,2011Q1,PERSONNEL COMPENSATION,"","HARRILCHAK, MARISA L",01/01/11,01/02/11,FLOOR ASSISTANT,413.78,FISCAL YEAR 2011,"","","","HARRILCHAK, MARISA L"
,OFFICE OF THE SPEAKER,2011Q1,PERSONNEL COMPENSATION,"","HAYNES JR, WILFRED J",01/01/11,01/02/11,IT DIRECTOR,545.12,FISCAL YEAR 2011,"","","","HAYNES JR, WILFRED J"
,OFFICE OF THE SPEAKER,2011Q1,PERSONNEL COMPENSATION,"","HERRLE, CYNTHIA A",01/03/11,03/31/11,ASST TO THE SPEAKER FOR POLICY,"34,760.00",FISCAL YEAR 2011,"","","","HERRLE, CYNTHIA A"
,OFFICE OF THE SPEAKER,2011Q1,PERSONNEL COMPENSATION,"","KERR, STACY R",01/01/11,01/02/11,SPECIAL ASSISTANT,769.92,FISCAL YEAR 2011,"","","","KERR, STACY R"
,OFFICE OF THE SPEAKER,2011Q1,PERSONNEL COMPENSATION,"","KINZEL,WILL C",01/03/11,03/31/11,ASST TO THE SPEAKER FOR POLICY,"27,964.44",FISCAL YEAR 2011,"","","","KINZEL,WILL C"
,OFFICE OF THE SPEAKER,2011Q1,PERSONNEL COMPENSATION,"","KOLB,COURTNEY L",01/03/11,03/31/11,DEPUTY PRESS SECRETARY,"13,933.33",FISCAL YEAR 2011,"","","","KOLB,COURTNEY L"
,OFFICE OF THE SPEAKER,2011Q1,PERSONNEL COMPENSATION,"","LAMPERT,JUSTIN",01/03/11,03/31/11,RESEARCH ASSISTANT,"11,000.00",FISCAL YEAR 2011,"","","","LAMPERT,JUSTIN"
,OFFICE OF THE SPEAKER,2011Q1,PERSONNEL COMPENSATION,"","LANE, EDGAR C",01/01/11,01/02/11,PRESS ADVISOR,384.27,FISCAL YEAR 2011,"","","","LANE, EDGAR C"
,OFFICE OF THE SPEAKER,2011Q1,PERSONNEL COMPENSATION,"","LANE,GEOFFREY",01/01/11,01/02/11,STAFF ASSISTANT,177.36,FISCAL YEAR 2011,"","","","LANE,GEOFFREY"
,OFFICE OF THE SPEAKER,2011Q1,PERSONNEL COMPENSATION,"","LANE,GEOFFREY",12/01/10,12/31/10,STAFF ASSISTANT (OVERTIME),448.93,FISCAL YEAR 2011,"","","","LANE,GEOFFREY"
,OFFICE OF THE SPEAKER,2011Q1,PERSONNEL COMPENSATION,"","LASSIG,MEGAN",01/01/11,01/02/11,PRESS ASSISTANT,284.50,FISCAL YEAR 2011,"","","","LASSIG,MEGAN"
,OFFICE OF THE SPEAKER,2011Q1,PERSONNEL COMPENSATION,"","LOLLI,TIMOTHY R",01/03/11,03/31/11,STAFF ASSISTANT,"7,333.33",FISCAL YEAR 2011,"","","","LOLLI,TIMOTHY R"
,OFFICE OF THE SPEAKER,2011Q1,PERSONNEL COMPENSATION,"","LOLLI,TIMOTHY R",01/01/11,02/28/11,STAFF ASSISTANT (OVERTIME),584.13,FISCAL YEAR 2011,"","","","LOLLI,TIMOTHY R"
,OFFICE OF THE SPEAKER,2011Q1,PERSONNEL COMPENSATION,"","LONG,MICHAEL G",01/01/11,01/02/11,SPECIAL ASSISTANT,312.95,FISCAL YEAR 2011,"","","","LONG,MICHAEL G"
,OFFICE OF THE SPEAKER,2011Q1,PERSONNEL COMPENSATION,"","LOZUPONE, AMY S",01/03/11,03/31/11,DIRECTOR OF ADMIN OPERATIONS,"34,955.56",FISCAL YEAR 2011,"","","","LOZUPONE, AMY S"
,OFFICE OF THE SPEAKER,2011Q1,PERSONNEL COMPENSATION,"","LUKEMAN,KATHERINE A",01/30/11,03/31/11,ASSIST TO THE GENERAL COUNSEL,"2,202.77",FISCAL YEAR 2011,"","","","LUKEMAN,KATHERINE A"
,OFFICE OF THE SPEAKER,2011Q1,PERSONNEL COMPENSATION,"","MANATOS, ANASTASIOS",01/01/11,01/02/11,DEP.DIR-MEM.SRV/OUTREACH,532.07,FISCAL YEAR 2011,"","","","MANATOS, ANASTASIOS"
,OFFICE OF THE SPEAKER,2011Q1,PERSONNEL COMPENSATION,"","MANGRUM, PEARL J",01/01/11,01/02/11,FINANCIAL ADMINISTRATOR,263.89,FISCAL YEAR 2011,"","","","MANGRUM, PEARL J"
,OFFICE OF THE SPEAKER,2011Q1,PERSONNEL COMPENSATION,"","MCCULLOUGH, MARY T",01/01/11,01/02/11,ADVISOR TO THE SPEAKER,239.87,FISCAL YEAR 2011,"","","","MCCULLOUGH, MARY T"
,OFFICE OF THE SPEAKER,2011Q1,PERSONNEL COMPENSATION,"","MEDLIN,MELINDA L",01/01/11,01/02/11,DIRECTOR OF SCHEDULING,796.60,FISCAL YEAR 2011,"","","","MEDLIN,MELINDA L"
,OFFICE OF THE SPEAKER,2011Q1,PERSONNEL COMPENSATION,"","MERZ, JULIE E",01/01/11,01/02/11,SPECIAL ASSISTANT,56.90,FISCAL YEAR 2011,"","","","MERZ, JULIE E"
,OFFICE OF THE SPEAKER,2011Q1,PERSONNEL COMPENSATION,"","MINKLER,ANN W",01/03/11,03/31/11,STAFF ASSISTANT,"6,844.44",FISCAL YEAR 2011,"","","","MINKLER,ANN W"
,OFFICE OF THE SPEAKER,2011Q1,PERSONNEL COMPENSATION,"","MINKLER,ANN W",01/03/11,02/28/11,STAFF ASSISTANT (OVERTIME),530.04,FISCAL YEAR 2011,"","","","MINKLER,ANN W"
,OFFICE OF THE SPEAKER,2011Q1,PERSONNEL COMPENSATION,"","MOORE, REBECCA G",01/01/11,01/02/11,DEPUTY SCHEDULER,412.05,FISCAL YEAR 2011,"","","","MOORE, REBECCA G"
,OFFICE OF THE SPEAKER,2011Q1,PERSONNEL COMPENSATION,"","NEWTON, KARINA L",01/01/11,01/02/11,DIRECTOR OF NEW MEDIA,750.00,FISCAL YEAR 2011,"","","","NEWTON, KARINA L"
,OFFICE OF THE SPEAKER,2011Q1,PERSONNEL COMPENSATION,"","O'NEILL, CATLIN W",01/01/11,01/02/11,DEPUTY DIR LEG OPERATIONS,620.75,FISCAL YEAR 2011,"","","","O'NEILL, CATLIN W"
,OFFICE OF THE SPEAKER,2011Q1,PERSONNEL COMPENSATION,"","PAULSON, JUDY K",01/03/11,03/31/11,FINANCIAL ADMINISTRATOR,"7,944.44",FISCAL YEAR 2011,"","","","PAULSON, JUDY K"
,OFFICE OF THE SPEAKER,2011Q1,PERSONNEL COMPENSATION,"","PORTER, EMILY S",01/03/11,01/31/11,ASST TO THE SPEAKER FOR POLICY,"8,555.56",FISCAL YEAR 2011,"","","","PORTER, EMILY S"
,OFFICE OF THE SPEAKER,2011Q1,PERSONNEL COMPENSATION,"","POWELL,JONATHAN M",01/01/11,01/02/11,DEPUTY SPEECHWRITER,341.40,FISCAL YEAR 2011,"","","","POWELL,JONATHAN M"
,OFFICE OF THE SPEAKER,2011Q1,PERSONNEL COMPENSATION,"","QUINTO,RICARDO A",01/01/11,01/02/11,TELEPHONE STAFF ASSISTANT,170.70,FISCAL YEAR 2011,"","","","QUINTO,RICARDO A"
,OFFICE OF THE SPEAKER,2011Q1,PERSONNEL COMPENSATION,"","QUINTO,RICARDO A",12/01/10,12/31/10,TELEPHONE STAFF ASSISTANT (OVERTIME),830.92,FISCAL YEAR 2011,"","","","QUINTO,RICARDO A"
,OFFICE OF THE SPEAKER,2011Q1,PERSONNEL COMPENSATION,"","RAYMOND,SAMUEL H",01/01/11,01/02/11,STAFF ASSISTANT,170.70,FISCAL YEAR 2011,"","","","RAYMOND,SAMUEL H"
,OFFICE OF THE SPEAKER,2011Q1,PERSONNEL COMPENSATION,"","RAYMOND,SAMUEL H",12/01/10,12/31/10,STAFF ASSISTANT (OVERTIME),"1,395.95",FISCAL YEAR 2011,"","","","RAYMOND,SAMUEL H"
,OFFICE OF THE SPEAKER,2011Q1,PERSONNEL COMPENSATION,"","RICCI,MICHAEL",01/03/11,01/31/11,DIRECTOR OF SPEECHWRITING,"9,800.00",FISCAL YEAR 2011,"","","","RICCI,MICHAEL"
,OFFICE OF THE SPEAKER,2011Q1,PERSONNEL COMPENSATION,"","SAGER,MICHAEL J",01/18/11,03/31/11,SYSTEMS ADMINISTRATOR,"16,222.23",FISCAL YEAR 2011,"","","","SAGER,MICHAEL J"
,OFFICE OF THE SPEAKER,2011Q1,PERSONNEL COMPENSATION,"","SANCHEZ, CARLOS S",01/01/11,01/02/11,PRESS ADVISOR,356.47,FISCAL YEAR 2011,"","","","SANCHEZ, CARLOS S"
,OFFICE OF THE SPEAKER,2011Q1,PERSONNEL COMPENSATION,"","SAUNDERS,GRANT H",01/03/11,03/31/11,MEMBER SERVICES MANAGER,"10,511.10",FISCAL YEAR 2011,"","","","SAUNDERS,GRANT H"
,OFFICE OF THE SPEAKER,2011Q1,PERSONNEL COMPENSATION,"","SCHLENKER,JARROD",01/03/11,03/01/11,STAFF ASSISTANT,"4,588.89",FISCAL YEAR 2011,"","","","SCHLENKER,JARROD"
,OFFICE OF THE SPEAKER,2011Q1,PERSONNEL COMPENSATION,"","SCHLENKER,JARROD",01/03/11,02/28/11,STAFF ASSISTANT (OVERTIME),656.24,FISCAL YEAR 2011,"","","","SCHLENKER,JARROD"
,OFFICE OF THE SPEAKER,2011Q1,PERSONNEL COMPENSATION,"","SCHMIDT, AARON",01/01/11,01/02/11,LEGISLATIVE DIRECTOR,455.20,FISCAL YEAR 2011,"","","","SCHMIDT, AARON"
,OFFICE OF THE SPEAKER,2011Q1,PERSONNEL COMPENSATION,"","SEYMOUR JR, DONALD P",01/03/11,03/31/11,DEPUTY COMMUNICATIONS DIRECTOR,"30,800.00",FISCAL YEAR 2011,"","","","SEYMOUR JR, DONALD P"
,OFFICE OF THE SPEAKER,2011Q1,PERSONNEL COMPENSATION,"","SHYU,ELISA",01/01/11,01/02/11,ADVANCE ASSISTANT,283.83,FISCAL YEAR 2011,"","","","SHYU,ELISA"
,OFFICE OF THE SPEAKER,2011Q1,PERSONNEL COMPENSATION,"","SILVERMAN,DAVID",01/01/11,01/02/11,STAFF ASSISTANT,200.41,FISCAL YEAR 2011,"","","","SILVERMAN,DAVID"
,OFFICE OF THE SPEAKER,2011Q1,PERSONNEL COMPENSATION,"","SILVERMAN,DAVID",12/01/10,12/31/10,STAFF ASSISTANT (OVERTIME),78.04,FISCAL YEAR 2011,"","","","SILVERMAN,DAVID"
,OFFICE OF THE SPEAKER,2011Q1,PERSONNEL COMPENSATION,"","STALLMAN, ERIK R",01/01/11,01/02/11,COUNSEL AND POLICY ADVISOR,642.97,FISCAL YEAR 2011,"","","","STALLMAN, ERIK R"
,OFFICE OF THE SPEAKER,2011Q1,PERSONNEL COMPENSATION,"","STEWART, DAVID B",01/03/11,03/31/11,ASST TO SPEAKER FOR POLICY,"21,347.23",FISCAL YEAR 2011,"","","","STEWART, DAVID B"
,OFFICE OF THE SPEAKER,2011Q1,PERSONNEL COMPENSATION,"","STEWART, JENNIFER M",01/03/11,02/28/11,ASST TO SPEAKER FOR POLICY,"17,722.23",FISCAL YEAR 2011,"","","","STEWART, JENNIFER M"
,OFFICE OF THE SPEAKER,2011Q1,PERSONNEL COMPENSATION,"","STIVERS, JONATHAN",01/01/11,01/02/11,SENIOR ADVISOR,750.00,FISCAL YEAR 2011,"","","","STIVERS, JONATHAN"
,OFFICE OF THE SPEAKER,2011Q1,PERSONNEL COMPENSATION,"","STOCKWELL,KERRY W",01/03/11,03/31/11,SPECIAL EVENTS COORDINATOR,"13,444.44",FISCAL YEAR 2011,"","","","STOCKWELL,KERRY W"
,OFFICE OF THE SPEAKER,2011Q1,PERSONNEL COMPENSATION,"","STRUNK, JEFFREY A",01/03/11,03/31/11,DEPUTY FLOOR DIRECTOR,"12,344.44",FISCAL YEAR 2011,"","","","STRUNK, JEFFREY A"
,OFFICE OF THE SPEAKER,2011Q1,PERSONNEL COMPENSATION,"","SURGEON,BINA G",01/01/11,01/02/11,DEPUTY DIRECTOR OF PROTOCOL,312.95,FISCAL YEAR 2011,"","","","SURGEON,BINA G"
,OFFICE OF THE SPEAKER,2011Q1,PERSONNEL COMPENSATION,"","THOMAS, AMELIA J",01/01/11,01/02/11,OFFICE ADMINISTRATOR,152.78,FISCAL YEAR 2011,"","","","THOMAS, AMELIA J"
,OFFICE OF THE SPEAKER,2011Q1,PERSONNEL COMPENSATION,"","THORNELL,DOUGLASS",01/01/11,01/02/11,SHARED EMPLOYEE,298.73,FISCAL YEAR 2011,"","","","THORNELL,DOUGLASS"
,OFFICE OF THE SPEAKER,2011Q1,PERSONNEL COMPENSATION,"","THORSEN, ANNE B",01/03/11,03/31/11,FLOOR DIRECTOR,"29,308.34",FISCAL YEAR 2011,"","","","THORSEN, ANNE B"
,OFFICE OF THE SPEAKER,2011Q1,PERSONNEL COMPENSATION,"","VEITCH, ALEXANDRA N",01/01/11,01/02/11,DIRECTOR OF SPEECHWRITING,625.90,FISCAL YEAR 2011,"","","","VEITCH, ALEXANDRA N"
,OFFICE OF THE SPEAKER,2011Q1,PERSONNEL COMPENSATION,"","WIDMANN,MICHELLE C",01/01/11,01/02/11,STAFF ASSISTANT,170.70,FISCAL YEAR 2011,"","","","WIDMANN,MICHELLE C"
,OFFICE OF THE SPEAKER,2011Q1,PERSONNEL COMPENSATION,"","WOLF,ADAM J",01/03/11,03/31/11,FLOOR ASSISTANT,"11,415.56",FISCAL YEAR 2011,"","","","WOLF,ADAM J"
,OFFICE OF THE SPEAKER,2011Q1,PERSONNEL COMPENSATION,"","WOLTERS, KATE",01/01/11,01/02/11,PERSONAL ASSISTANT,552.78,FISCAL YEAR 2011,"","","","WOLTERS, KATE"
,OFFICE OF THE SPEAKER,2011Q1,PERSONNEL COMPENSATION,"","WOOTERS III,CHARLES R",01/01/11,01/02/11,DIRECTOR,739.70,FISCAL YEAR 2011,"","","","WOOTERS III,CHARLES R"
,OFFICE OF THE SPEAKER,2011Q1,TRAVEL,02-01,"STIVERS, JONATHAN",12/15/10,12/18/10,TAXI/PARKING/TOLLS,22.00,FISCAL YEAR 2011,AP,Accounts payable,00083490,"STIVERS, JONATHAN"
,OFFICE OF THE SPEAKER,2011Q1,TRAVEL,02-01,"SHYU,ELISA",12/14/10,12/22/10,TAXI/PARKING/TOLLS,118.00,FISCAL YEAR 2011,AP,Accounts payable,00083491,"SHYU,ELISA"
,OFFICE OF THE SPEAKER,2011Q1,TRAVEL,02-01,"WAYLAND,KAREN G",11/09/10,11/30/11,TAXI/PARKING/TOLLS,41.00,FISCAL YEAR 2011,AP,Accounts payable,00083492,"WAYLAND,KAREN G"
,OFFICE OF THE SPEAKER,2011Q1,TRAVEL,02-02,"CASSIDY, ED",01/16/11,01/17/11,COMMERCIAL TRANSPORTATION,444.80,FISCAL YEAR 2011,AP,Accounts payable,00083530,"CASSIDY, ED"
,OFFICE OF THE SPEAKER,2011Q1,TRAVEL,02-02,"CASSIDY, ED",01/16/11,01/16/11,MEALS,39.75,FISCAL YEAR 2011,AP,Accounts payable,00083531,"CASSIDY, ED"
,OFFICE OF THE SPEAKER,2011Q1,TRAVEL,02-02,"CASSIDY, ED",01/16/11,01/17/11,TAXI/PARKING/TOLLS,20.00,FISCAL YEAR 2011,AP,Accounts payable,00083532,"CASSIDY, ED"
,OFFICE OF THE SPEAKER,2011Q1,TRAVEL,02-11,CITIBANK GOV CARD SERVICE,12/30/10,12/30/10,LODGING,136.08,FISCAL YEAR 2011,AP,Accounts payable,00091727,CITIBANK GOV CARD SERVICE
,OFFICE OF THE SPEAKER,2011Q1,TRAVEL,03-24,"ECKARD,NASTASHA",03/11/11,03/12/11,LODGING,86.82,FISCAL YEAR 2011,AP,Accounts payable,00125519,"ECKARD,NASTASHA"
,OFFICE OF THE SPEAKER,2011Q1,TRAVEL,03-24,"ECKARD,NASTASHA",03/11/11,03/11/11,MEALS,10.01,FISCAL YEAR 2011,AP,Accounts payable,00125520,"ECKARD,NASTASHA"
,OFFICE OF THE SPEAKER,2011Q1,TRAVEL,03-24,"ECKARD,NASTASHA",03/11/11,03/12/11,CAR RENTAL,94.47,FISCAL YEAR 2011,AP,Accounts payable,00125521,"ECKARD,NASTASHA"
,OFFICE OF THE SPEAKER,2011Q1,TRAVEL,03-30,"SCHAPER, NICHOLAS",03/11/11,03/15/11,COMMERCIAL TRANSPORTATION,389.60,FISCAL YEAR 2011,AP,Accounts payable,00130356,"SCHAPER, NICHOLAS"
,OFFICE OF THE SPEAKER,2011Q1,TRAVEL,03-30,"SCHAPER, NICHOLAS",03/11/11,03/15/11,LODGING,"1,057.80",FISCAL YEAR 2011,AP,Accounts payable,00130357,"SCHAPER, NICHOLAS"
,OFFICE OF THE SPEAKER,2011Q1,TRAVEL,03-30,"SCHAPER, NICHOLAS",03/12/11,03/14/11,MEALS,88.98,FISCAL YEAR 2011,AP,Accounts payable,00130358,"SCHAPER, NICHOLAS"
,OFFICE OF THE SPEAKER,2011Q1,TRAVEL,03-30,"SCHAPER, NICHOLAS",03/11/11,03/15/11,CAR RENTAL,319.53,FISCAL YEAR 2011,AP,Accounts payable,00130359,"SCHAPER, NICHOLAS"
,OFFICE OF THE SPEAKER,2011Q1,"RENT, COMMUNICATION, UTILITIES",01-19,CITIBANK GOV CARD SERVICE,12/11/10,12/11/10,RECORDING (OUTSIDE),45.38,FISCAL YEAR 2011,AP,Accounts payable,00073511,CITIBANK GOV CARD SERVICE
,OFFICE OF THE SPEAKER,2011Q1,"RENT, COMMUNICATION, UTILITIES",02-08,FEDERAL EXPRESS CORP,12/06/10,12/06/10,POSTAGE / COURIER / BOX RENTAL,4.58,FISCAL YEAR 2011,AP,Accounts payable,00088173,FEDERAL EXPRESS CORP
,OFFICE OF THE SPEAKER,2011Q1,"RENT, COMMUNICATION, UTILITIES",02-08,FEDERAL EXPRESS CORP,12/15/10,12/17/10,POSTAGE / COURIER / BOX RENTAL,13.51,FISCAL YEAR 2011,AP,Accounts payable,00088177,FEDERAL EXPRESS CORP
,OFFICE OF THE SPEAKER,2011Q1,"RENT, COMMUNICATION, UTILITIES",02-09,FEDERAL EXPRESS CORP,01/07/11,01/07/11,POSTAGE / COURIER / BOX RENTAL,8.87,FISCAL YEAR 2011,AP,Accounts payable,00089635,FEDERAL EXPRESS CORP
,OFFICE OF THE SPEAKER,2011Q1,"RENT, COMMUNICATION, UTILITIES",02-09,FEDERAL EXPRESS CORP,01/10/11,01/10/11,POSTAGE / COURIER / BOX RENTAL,7.12,FISCAL YEAR 2011,AP,Accounts payable,00089635,FEDERAL EXPRESS CORP
,OFFICE OF THE SPEAKER,2011Q1,"RENT, COMMUNICATION, UTILITIES",02-09,FEDERAL EXPRESS CORP,01/11/11,01/11/11,POSTAGE / COURIER / BOX RENTAL,5.35,FISCAL YEAR 2011,AP,Accounts payable,00089635,FEDERAL EXPRESS CORP
,OFFICE OF THE SPEAKER,2011Q1,"RENT, COMMUNICATION, UTILITIES",02-09,FEDERAL EXPRESS CORP,01/12/11,01/12/11,POSTAGE / COURIER / BOX RENTAL,21.67,FISCAL YEAR 2011,AP,Accounts payable,00089635,FEDERAL EXPRESS CORP
,OFFICE OF THE SPEAKER,2011Q1,"RENT, COMMUNICATION, UTILITIES",02-09,FEDERAL EXPRESS CORP,01/13/11,01/13/11,POSTAGE / COURIER / BOX RENTAL,6.03,FISCAL YEAR 2011,AP,Accounts payable,00089635,FEDERAL EXPRESS CORP
,OFFICE OF THE SPEAKER,2011Q1,"RENT, COMMUNICATION, UTILITIES",02-09,FEDERAL EXPRESS CORP,01/19/11,01/19/11,POSTAGE / COURIER / BOX RENTAL,6.03,FISCAL YEAR 2011,AP,Accounts payable,00089635,FEDERAL EXPRESS CORP
,OFFICE OF THE SPEAKER,2011Q1,"RENT, COMMUNICATION, UTILITIES",02-09,FEDERAL EXPRESS CORP,01/21/11,01/21/11,POSTAGE / COURIER / BOX RENTAL,7.76,FISCAL YEAR 2011,AP,Accounts payable,00089635,FEDERAL EXPRESS CORP
,OFFICE OF THE SPEAKER,2011Q1,"RENT, COMMUNICATION, UTILITIES",02-09,FEDERAL EXPRESS CORP,01/28/11,01/28/11,POSTAGE / COURIER / BOX RENTAL,23.91,FISCAL YEAR 2011,AP,Accounts payable,00089791,FEDERAL EXPRESS CORP
,OFFICE OF THE SPEAKER,2011Q1,"RENT, COMMUNICATION, UTILITIES",02-09,FEDERAL EXPRESS CORP,01/31/11,01/31/11,POSTAGE / COURIER / BOX RENTAL,6.03,FISCAL YEAR 2011,AP,Accounts payable,00089791,FEDERAL EXPRESS CORP
,OFFICE OF THE SPEAKER,2011Q1,"RENT, COMMUNICATION, UTILITIES",02-09,FEDERAL EXPRESS CORP,02/01/11,02/01/11,POSTAGE / COURIER / BOX RENTAL,6.14,FISCAL YEAR 2011,AP,Accounts payable,00089791,FEDERAL EXPRESS CORP
,OFFICE OF THE SPEAKER,2011Q1,"RENT, COMMUNICATION, UTILITIES",02-11,FEDERAL EXPRESS CORP,12/15/10,12/17/10,POSTAGE / COURIER / BOX RENTAL,13.51,FISCAL YEAR 2011,AP,Accounts payable,00091725,FEDERAL EXPRESS CORP
,OFFICE OF THE SPEAKER,2011Q1,"RENT, COMMUNICATION, UTILITIES",02-15,FEDERAL EXPRESS CORP,02/02/11,02/02/11,POSTAGE / COURIER / BOX RENTAL,13.13,FISCAL YEAR 2011,AP,Accounts payable,00093225,FEDERAL EXPRESS CORP
,OFFICE OF THE SPEAKER,2011Q1,"RENT, COMMUNICATION, UTILITIES",02-15,FEDERAL EXPRESS CORP,02/04/11,02/04/11,POSTAGE / COURIER / BOX RENTAL,20.63,FISCAL YEAR 2011,AP,Accounts payable,00093225,FEDERAL EXPRESS CORP
,OFFICE OF THE SPEAKER,2011Q1,"RENT, COMMUNICATION, UTILITIES",02-15,FEDERAL EXPRESS CORP,02/05/11,02/05/11,POSTAGE / COURIER / BOX RENTAL,16.16,FISCAL YEAR 2011,AP,Accounts payable,00093225,FEDERAL EXPRESS CORP
,OFFICE OF THE SPEAKER,2011Q1,"RENT, COMMUNICATION, UTILITIES",03-01,FEDERAL EXPRESS CORP,02/14/11,02/14/11,POSTAGE / COURIER / BOX RENTAL,24.63,FISCAL YEAR 2011,AP,Accounts payable,00102931,FEDERAL EXPRESS CORP
,OFFICE OF THE SPEAKER,2011Q1,"RENT, COMMUNICATION, UTILITIES",03-03,PR NEWSWIRE,12/01/10,12/31/10,NEWS WIRE SERVICE,"1,000.00",FISCAL YEAR 2011,AP,Accounts payable,00105468,PR NEWSWIRE
,OFFICE OF THE SPEAKER,2011Q1,"RENT, COMMUNICATION, UTILITIES",03-11,FEDERAL EXPRESS CORP,02/17/11,02/17/11,POSTAGE / COURIER / BOX RENTAL,6.07,FISCAL YEAR 2011,AP,Accounts payable,00112492,FEDERAL EXPRESS CORP
,OFFICE OF THE SPEAKER,2011Q1,"RENT, COMMUNICATION, UTILITIES",03-11,FEDERAL EXPRESS CORP,02/18/11,02/18/11,POSTAGE / COURIER / BOX RENTAL,18.72,FISCAL YEAR 2011,AP,Accounts payable,00112492,FEDERAL EXPRESS CORP
,OFFICE OF THE SPEAKER,2011Q1,"RENT, COMMUNICATION, UTILITIES",03-11,FEDERAL EXPRESS CORP,02/23/11,02/23/11,POSTAGE / COURIER / BOX RENTAL,13.46,FISCAL YEAR 2011,AP,Accounts payable,00112492,FEDERAL EXPRESS CORP
,OFFICE OF THE SPEAKER,2011Q1,"RENT, COMMUNICATION, UTILITIES",03-11,FEDERAL EXPRESS CORP,02/25/11,02/25/11,POSTAGE / COURIER / BOX RENTAL,5.86,FISCAL YEAR 2011,AP,Accounts payable,00112492,FEDERAL EXPRESS CORP
,OFFICE OF THE SPEAKER,2011Q1,"RENT, COMMUNICATION, UTILITIES",03-11,FEDERAL EXPRESS CORP,02/26/11,02/26/11,POSTAGE / COURIER / BOX RENTAL,18.28,FISCAL YEAR 2011,AP,Accounts payable,00112492,FEDERAL EXPRESS CORP
,OFFICE OF THE SPEAKER,2011Q1,"RENT, COMMUNICATION, UTILITIES",03-11,FEDERAL EXPRESS CORP,02/28/11,02/28/11,POSTAGE / COURIER / BOX RENTAL,6.35,FISCAL YEAR 2011,AP,Accounts payable,00112492,FEDERAL EXPRESS CORP
,OFFICE OF THE SPEAKER,2011Q1,"RENT, COMMUNICATION, UTILITIES",03-11,FEDERAL EXPRESS CORP,03/02/11,03/02/11,POSTAGE / COURIER / BOX RENTAL,6.07,FISCAL YEAR 2011,AP,Accounts payable,00112492,FEDERAL EXPRESS CORP
,OFFICE OF THE SPEAKER,2011Q1,"RENT, COMMUNICATION, UTILITIES",03-16,CITIBANK GOV CARD SERVICE,01/28/11,01/31/11,UTILITIES,75.00,FISCAL YEAR 2011,AP,Accounts payable,00115378,CITIBANK GOV CARD SERVICE
,OFFICE OF THE SPEAKER,2011Q1,"RENT, COMMUNICATION, UTILITIES",03-28,FEDERAL EXPRESS CORP,03/09/11,03/09/11,POSTAGE / COURIER / BOX RENTAL,6.23,FISCAL YEAR 2011,AP,Accounts payable,00128112,FEDERAL EXPRESS CORP
,OFFICE OF THE SPEAKER,2011Q1,"RENT, COMMUNICATION, UTILITIES",03-28,FEDERAL EXPRESS CORP,03/21/11,03/21/11,POSTAGE / COURIER / BOX RENTAL,6.91,FISCAL YEAR 2011,AP,Accounts payable,00128112,FEDERAL EXPRESS CORP
,OFFICE OF THE SPEAKER,2011Q1,"RENT, COMMUNICATION, UTILITIES",03-28,FEDERAL EXPRESS CORP,03/22/11,03/22/11,POSTAGE / COURIER / BOX RENTAL,5.42,FISCAL YEAR 2011,AP,Accounts payable,00128112,FEDERAL EXPRESS CORP
,OFFICE OF THE SPEAKER,2011Q1,"RENT, COMMUNICATION, UTILITIES",03-31,"",02/01/11,02/28/11,RECORDING - (TRANSFER),"1,232.50",FISCAL YEAR 2011,GL,General ledger,HRS0007203,""
,OFFICE OF THE SPEAKER,2011Q1,PRINTING AND REPRODUCTION,01-28,"",01/01/11,01/31/11,PHOTOGRAPHIC (TRANSFER),"1,400.70",FISCAL YEAR 2011,GL,General ledger,PIX0004500,""
,OFFICE OF THE SPEAKER,2011Q1,PRINTING AND REPRODUCTION,02-17,"ACCURATE WORD, LLC",02/03/11,02/03/11,PRINTING & REPRODUCTION,498.95,FISCAL YEAR 2011,AP,Accounts payable,00094255,"ACCURATE WORD, LLC"
,OFFICE OF THE SPEAKER,2011Q1,PRINTING AND REPRODUCTION,02-28,"",02/01/11,02/28/11,PHOTOGRAPHIC (TRANSFER),699.80,FISCAL YEAR 2011,GL,General ledger,PIX0005896,""
,OFFICE OF THE SPEAKER,2011Q1,PRINTING AND REPRODUCTION,03-24,"ACCURATE WORD, LLC",02/03/11,02/03/11,PRINTING & REPRODUCTION,-498.95,FISCAL YEAR 2011,AP,Accounts payable,00126173,"ACCURATE WORD, LLC"
,OFFICE OF THE SPEAKER,2011Q1,PRINTING AND REPRODUCTION,03-31,"",03/01/11,03/31/11,PHOTOGRAPHIC (TRANSFER),411.20,FISCAL YEAR 2011,GL,General ledger,PIX0007205,""
,OFFICE OF THE SPEAKER,2011Q1,OTHER SERVICES,01-04,BERNARD RAIMO,12/01/10,12/31/10,CONSULTANT CONTRACT SERVICE,"7,628.00",FISCAL YEAR 2011,AP,Accounts payable,00063957,BERNARD RAIMO
,OFFICE OF THE SPEAKER,2011Q1,OTHER SERVICES,03-30,"SCHAPER, NICHOLAS",03/11/11,03/15/11,TRAINING,750.00,FISCAL YEAR 2011,AP,Accounts payable,00130360,"SCHAPER, NICHOLAS"
,OFFICE OF THE SPEAKER,2011Q1,OTHER SERVICES,03-31,CATHY KADES,01/25/11,01/25/11,NON-TECHNOLOGY SERVICE CONTR,175.00,FISCAL YEAR 2011,AP,Accounts payable,00131875,CATHY KADES
,OFFICE OF THE SPEAKER,2011Q1,SUPPLIES AND MATERIALS,01-19,CITIBANK GOV CARD SERVICE,12/01/10,12/16/10,FOOD & BEVERAGE,"3,069.28",FISCAL YEAR 2011,AP,Accounts payable,00073508,CITIBANK GOV CARD SERVICE
,OFFICE OF THE SPEAKER,2011Q1,SUPPLIES AND MATERIALS,01-21,COCA-COLA ENTERPRISES,01/04/11,01/04/11,FOOD & BEVERAGE,263.83,FISCAL YEAR 2011,AP,Accounts payable,00077197,COCA-COLA ENTERPRISES
,OFFICE OF THE SPEAKER,2011Q1,SUPPLIES AND MATERIALS,01-21,HAGUE QUALITY WATER,01/10/11,02/09/11,BOTTLED WATER,315.00,FISCAL YEAR 2011,AP,Accounts payable,00077198,HAGUE QUALITY WATER
,OFFICE OF THE SPEAKER,2011Q1,SUPPLIES AND MATERIALS,01-31,OCCASIONS CATERERS,11/09/10,11/09/10,FOOD & BEVERAGE,"7,005.00",FISCAL YEAR 2011,AP,Accounts payable,00083556,OCCASIONS CATERERS
,OFFICE OF THE SPEAKER,2011Q1,SUPPLIES AND MATERIALS,01-31,OCCASIONS CATERERS,11/10/10,11/10/10,FOOD & BEVERAGE,"9,170.00",FISCAL YEAR 2011,AP,Accounts payable,00083560,OCCASIONS CATERERS
,OFFICE OF THE SPEAKER,2011Q1,SUPPLIES AND MATERIALS,01-31,OCCASIONS CATERERS,11/17/10,11/17/10,FOOD & BEVERAGE,"2,963.00",FISCAL YEAR 2011,AP,Accounts payable,00083575,OCCASIONS CATERERS
,OFFICE OF THE SPEAKER,2011Q1,SUPPLIES AND MATERIALS,01-31,"",01/01/11,01/31/11,OFFICE SUPPLY (TRANSFER),22.66,FISCAL YEAR 2011,GL,General ledger,RMS0004671,""
,OFFICE OF THE SPEAKER,2011Q1,SUPPLIES AND MATERIALS,02-01,"FALLON,BRIDGET C",12/17/10,12/17/10,FOOD & BEVERAGE,87.34,FISCAL YEAR 2011,AP,Accounts payable,00083489,"FALLON,BRIDGET C"
,OFFICE OF THE SPEAKER,2011Q1,SUPPLIES AND MATERIALS,02-02,"CASSIDY, ED",01/10/11,01/10/11,FOOD & BEVERAGE,416.07,FISCAL YEAR 2011,AP,Accounts payable,00083533,"CASSIDY, ED"
,OFFICE OF THE SPEAKER,2011Q1,SUPPLIES AND MATERIALS,02-02,"BENJAMIN, WILLIAM C",01/17/11,01/17/11,PUBLICATIONS/REFERENCE MAT'L,137.15,FISCAL YEAR 2011,AP,Accounts payable,00083534,"BENJAMIN, WILLIAM C"
,OFFICE OF THE SPEAKER,2011Q1,SUPPLIES AND MATERIALS,02-02,COCA-COLA ENTERPRISES,01/25/11,01/25/11,FOOD & BEVERAGE,356.91,FISCAL YEAR 2011,AP,Accounts payable,00083535,COCA-COLA ENTERPRISES
,OFFICE OF THE SPEAKER,2011Q1,SUPPLIES AND MATERIALS,02-04,ARROWHEAD,12/31/10,12/31/10,BOTTLED WATER,8.00,FISCAL YEAR 2011,AP,Accounts payable,00086620,ARROWHEAD
,OFFICE OF THE SPEAKER,2011Q1,SUPPLIES AND MATERIALS,02-07,"BLAKE, KRISTENE",01/08/11,01/08/11,OFFICE SUPPLIES (OUTSIDE),281.40,FISCAL YEAR 2011,AP,Accounts payable,00087076,"BLAKE, KRISTENE"
,OFFICE OF THE SPEAKER,2011Q1,SUPPLIES AND MATERIALS,02-08,BURRELLE`S INFORMATION,12/01/10,12/31/10,PUBLICATIONS/REFERENCE MAT'L,"1,030.79",FISCAL YEAR 2011,AP,Accounts payable,00088160,BURRELLE`S INFORMATION
,OFFICE OF THE SPEAKER,2011Q1,SUPPLIES AND MATERIALS,02-08,CAPITOL HOST,12/15/10,12/15/10,FOOD & BEVERAGE,867.35,FISCAL YEAR 2011,AP,Accounts payable,00088161,CAPITOL HOST
,OFFICE OF THE SPEAKER,2011Q1,SUPPLIES AND MATERIALS,02-08,OCCASIONS CATERERS,11/08/10,11/08/10,FOOD & BEVERAGE,"4,000.00",FISCAL YEAR 2011,AP,Accounts payable,00088162,OCCASIONS CATERERS
,OFFICE OF THE SPEAKER,2011Q1,SUPPLIES AND MATERIALS,02-08,CAPITOL HOST,12/07/10,12/07/10,FOOD & BEVERAGE,874.50,FISCAL YEAR 2011,AP,Accounts payable,00088163,CAPITOL HOST
,OFFICE OF THE SPEAKER,2011Q1,SUPPLIES AND MATERIALS,02-08,OCCASIONS CATERERS,11/10/10,11/10/10,FOOD & BEVERAGE,"3,715.00",FISCAL YEAR 2011,AP,Accounts payable,00088174,OCCASIONS CATERERS
,OFFICE OF THE SPEAKER,2011Q1,SUPPLIES AND MATERIALS,02-08,OCCASIONS CATERERS,12/07/10,12/07/10,FOOD & BEVERAGE,"5,985.00",FISCAL YEAR 2011,AP,Accounts payable,00088175,OCCASIONS CATERERS
,OFFICE OF THE SPEAKER,2011Q1,SUPPLIES AND MATERIALS,02-08,OCCASIONS CATERERS,12/17/10,12/17/10,FOOD & BEVERAGE,"2,030.00",FISCAL YEAR 2011,AP,Accounts payable,00088176,OCCASIONS CATERERS
,OFFICE OF THE SPEAKER,2011Q1,SUPPLIES AND MATERIALS,02-11,JOE RAGAN'S COFFEE LTD,01/18/11,01/18/11,BOTTLED WATER,41.85,FISCAL YEAR 2011,AP,Accounts payable,00091331,JOE RAGAN'S COFFEE LTD
,OFFICE OF THE SPEAKER,2011Q1,SUPPLIES AND MATERIALS,02-11,JOE RAGAN'S COFFEE LTD,01/26/11,01/26/11,BOTTLED WATER,36.00,FISCAL YEAR 2011,AP,Accounts payable,00091332,JOE RAGAN'S COFFEE LTD
,OFFICE OF THE SPEAKER,2011Q1,SUPPLIES AND MATERIALS,02-11,JOE RAGAN'S COFFEE LTD,01/18/11,01/18/11,BOTTLED WATER,36.80,FISCAL YEAR 2011,AP,Accounts payable,00091333,JOE RAGAN'S COFFEE LTD
,OFFICE OF THE SPEAKER,2011Q1,SUPPLIES AND MATERIALS,02-11,HAGUE QUALITY WATER,02/04/11,03/03/11,BOTTLED WATER,315.00,FISCAL YEAR 2011,AP,Accounts payable,00091334,HAGUE QUALITY WATER
,OFFICE OF THE SPEAKER,2011Q1,SUPPLIES AND MATERIALS,02-11,JOE RAGAN'S COFFEE LTD,01/10/11,01/10/11,FOOD & BEVERAGE,745.96,FISCAL YEAR 2011,AP,Accounts payable,00091340,JOE RAGAN'S COFFEE LTD
,OFFICE OF THE SPEAKER,2011Q1,SUPPLIES AND MATERIALS,02-11,JOE RAGAN'S COFFEE LTD,01/25/11,01/25/11,FOOD & BEVERAGE,397.61,FISCAL YEAR 2011,AP,Accounts payable,00091342,JOE RAGAN'S COFFEE LTD
,OFFICE OF THE SPEAKER,2011Q1,SUPPLIES AND MATERIALS,02-22,CITIBANK GOV CARD SERVICE,01/04/11,01/24/11,FOOD & BEVERAGE,"2,150.50",FISCAL YEAR 2011,AP,Accounts payable,00100223,CITIBANK GOV CARD SERVICE
,OFFICE OF THE SPEAKER,2011Q1,SUPPLIES AND MATERIALS,03-02,CITIBANK GOV CARD SERVICE,01/25/11,01/27/11,FOOD & BEVERAGE,"3,837.50",FISCAL YEAR 2011,AP,Accounts payable,00104058,CITIBANK GOV CARD SERVICE
,OFFICE OF THE SPEAKER,2011Q1,SUPPLIES AND MATERIALS,03-03,"LOZUPONE, AMY S",02/14/11,02/14/11,FOOD & BEVERAGE,14.85,FISCAL YEAR 2011,AP,Accounts payable,00105458,"LOZUPONE, AMY S"
,OFFICE OF THE SPEAKER,2011Q1,SUPPLIES AND MATERIALS,03-03,DESIGN CUISINE,01/25/11,01/25/11,FOOD & BEVERAGE,320.10,FISCAL YEAR 2011,AP,Accounts payable,00105459,DESIGN CUISINE
,OFFICE OF THE SPEAKER,2011Q1,SUPPLIES AND MATERIALS,03-04,LEXIS-NEXIS,12/01/10,12/31/10,PUBLICATIONS/REFERENCE MAT'L,"1,543.00",FISCAL YEAR 2011,AP,Accounts payable,00107269,LEXIS-NEXIS
,OFFICE OF THE SPEAKER,2011Q1,SUPPLIES AND MATERIALS,03-08,JOE RAGAN'S COFFEE LTD,01/31/11,01/31/11,FOOD & BEVERAGE,4.75,FISCAL YEAR 2011,AP,Accounts payable,00108453,JOE RAGAN'S COFFEE LTD
,OFFICE OF THE SPEAKER,2011Q1,SUPPLIES AND MATERIALS,03-08,JOE RAGAN'S COFFEE LTD,01/31/11,01/31/11,FOOD & BEVERAGE,523.11,FISCAL YEAR 2011,AP,Accounts payable,00108454,JOE RAGAN'S COFFEE LTD
,OFFICE OF THE SPEAKER,2011Q1,SUPPLIES AND MATERIALS,03-08,JOE RAGAN'S COFFEE LTD,02/02/11,02/02/11,FOOD & BEVERAGE,158.40,FISCAL YEAR 2011,AP,Accounts payable,00108455,JOE RAGAN'S COFFEE LTD
,OFFICE OF THE SPEAKER,2011Q1,SUPPLIES AND MATERIALS,03-08,JOE RAGAN'S COFFEE LTD,02/08/11,02/08/11,FOOD & BEVERAGE,556.86,FISCAL YEAR 2011,AP,Accounts payable,00108456,JOE RAGAN'S COFFEE LTD
,OFFICE OF THE SPEAKER,2011Q1,SUPPLIES AND MATERIALS,03-08,JOE RAGAN'S COFFEE LTD,02/14/11,02/14/11,FOOD & BEVERAGE,603.94,FISCAL YEAR 2011,AP,Accounts payable,00108457,JOE RAGAN'S COFFEE LTD
,OFFICE OF THE SPEAKER,2011Q1,SUPPLIES AND MATERIALS,03-08,JOE RAGAN'S COFFEE LTD,02/15/11,02/15/11,FOOD & BEVERAGE,59.75,FISCAL YEAR 2011,AP,Accounts payable,00108458,JOE RAGAN'S COFFEE LTD
,OFFICE OF THE SPEAKER,2011Q1,SUPPLIES AND MATERIALS,03-08,JOE RAGAN'S COFFEE LTD,02/16/11,02/16/11,FOOD & BEVERAGE,83.65,FISCAL YEAR 2011,AP,Accounts payable,00108459,JOE RAGAN'S COFFEE LTD
,OFFICE OF THE SPEAKER,2011Q1,SUPPLIES AND MATERIALS,03-08,JOE RAGAN'S COFFEE LTD,02/22/11,02/22/11,FOOD & BEVERAGE,164.65,FISCAL YEAR 2011,AP,Accounts payable,00108460,JOE RAGAN'S COFFEE LTD
,OFFICE OF THE SPEAKER,2011Q1,SUPPLIES AND MATERIALS,03-08,"CHAPLIN, KRISTEN F",01/24/11,01/24/11,FOOD & BEVERAGE,18.15,FISCAL YEAR 2011,AP,Accounts payable,00108461,"CHAPLIN, KRISTEN F"
,OFFICE OF THE SPEAKER,2011Q1,SUPPLIES AND MATERIALS,03-08,JOE RAGAN'S COFFEE LTD,02/09/11,02/09/11,BOTTLED WATER,58.50,FISCAL YEAR 2011,AP,Accounts payable,00108462,JOE RAGAN'S COFFEE LTD
,OFFICE OF THE SPEAKER,2011Q1,SUPPLIES AND MATERIALS,03-08,JOE RAGAN'S COFFEE LTD,02/10/11,02/10/11,BOTTLED WATER,96.25,FISCAL YEAR 2011,AP,Accounts payable,00108463,JOE RAGAN'S COFFEE LTD
,OFFICE OF THE SPEAKER,2011Q1,SUPPLIES AND MATERIALS,03-08,ARROWHEAD,01/31/11,01/31/11,BOTTLED WATER,8.00,FISCAL YEAR 2011,AP,Accounts payable,00109581,ARROWHEAD
,OFFICE OF THE SPEAKER,2011Q1,SUPPLIES AND MATERIALS,03-09,COCA-COLA ENTERPRISES,03/01/11,03/01/11,FOOD & BEVERAGE,223.76,FISCAL YEAR 2011,AP,Accounts payable,00110936,COCA-COLA ENTERPRISES
,OFFICE OF THE SPEAKER,2011Q1,SUPPLIES AND MATERIALS,03-09,HAGUE QUALITY WATER,03/04/11,04/03/11,FOOD & BEVERAGE,252.00,FISCAL YEAR 2011,AP,Accounts payable,00110938,HAGUE QUALITY WATER
,OFFICE OF THE SPEAKER,2011Q1,SUPPLIES AND MATERIALS,03-16,CITIBANK GOV CARD SERVICE,01/27/11,02/23/11,FOOD & BEVERAGE,"4,477.87",FISCAL YEAR 2011,AP,Accounts payable,00115101,CITIBANK GOV CARD SERVICE
,OFFICE OF THE SPEAKER,2011Q1,SUPPLIES AND MATERIALS,03-21,COCA-COLA ENTERPRISES,03/11/11,03/11/11,FOOD & BEVERAGE,181.05,FISCAL YEAR 2011,AP,Accounts payable,00122535,COCA-COLA ENTERPRISES
,OFFICE OF THE SPEAKER,2011Q1,SUPPLIES AND MATERIALS,03-21,"LEADERSHIP DIRECTORIES, INC",01/03/11,01/31/12,PUBLICATIONS/REFERENCE MAT'L,400.00,FISCAL YEAR 2011,AP,Accounts payable,00122536,"LEADERSHIP DIRECTORIES, INC"
,OFFICE OF THE SPEAKER,2011Q1,SUPPLIES AND MATERIALS,03-24,"LEADERSHIP DIRECTORIES, INC",06/01/11,03/01/12,PUBLICATIONS/REFERENCE MAT'L,499.00,FISCAL YEAR 2011,AP,Accounts payable,00125518,"LEADERSHIP DIRECTORIES, INC"
,OFFICE OF THE SPEAKER,2011Q1,SUPPLIES AND MATERIALS,03-24,ARROWHEAD,02/28/11,02/28/11,BOTTLED WATER,8.00,FISCAL YEAR 2011,AP,Accounts payable,00126294,ARROWHEAD
,OFFICE OF THE SPEAKER,2011Q1,SUPPLIES AND MATERIALS,03-29,"LEADERSHIP DIRECTORIES, INC",06/01/11,03/01/12,PUBLICATIONS/REFERENCE MAT'L,499.00,FISCAL YEAR 2011,AP,Accounts payable,00128944,"LEADERSHIP DIRECTORIES, INC"
,OFFICE OF THE SPEAKER,2011Q1,SUPPLIES AND MATERIALS,03-29,FEDERAL YELLOW BOOK,06/01/11,03/01/12,PUBLICATIONS/REFERENCE MAT'L,499.00,FISCAL YEAR 2011,AP,Accounts payable,00129946,FEDERAL YELLOW BOOK
,OFFICE OF THE SPEAKER,2011Q1,SUPPLIES AND MATERIALS,03-30,ARROWHEAD,01/31/11,01/31/11,BOTTLED WATER,-8.00,FISCAL YEAR 2011,AP,Accounts payable,00131207,ARROWHEAD
,OFFICE OF THE SPEAKER,2011Q1,SUPPLIES AND MATERIALS,03-30,ARROWHEAD,02/28/11,02/28/11,BOTTLED WATER,-8.00,FISCAL YEAR 2011,AP,Accounts payable,00131212,ARROWHEAD
,OFFICE OF THE SPEAKER,2011Q1,SUPPLIES AND MATERIALS,03-30,HAGUE QUALITY WATER,03/04/11,04/03/11,BOTTLED WATER,252.00,FISCAL YEAR 2011,AP,Accounts payable,00131220,HAGUE QUALITY WATER
,OFFICE OF THE SPEAKER,2011Q1,SUPPLIES AND MATERIALS,03-30,HAGUE QUALITY WATER,03/04/11,04/03/11,FOOD & BEVERAGE,-252.00,FISCAL YEAR 2011,AP,Accounts payable,00131220,HAGUE QUALITY WATER
,OFFICE OF THE SPEAKER,2011Q1,PERSONNEL BENEFITS,01-31,HON. JOHN A. BOEHNER,01/03/11,01/31/11,OFFICIAL EXPENSES FOR LEADERS,618.77,FISCAL YEAR 2011,AP,Accounts payable,00082906,HON. JOHN A. BOEHNER
,OFFICE OF THE SPEAKER,2011Q1,PERSONNEL BENEFITS,02-11,HON. JOHN A. BOEHNER,01/03/11,01/31/11,OFFICIAL EXPENSES FOR LEADERS,"1,464.56",FISCAL YEAR 2011,AP,Accounts payable,00091557,HON. JOHN A. BOEHNER
,OFFICE OF THE SPEAKER,2011Q1,PERSONNEL BENEFITS,02-20,HON. JOHN A. BOEHNER,02/01/11,02/28/11,OFFICIAL EXPENSES FOR LEADERS,"2,083.33",FISCAL YEAR 2011,AP,Accounts payable,00098972,HON. JOHN A. BOEHNER
,OFFICE OF THE SPEAKER,2011Q1,PERSONNEL BENEFITS,03-16,HON. JOHN A. BOEHNER,03/01/11,03/31/11,OFFICIAL EXPENSES FOR LEADERS,"2,083.33",FISCAL YEAR 2011,AP,Accounts payable,00117143,HON. JOHN A. BOEHNER
,OFFICE OF THE SPEAKER,2011Q1,SUPPLIES AND MATERIALS,01-31,OCCASIONS CATERERS,11/09/10,11/09/10,FOOD & BEVERAGE,"-7,005.00",FISCAL YEAR 2011,AP,Accounts payable,00083556,OCCASIONS CATERERS
,OFFICE OF THE SPEAKER,2011Q1,SUPPLIES AND MATERIALS,01-31,OCCASIONS CATERERS,11/10/10,11/10/10,FOOD & BEVERAGE,"-9,170.00",FISCAL YEAR 2011,AP,Accounts payable,00083560,OCCASIONS CATERERS
,OFFICE OF THE SPEAKER,2011Q1,SUPPLIES AND MATERIALS,01-31,OCCASIONS CATERERS,11/17/10,11/17/10,FOOD & BEVERAGE,"-2,963.00",FISCAL YEAR 2011,AP,Accounts payable,00083575,OCCASIONS CATERERS
,OFFICE OF THE MAJORITY LEADER,2011Q1,PERSONNEL COMPENSATION,"","BERNARDS, STACEY F",01/01/11,01/02/11,DEPUTY CHIEF OF STAFF,861.11,FISCAL YEAR 2011,"","","","BERNARDS, STACEY F"
,OFFICE OF THE MAJORITY LEADER,2011Q1,PERSONNEL COMPENSATION,"","BRADLEY, NEIL L",01/03/11,03/31/11,DEPUTY CHEIF OF STAFF,"42,166.67",FISCAL YEAR 2011,"","","","BRADLEY, NEIL L"
,OFFICE OF THE MAJORITY LEADER,2011Q1,PERSONNEL COMPENSATION,"","DAYSPRING, BRADFORD",01/03/11,03/31/11,COMMUNICATIONS DIRECTOR,"41,167.13",FISCAL YEAR 2011,"","","","DAYSPRING, BRADFORD"
,OFFICE OF THE MAJORITY LEADER,2011Q1,PERSONNEL COMPENSATION,"","DOLBOW, WILLIAM R",01/03/11,03/31/11,SENIOR ADVISOR,"42,166.67",FISCAL YEAR 2011,"","","","DOLBOW, WILLIAM R"
,OFFICE OF THE MAJORITY LEADER,2011Q1,PERSONNEL COMPENSATION,"","LIERMAN,TERRY L",01/01/11,01/02/11,CHIEF OF STAFF,958.33,FISCAL YEAR 2011,"","","","LIERMAN,TERRY L"
,OFFICE OF THE MAJORITY LEADER,2011Q1,PERSONNEL COMPENSATION,"","MURRAY,JOHN A",01/03/11,03/31/11,DEPUTY CHIEF OF STAFF,"42,166.67",FISCAL YEAR 2011,"","","","MURRAY,JOHN A"
,OFFICE OF THE MAJORITY LEADER,2011Q1,PERSONNEL COMPENSATION,"","NEVINS, KYLE W",01/03/11,03/31/11,DEPUTY CHIEF OF STAFF,"41,167.13",FISCAL YEAR 2011,"","","","NEVINS, KYLE W"
,OFFICE OF THE MAJORITY LEADER,2011Q1,PERSONNEL COMPENSATION,"","STOMBRES, STEVEN C",01/03/11,03/31/11,CHIEF OF STAFF,"42,166.67",FISCAL YEAR 2011,"","","","STOMBRES, STEVEN C"
,OFFICE OF THE MAJORITY LEADER,2011Q1,PERSONNEL COMPENSATION,"","ABOUCHAR, KEITH S",01/01/11,01/02/11,SENIOR POLICY ADVISOR,711.11,FISCAL YEAR 2011,"","","","ABOUCHAR, KEITH S"
,OFFICE OF THE MAJORITY LEADER,2011Q1,PERSONNEL COMPENSATION,"","ANDRES,DOUGLAS R",01/03/11,01/31/11,RESEARCH ASSISTANT,"3,072.22",FISCAL YEAR 2011,"","","","ANDRES,DOUGLAS R"
,OFFICE OF THE MAJORITY LEADER,2011Q1,PERSONNEL COMPENSATION,"","AVILES,DANIELLE R",01/01/11,01/02/11,STAFF ASSISTANT,138.89,FISCAL YEAR 2011,"","","","AVILES,DANIELLE R"
,OFFICE OF THE MAJORITY LEADER,2011Q1,PERSONNEL COMPENSATION,"","AVILES,DANIELLE R",12/01/10,12/31/10,STAFF ASSISTANT (OVERTIME),829.32,FISCAL YEAR 2011,"","","","AVILES,DANIELLE R"
,OFFICE OF THE MAJORITY LEADER,2011Q1,PERSONNEL COMPENSATION,"","BARRERA,AMY D",01/03/11,03/31/11,DIRECTOR OF ADMINISTRATION,"3,666.67",FISCAL YEAR 2011,"","","","BARRERA,AMY D"
,OFFICE OF THE MAJORITY LEADER,2011Q1,PERSONNEL COMPENSATION,"","BEACH,MAUREEN M",01/01/11,01/02/11,MD PRESS SEC/DEP PRESS SEC,244.44,FISCAL YEAR 2011,"","","","BEACH,MAUREEN M"
,OFFICE OF THE MAJORITY LEADER,2011Q1,PERSONNEL COMPENSATION,"","BOHANAN JR, JOHN L",01/01/11,01/02/11,CONSTITUENT LIAISON,33.33,FISCAL YEAR 2011,"","","","BOHANAN JR, JOHN L"
,OFFICE OF THE MAJORITY LEADER,2011Q1,PERSONNEL COMPENSATION,"","BRAVO, MATTHEW",01/03/11,03/31/11,FLOOR ASSISTANT/SPECIAL ASSIST,"11,000.00",FISCAL YEAR 2011,"","","","BRAVO, MATTHEW"
,OFFICE OF THE MAJORITY LEADER,2011Q1,PERSONNEL COMPENSATION,"","BURNES, AUSTIN W",01/01/11,01/02/11,DEPUTY FLOOR DIRECTOR,400.00,FISCAL YEAR 2011,"","","","BURNES, AUSTIN W"
,OFFICE OF THE MAJORITY LEADER,2011Q1,PERSONNEL COMPENSATION,"","COVEY-BRANDT, ALEXIS",01/01/11,01/02/11,FLOOR DIRECTOR,777.78,FISCAL YEAR 2011,"","","","COVEY-BRANDT, ALEXIS"
,OFFICE OF THE MAJORITY LEADER,2011Q1,PERSONNEL COMPENSATION,"","DAVID, MARTA M",01/01/11,01/02/11,DIRECTOR OF EXTERNAL RELATIONS,916.67,FISCAL YEAR 2011,"","","","DAVID, MARTA M"
,OFFICE OF THE MAJORITY LEADER,2011Q1,PERSONNEL COMPENSATION,"","EISENBERG,MICHAEL",01/01/11,01/02/11,FLOOR ASSISTANT,291.67,FISCAL YEAR 2011,"","","","EISENBERG,MICHAEL"
,OFFICE OF THE MAJORITY LEADER,2011Q1,PERSONNEL COMPENSATION,"","FALLON,LAENA E",01/03/11,03/31/11,PRESS SECRETARY,"26,888.90",FISCAL YEAR 2011,"","","","FALLON,LAENA E"
,OFFICE OF THE MAJORITY LEADER,2011Q1,PERSONNEL COMPENSATION,"","FERENCE, MICHAEL J",01/03/11,03/31/11,DIRECTOR OF OUTREACH,"38,866.67",FISCAL YEAR 2011,"","","","FERENCE, MICHAEL J"
,OFFICE OF THE MAJORITY LEADER,2011Q1,PERSONNEL COMPENSATION,"","FREDERICKS, AUTUMN",01/03/11,03/31/11,SHARED EMPLOYEE,"2,933.33",FISCAL YEAR 2011,"","","","FREDERICKS, AUTUMN"
,OFFICE OF THE MAJORITY LEADER,2011Q1,PERSONNEL COMPENSATION,"","FRY,COURTNEY",01/01/11,01/02/11,EXECUTIVE ASSISTANT/OFFICE MAN,277.78,FISCAL YEAR 2011,"","","","FRY,COURTNEY"
,OFFICE OF THE MAJORITY LEADER,2011Q1,PERSONNEL COMPENSATION,"","GHOSH,APRATIM",01/01/11,01/02/11,STAFF ASSISTANT,138.89,FISCAL YEAR 2011,"","","","GHOSH,APRATIM"
,OFFICE OF THE MAJORITY LEADER,2011Q1,PERSONNEL COMPENSATION,"","GHOSH,APRATIM",12/01/10,12/31/10,STAFF ASSISTANT (OVERTIME),504.80,FISCAL YEAR 2011,"","","","GHOSH,APRATIM"
,OFFICE OF THE MAJORITY LEADER,2011Q1,PERSONNEL COMPENSATION,"","GOFF,SHUWANZA R",01/01/11,01/02/11,FLOOR AIDE,222.22,FISCAL YEAR 2011,"","","","GOFF,SHUWANZA R"
,OFFICE OF THE MAJORITY LEADER,2011Q1,PERSONNEL COMPENSATION,"","GOODMAN,ROBERT",01/01/11,01/02/11,SPEECHWRITER,333.33,FISCAL YEAR 2011,"","","","GOODMAN,ROBERT"
,OFFICE OF THE MAJORITY LEADER,2011Q1,PERSONNEL COMPENSATION,"","GRANT,KATHRYN L",01/01/11,01/02/11,COMMUNICATIONS DIRECTOR,388.89,FISCAL YEAR 2011,"","","","GRANT,KATHRYN L"
,OFFICE OF THE MAJORITY LEADER,2011Q1,PERSONNEL COMPENSATION,"","GUSTAFSON,NICOLE M",01/03/11,03/31/11,POLICY ADVISOR/COUNSEL,"8,066.67",FISCAL YEAR 2011,"","","","GUSTAFSON,NICOLE M"
,OFFICE OF THE MAJORITY LEADER,2011Q1,PERSONNEL COMPENSATION,"","HELM,KATHERINE D",01/03/11,01/14/11,STAFF ASSISTANT,833.33,FISCAL YEAR 2011,"","","","HELM,KATHERINE D"
,OFFICE OF THE MAJORITY LEADER,2011Q1,PERSONNEL COMPENSATION,"","HUGHES,JOHN C",01/01/11,01/02/11,SENIOR POLICY ADVISOR,688.89,FISCAL YEAR 2011,"","","","HUGHES,JOHN C"
,OFFICE OF THE MAJORITY LEADER,2011Q1,PERSONNEL COMPENSATION,"","JACOBY,DREW",01/01/11,01/02/11,SPECIAL ASSISTANT,222.22,FISCAL YEAR 2011,"","","","JACOBY,DREW"
,OFFICE OF THE MAJORITY LEADER,2011Q1,PERSONNEL COMPENSATION,"","JAEGER, CHERYL L",01/03/11,03/31/11,SENIOR POLICY ADVISOR,"9,142.23",FISCAL YEAR 2011,"","","","JAEGER, CHERYL L"
,OFFICE OF THE MAJORITY LEADER,2011Q1,PERSONNEL COMPENSATION,"","JOHNSTON,STEVEN",01/03/11,03/31/11,ASSOCIATE DIR OF NEW MEDIA,"10,144.44",FISCAL YEAR 2011,"","","","JOHNSTON,STEVEN"
,OFFICE OF THE MAJORITY LEADER,2011Q1,PERSONNEL COMPENSATION,"","KEECH,EMILY H",01/16/11,03/31/11,STAFF ASSISTANT,"5,208.33",FISCAL YEAR 2011,"","","","KEECH,EMILY H"
,OFFICE OF THE MAJORITY LEADER,2011Q1,PERSONNEL COMPENSATION,"","LEMOS, JESSICA A",01/01/11,01/02/11,LEGISLATIVE COORDINATOR,361.11,FISCAL YEAR 2011,"","","","LEMOS, JESSICA A"
,OFFICE OF THE MAJORITY LEADER,2011Q1,PERSONNEL COMPENSATION,"","LEUSCHEN, JAMES P",01/01/11,01/02/11,SENIOR POLICY ADVISOR,583.33,FISCAL YEAR 2011,"","","","LEUSCHEN, JAMES P"
,OFFICE OF THE MAJORITY LEADER,2011Q1,PERSONNEL COMPENSATION,"","LI TRENTA, VIRGINIA SIMONE",01/01/11,01/02/11,SCHED AND DIR OF SPECIAL EVENT,500.00,FISCAL YEAR 2011,"","","","LI TRENTA, VIRGINIA SIMONE"
,OFFICE OF THE MAJORITY LEADER,2011Q1,PERSONNEL COMPENSATION,"","LIRA,MATHEW L",01/03/11,03/31/11,DIRECTOR OF NEW MEDIA,"23,222.23",FISCAL YEAR 2011,"","","","LIRA,MATHEW L"
,OFFICE OF THE MAJORITY LEADER,2011Q1,PERSONNEL COMPENSATION,"","LONG,MICHAEL P",01/03/11,01/24/11,STAFF ASSISTANT,"1,527.78",FISCAL YEAR 2011,"","","","LONG,MICHAEL P"
,OFFICE OF THE MAJORITY LEADER,2011Q1,PERSONNEL COMPENSATION,"","MAHAN,ROGER A",02/07/11,03/31/11,POLICY ADVISOR,"8,625.00",FISCAL YEAR 2011,"","","","MAHAN,ROGER A"
,OFFICE OF THE MAJORITY LEADER,2011Q1,PERSONNEL COMPENSATION,"","MUNOZ, DENIS",01/01/11,01/02/11,SYSTEM ADMINISTRATOR,277.78,FISCAL YEAR 2011,"","","","MUNOZ, DENIS"
,OFFICE OF THE MAJORITY LEADER,2011Q1,PERSONNEL COMPENSATION,"","MURRAY, ELIZABETH M",01/01/11,01/02/11,SENIOR POLICY ADVISOR,688.89,FISCAL YEAR 2011,"","","","MURRAY, ELIZABETH M"
,OFFICE OF THE MAJORITY LEADER,2011Q1,PERSONNEL COMPENSATION,"","NELSON, VALERIE S",01/03/11,03/31/11,DIR OF MEMBER SERVICES,"28,111.10",FISCAL YEAR 2011,"","","","NELSON, VALERIE S"
,OFFICE OF THE MAJORITY LEADER,2011Q1,PERSONNEL COMPENSATION,"","O'CONNOR, KATHLEEN",01/03/11,03/31/11,DEPUTY DIR MEMBERS SERVICES,"12,344.44",FISCAL YEAR 2011,"","","","O'CONNOR, KATHLEEN"
,OFFICE OF THE MAJORITY LEADER,2011Q1,PERSONNEL COMPENSATION,"","PALACIO,RICHARD A",01/01/11,01/02/11,DEPUTY DIRECTOR OF MEMBER SVCS,426.67,FISCAL YEAR 2011,"","","","PALACIO,RICHARD A"
,OFFICE OF THE MAJORITY LEADER,2011Q1,PERSONNEL COMPENSATION,"","PATRICK,BRIAN C",01/03/11,03/31/11,STRATEGIC COMMUNICATIONS,"16,500.00",FISCAL YEAR 2011,"","","","PATRICK,BRIAN C"
,OFFICE OF THE MAJORITY LEADER,2011Q1,PERSONNEL COMPENSATION,"","REPKO,MARY F",01/01/11,01/02/11,SENIOR POLICY ADVISOR,711.11,FISCAL YEAR 2011,"","","","REPKO,MARY F"
,OFFICE OF THE MAJORITY LEADER,2011Q1,PERSONNEL COMPENSATION,"","ROMICK, BRIAN",01/01/11,01/02/11,MEMBER SERVICES DIRECTOR,777.78,FISCAL YEAR 2011,"","","","ROMICK, BRIAN"
,OFFICE OF THE MAJORITY LEADER,2011Q1,PERSONNEL COMPENSATION,"","SAEZ,MARIEL S",01/01/11,01/02/11,PRESS AND RESEARCH ASSISTANT,177.78,FISCAL YEAR 2011,"","","","SAEZ,MARIEL S"
,OFFICE OF THE MAJORITY LEADER,2011Q1,PERSONNEL COMPENSATION,"","SCHAFFER,CHRISTINE A",03/14/11,03/31/11,DEPUTY SCHEDULER,"2,502.78",FISCAL YEAR 2011,"","","","SCHAFFER,CHRISTINE A"
,OFFICE OF THE MAJORITY LEADER,2011Q1,PERSONNEL COMPENSATION,"","SHOTT,DANIEL",01/01/11,01/02/11,STAFF ASSISTANT,138.89,FISCAL YEAR 2011,"","","","SHOTT,DANIEL"
,OFFICE OF THE MAJORITY LEADER,2011Q1,PERSONNEL COMPENSATION,"","SHOTT,DANIEL",12/01/10,12/31/10,STAFF ASSISTANT (OVERTIME),"1,415.25",FISCAL YEAR 2011,"","","","SHOTT,DANIEL"
,OFFICE OF THE MAJORITY LEADER,2011Q1,PERSONNEL COMPENSATION,"","SILVERMAN,DAVID J",01/03/11,03/31/11,SPEECHWRITER,"15,277.77",FISCAL YEAR 2011,"","","","SILVERMAN,DAVID J"
,OFFICE OF THE MAJORITY LEADER,2011Q1,PERSONNEL COMPENSATION,"","SIXKILLER, MARIAH S",01/01/11,01/02/11,SENIOR POLICY ADVISOR,294.44,FISCAL YEAR 2011,"","","","SIXKILLER, MARIAH S"
,OFFICE OF THE MAJORITY LEADER,2011Q1,PERSONNEL COMPENSATION,"","STEIN, SHIMON",01/03/11,03/31/11,SENIOR POLICY ADVISOR,"27,194.44",FISCAL YEAR 2011,"","","","STEIN, SHIMON"
,OFFICE OF THE MAJORITY LEADER,2011Q1,PERSONNEL COMPENSATION,"","STEVENS,AMANDA D",01/03/11,02/28/11,DEPUTY SCHEDULER,"4,833.33",FISCAL YEAR 2011,"","","","STEVENS,AMANDA D"
,OFFICE OF THE MAJORITY LEADER,2011Q1,PERSONNEL COMPENSATION,"","STEVENS,AMANDA D",03/01/11,03/31/11,STAFF ASSISTANT,"2,500.00",FISCAL YEAR 2011,"","","","STEVENS,AMANDA D"
,OFFICE OF THE MAJORITY LEADER,2011Q1,PERSONNEL COMPENSATION,"","STRAUS,JESSICA",03/07/11,03/31/11,ASSISTANT PRESS SECRETARY,"3,266.67",FISCAL YEAR 2011,"","","","STRAUS,JESSICA"
,OFFICE OF THE MAJORITY LEADER,2011Q1,PERSONNEL COMPENSATION,"","TUELL,JAMES A",01/03/11,03/31/11,ASST TO THE CHIEF OF STAFF,"7,638.90",FISCAL YEAR 2011,"","","","TUELL,JAMES A"
,OFFICE OF THE MAJORITY LEADER,2011Q1,PERSONNEL COMPENSATION,"","VIESON, CHRISTOPHER W",01/03/11,03/31/11,DEPUTY DIRECTOR OF FLOOR OPERA,"18,211.10",FISCAL YEAR 2011,"","","","VIESON, CHRISTOPHER W"
,OFFICE OF THE MAJORITY LEADER,2011Q1,PERSONNEL COMPENSATION,"","WILLIAMS, KELLY K",01/03/11,03/31/11,FINANCIAL ADMINISTRATOR,"3,911.10",FISCAL YEAR 2011,"","","","WILLIAMS, KELLY K"
,OFFICE OF THE MAJORITY LEADER,2011Q1,PERSONNEL COMPENSATION,"","ZACKON,MATTHEW R",01/03/11,03/31/11,SPECIAL ASSISTANT,"6,111.10",FISCAL YEAR 2011,"","","","ZACKON,MATTHEW R"
,OFFICE OF THE MAJORITY LEADER,2011Q1,TRAVEL,01-19,"AVILES,DANIELLE R",01/04/11,01/05/11,TAXI/PARKING/TOLLS,51.25,FISCAL YEAR 2011,AP,Accounts payable,00072712,"AVILES,DANIELLE R"
,OFFICE OF THE MAJORITY LEADER,2011Q1,TRAVEL,01-19,"AVILES,DANIELLE R",12/01/10,12/17/10,TAXI/PARKING/TOLLS,81.00,FISCAL YEAR 2011,AP,Accounts payable,00073069,"AVILES,DANIELLE R"
,OFFICE OF THE MAJORITY LEADER,2011Q1,TRAVEL,01-19,"AVILES,DANIELLE R",11/18/10,11/18/10,TAXI/PARKING/TOLLS,1.85,FISCAL YEAR 2011,AP,Accounts payable,00073073,"AVILES,DANIELLE R"
,OFFICE OF THE MAJORITY LEADER,2011Q1,TRAVEL,01-19,"GHOSH,APRATIM",11/06/10,11/18/10,CAR RENTAL,48.68,FISCAL YEAR 2011,AP,Accounts payable,00073076,"GHOSH,APRATIM"
,OFFICE OF THE MAJORITY LEADER,2011Q1,TRAVEL,01-21,"SAEZ, MARIEL",12/13/10,12/13/10,TAXI/PARKING/TOLLS,7.75,FISCAL YEAR 2011,AP,Accounts payable,00077530,"SAEZ, MARIEL"
,OFFICE OF THE MAJORITY LEADER,2011Q1,TRAVEL,01-24,"AVILES,DANIELLE R",01/13/11,01/13/11,TAXI/PARKING/TOLLS,7.00,FISCAL YEAR 2011,AP,Accounts payable,00078971,"AVILES,DANIELLE R"
,OFFICE OF THE MAJORITY LEADER,2011Q1,TRAVEL,01-24,"AVILES,DANIELLE R",01/18/11,01/18/11,TAXI/PARKING/TOLLS,15.00,FISCAL YEAR 2011,AP,Accounts payable,00078972,"AVILES,DANIELLE R"
,OFFICE OF THE MAJORITY LEADER,2011Q1,TRAVEL,01-24,"AVILES,DANIELLE R",01/18/11,01/18/11,TAXI/PARKING/TOLLS,20.00,FISCAL YEAR 2011,AP,Accounts payable,00078973,"AVILES,DANIELLE R"
,OFFICE OF THE MAJORITY LEADER,2011Q1,TRAVEL,01-24,"AVILES,DANIELLE R",01/13/11,01/13/11,TAXI/PARKING/TOLLS,12.00,FISCAL YEAR 2011,AP,Accounts payable,00078980,"AVILES,DANIELLE R"
,OFFICE OF THE MAJORITY LEADER,2011Q1,TRAVEL,02-02,"WILLIAMS, KELLY K",01/19/11,01/19/11,TAXI/PARKING/TOLLS,24.00,FISCAL YEAR 2011,AP,Accounts payable,00083501,"WILLIAMS, KELLY K"
,OFFICE OF THE MAJORITY LEADER,2011Q1,TRAVEL,02-03,"FERENCE, MICHAEL J",01/06/11,01/10/11,TAXI/PARKING/TOLLS,31.00,FISCAL YEAR 2011,AP,Accounts payable,00084904,"FERENCE, MICHAEL J"
,OFFICE OF THE MAJORITY LEADER,2011Q1,TRAVEL,02-03,"HELM,KATHERINE D",01/04/11,01/04/11,PRIVATE AUTO MILEAGE,1.60,FISCAL YEAR 2011,AP,Accounts payable,00084908,"HELM,KATHERINE D"
,OFFICE OF THE MAJORITY LEADER,2011Q1,TRAVEL,02-03,"AVILES,DANIELLE R",01/19/11,01/19/11,TAXI/PARKING/TOLLS,11.00,FISCAL YEAR 2011,AP,Accounts payable,00085276,"AVILES,DANIELLE R"
,OFFICE OF THE MAJORITY LEADER,2011Q1,TRAVEL,02-03,"AVILES,DANIELLE R",01/09/11,01/19/11,TAXI/PARKING/TOLLS,11.00,FISCAL YEAR 2011,AP,Accounts payable,00085277,"AVILES,DANIELLE R"
,OFFICE OF THE MAJORITY LEADER,2011Q1,TRAVEL,02-03,"AVILES,DANIELLE R",01/19/11,01/19/11,TAXI/PARKING/TOLLS,9.00,FISCAL YEAR 2011,AP,Accounts payable,00085278,"AVILES,DANIELLE R"
,OFFICE OF THE MAJORITY LEADER,2011Q1,TRAVEL,02-07,"KEECH, EMILY H",01/14/11,01/14/11,TAXI/PARKING/TOLLS,24.00,FISCAL YEAR 2011,AP,Accounts payable,00087310,"KEECH, EMILY H"
,OFFICE OF THE MAJORITY LEADER,2011Q1,TRAVEL,02-23,"AVILES,DANIELLE R",01/04/11,01/05/11,TAXI/PARKING/TOLLS,-51.25,FISCAL YEAR 2011,AP,Accounts payable,00101239,"AVILES,DANIELLE R"
,OFFICE OF THE MAJORITY LEADER,2011Q1,TRAVEL,02-23,"AVILES,DANIELLE R",01/13/11,01/13/11,TAXI/PARKING/TOLLS,-7.00,FISCAL YEAR 2011,AP,Accounts payable,00101253,"AVILES,DANIELLE R"
,OFFICE OF THE MAJORITY LEADER,2011Q1,TRAVEL,02-23,"AVILES,DANIELLE R",01/18/11,01/18/11,TAXI/PARKING/TOLLS,-15.00,FISCAL YEAR 2011,AP,Accounts payable,00101255,"AVILES,DANIELLE R"
,OFFICE OF THE MAJORITY LEADER,2011Q1,TRAVEL,02-23,"AVILES,DANIELLE R",01/18/11,01/18/11,TAXI/PARKING/TOLLS,-20.00,FISCAL YEAR 2011,AP,Accounts payable,00101257,"AVILES,DANIELLE R"
,OFFICE OF THE MAJORITY LEADER,2011Q1,TRAVEL,02-23,"AVILES,DANIELLE R",01/13/11,01/13/11,TAXI/PARKING/TOLLS,-12.00,FISCAL YEAR 2011,AP,Accounts payable,00101258,"AVILES,DANIELLE R"
,OFFICE OF THE MAJORITY LEADER,2011Q1,TRAVEL,03-09,"JOHNSTON,STEVEN",02/23/11,02/27/11,COMMERCIAL TRANSPORTATION,194.40,FISCAL YEAR 2011,AP,Accounts payable,00110898,"JOHNSTON,STEVEN"
,OFFICE OF THE MAJORITY LEADER,2011Q1,TRAVEL,03-09,"STEIN, SHIMON",02/08/11,02/09/11,TAXI/PARKING/TOLLS,32.00,FISCAL YEAR 2011,AP,Accounts payable,00110930,"STEIN, SHIMON"
,OFFICE OF THE MAJORITY LEADER,2011Q1,TRAVEL,03-11,"KEECH, EMILY H",01/18/11,02/28/11,PRIVATE AUTO MILEAGE,40.90,FISCAL YEAR 2011,AP,Accounts payable,00112245,"KEECH, EMILY H"
,OFFICE OF THE MAJORITY LEADER,2011Q1,TRAVEL,03-15,"ZACKON, MATTHEW",03/01/11,03/01/11,TAXI/PARKING/TOLLS,15.75,FISCAL YEAR 2011,AP,Accounts payable,00114025,"ZACKON, MATTHEW"
,OFFICE OF THE MAJORITY LEADER,2011Q1,TRAVEL,03-31,"FERENCE, MICHAEL J",02/24/11,02/26/11,TRAVEL SUBSISTENCE,902.46,FISCAL YEAR 2011,AP,Accounts payable,00131712,"FERENCE, MICHAEL J"
,OFFICE OF THE MAJORITY LEADER,2011Q1,TRAVEL,03-31,"FERENCE, MICHAEL J",02/10/11,03/07/11,TAXI/PARKING/TOLLS,23.00,FISCAL YEAR 2011,AP,Accounts payable,00131713,"FERENCE, MICHAEL J"
,OFFICE OF THE MAJORITY LEADER,2011Q1,TRAVEL,03-31,"FERENCE, MICHAEL J",03/20/11,03/23/11,TRAVEL SUBSISTENCE,"1,247.97",FISCAL YEAR 2011,AP,Accounts payable,00131714,"FERENCE, MICHAEL J"
,OFFICE OF THE MAJORITY LEADER,2011Q1,TRAVEL,03-31,"KEECH, EMILY H",02/14/11,03/14/11,PRIVATE AUTO MILEAGE,29.40,FISCAL YEAR 2011,AP,Accounts payable,00131716,"KEECH, EMILY H"
,OFFICE OF THE MAJORITY LEADER,2011Q1,"RENT, COMMUNICATION, UTILITIES",01-13,CITIBANK GOV CARD SERVICE,10/15/10,10/15/10,POSTAGE / COURIER / BOX RENTAL,0.98,FISCAL YEAR 2011,AP,Accounts payable,00070745,CITIBANK GOV CARD SERVICE
,OFFICE OF THE MAJORITY LEADER,2011Q1,"RENT, COMMUNICATION, UTILITIES",02-25,HELLO DIRECT,11/01/10,11/01/10,TELECOMSRV/EQ/TOLL CHARGE,720.00,FISCAL YEAR 2011,AP,Accounts payable,00101810,HELLO DIRECT
,OFFICE OF THE MAJORITY LEADER,2011Q1,PRINTING AND REPRODUCTION,01-28,"",01/01/11,01/31/11,PHOTOGRAPHIC (TRANSFER),18.20,FISCAL YEAR 2011,GL,General ledger,PIX0004500,""
,OFFICE OF THE MAJORITY LEADER,2011Q1,PRINTING AND REPRODUCTION,01-31,"ACCURATE WORD, LLC",01/07/11,01/07/11,PRINTING & REPRODUCTION,967.95,FISCAL YEAR 2011,AP,Accounts payable,00082305,"ACCURATE WORD, LLC"
,OFFICE OF THE MAJORITY LEADER,2011Q1,PRINTING AND REPRODUCTION,01-31,"ACCURATE WORD, LLC",01/11/11,01/11/11,PRINTING & REPRODUCTION,135.95,FISCAL YEAR 2011,AP,Accounts payable,00082307,"ACCURATE WORD, LLC"
,OFFICE OF THE MAJORITY LEADER,2011Q1,PRINTING AND REPRODUCTION,02-03,"DAVID L. ANDRUKITUS, INC",01/07/11,01/07/11,PRINTING & REPRODUCTION,900.00,FISCAL YEAR 2011,AP,Accounts payable,00085280,"DAVID L. ANDRUKITUS, INC"
,OFFICE OF THE MAJORITY LEADER,2011Q1,PRINTING AND REPRODUCTION,02-03,"DAVID L. ANDRUKITUS, INC",01/06/11,01/06/11,PRINTING & REPRODUCTION,127.50,FISCAL YEAR 2011,AP,Accounts payable,00085282,"DAVID L. ANDRUKITUS, INC"
,OFFICE OF THE MAJORITY LEADER,2011Q1,PRINTING AND REPRODUCTION,02-03,"DAVID L. ANDRUKITUS, INC",01/07/11,01/07/11,PRINTING & REPRODUCTION,237.50,FISCAL YEAR 2011,AP,Accounts payable,00085283,"DAVID L. ANDRUKITUS, INC"
,OFFICE OF THE MAJORITY LEADER,2011Q1,PRINTING AND REPRODUCTION,02-18,"ACCURATE WORD, LLC",01/12/11,01/12/11,PRINTING & REPRODUCTION,"1,820.00",FISCAL YEAR 2011,AP,Accounts payable,00097595,"ACCURATE WORD, LLC"
,OFFICE OF THE MAJORITY LEADER,2011Q1,PRINTING AND REPRODUCTION,02-28,"ACCURATE WORD, LLC",01/12/11,01/12/11,PRINTING & REPRODUCTION,"-1,820.00",FISCAL YEAR 2011,AP,Accounts payable,00102125,"ACCURATE WORD, LLC"
,OFFICE OF THE MAJORITY LEADER,2011Q1,OTHER SERVICES,01-13,CITIBANK GOV CARD SERVICE,11/09/10,11/09/10,LAUNDRY SERVICES,84.88,FISCAL YEAR 2011,AP,Accounts payable,00070754,CITIBANK GOV CARD SERVICE
,OFFICE OF THE MAJORITY LEADER,2011Q1,SUPPLIES AND MATERIALS,01-13,CITIBANK GOV CARD SERVICE,12/08/10,12/23/10,FOOD & BEVERAGE,"1,160.21",FISCAL YEAR 2011,AP,Accounts payable,00070750,CITIBANK GOV CARD SERVICE
,OFFICE OF THE MAJORITY LEADER,2011Q1,SUPPLIES AND MATERIALS,01-13,CITIBANK GOV CARD SERVICE,11/02/10,11/08/10,FOOD & BEVERAGE,"2,339.61",FISCAL YEAR 2011,AP,Accounts payable,00070752,CITIBANK GOV CARD SERVICE
,OFFICE OF THE MAJORITY LEADER,2011Q1,SUPPLIES AND MATERIALS,01-19,"AVILES,DANIELLE R",01/05/11,01/05/11,FOOD & BEVERAGE,43.71,FISCAL YEAR 2011,AP,Accounts payable,00072713,"AVILES,DANIELLE R"
,OFFICE OF THE MAJORITY LEADER,2011Q1,SUPPLIES AND MATERIALS,01-19,"FRY,COURTNEY",01/12/11,01/12/11,FOOD & BEVERAGE,102.68,FISCAL YEAR 2011,AP,Accounts payable,00072714,"FRY,COURTNEY"
,OFFICE OF THE MAJORITY LEADER,2011Q1,SUPPLIES AND MATERIALS,01-19,CORNER BAKERY,11/05/10,11/05/10,FOOD & BEVERAGE,44.00,FISCAL YEAR 2011,AP,Accounts payable,00072716,CORNER BAKERY
,OFFICE OF THE MAJORITY LEADER,2011Q1,SUPPLIES AND MATERIALS,01-19,CORNER BAKERY,11/17/10,11/17/10,FOOD & BEVERAGE,231.00,FISCAL YEAR 2011,AP,Accounts payable,00072717,CORNER BAKERY
,OFFICE OF THE MAJORITY LEADER,2011Q1,SUPPLIES AND MATERIALS,01-19,CORNER BAKERY,11/18/10,11/18/10,FOOD & BEVERAGE,51.70,FISCAL YEAR 2011,AP,Accounts payable,00072718,CORNER BAKERY
,OFFICE OF THE MAJORITY LEADER,2011Q1,SUPPLIES AND MATERIALS,01-19,CORNER BAKERY,11/19/10,11/19/10,FOOD & BEVERAGE,158.50,FISCAL YEAR 2011,AP,Accounts payable,00072719,CORNER BAKERY
,OFFICE OF THE MAJORITY LEADER,2011Q1,SUPPLIES AND MATERIALS,01-19,CAPITOL HOST,11/05/10,11/05/10,FOOD & BEVERAGE,42.41,FISCAL YEAR 2011,AP,Accounts payable,00072720,CAPITOL HOST
,OFFICE OF THE MAJORITY LEADER,2011Q1,SUPPLIES AND MATERIALS,01-19,"AVILES,DANIELLE R",12/01/10,12/01/10,FOOD & BEVERAGE,6.35,FISCAL YEAR 2011,AP,Accounts payable,00073072,"AVILES,DANIELLE R"
,OFFICE OF THE MAJORITY LEADER,2011Q1,SUPPLIES AND MATERIALS,01-24,"AVILES,DANIELLE R",01/18/11,01/18/11,FOOD & BEVERAGE,23.04,FISCAL YEAR 2011,AP,Accounts payable,00078974,"AVILES,DANIELLE R"
,OFFICE OF THE MAJORITY LEADER,2011Q1,SUPPLIES AND MATERIALS,01-24,"FRY,COURTNEY",01/13/11,01/13/11,FOOD & BEVERAGE,9.65,FISCAL YEAR 2011,AP,Accounts payable,00078975,"FRY,COURTNEY"
,OFFICE OF THE MAJORITY LEADER,2011Q1,SUPPLIES AND MATERIALS,01-24,"FRY,COURTNEY",01/03/11,01/03/11,FOOD & BEVERAGE,65.98,FISCAL YEAR 2011,AP,Accounts payable,00078977,"FRY,COURTNEY"
,OFFICE OF THE MAJORITY LEADER,2011Q1,SUPPLIES AND MATERIALS,01-24,"FRY,COURTNEY",01/13/11,01/13/11,FOOD & BEVERAGE,34.99,FISCAL YEAR 2011,AP,Accounts payable,00078978,"FRY,COURTNEY"
,OFFICE OF THE MAJORITY LEADER,2011Q1,SUPPLIES AND MATERIALS,01-24,"AVILES,DANIELLE R",01/12/11,01/12/11,HABITATION EXPENSE,16.51,FISCAL YEAR 2011,AP,Accounts payable,00078979,"AVILES,DANIELLE R"
,OFFICE OF THE MAJORITY LEADER,2011Q1,SUPPLIES AND MATERIALS,01-31,"MIN, JAMES B",01/06/11,01/06/11,FOOD & BEVERAGE,143.53,FISCAL YEAR 2011,AP,Accounts payable,00082303,"MIN, JAMES B"
,OFFICE OF THE MAJORITY LEADER,2011Q1,SUPPLIES AND MATERIALS,01-31,CBC RESTAURANT CORP,01/13/11,01/13/11,FOOD & BEVERAGE,214.50,FISCAL YEAR 2011,AP,Accounts payable,00082308,CBC RESTAURANT CORP
,OFFICE OF THE MAJORITY LEADER,2011Q1,SUPPLIES AND MATERIALS,01-31,"MIN, JAMES B",01/12/11,01/12/11,FOOD & BEVERAGE,25.71,FISCAL YEAR 2011,AP,Accounts payable,00083032,"MIN, JAMES B"
,OFFICE OF THE MAJORITY LEADER,2011Q1,SUPPLIES AND MATERIALS,01-31,"MIN, JAMES B",01/12/11,01/12/11,FOOD & BEVERAGE,53.40,FISCAL YEAR 2011,AP,Accounts payable,00083033,"MIN, JAMES B"
,OFFICE OF THE MAJORITY LEADER,2011Q1,SUPPLIES AND MATERIALS,01-31,"MIN, JAMES B",01/18/11,01/18/11,FOOD & BEVERAGE,412.83,FISCAL YEAR 2011,AP,Accounts payable,00083035,"MIN, JAMES B"
,OFFICE OF THE MAJORITY LEADER,2011Q1,SUPPLIES AND MATERIALS,01-31,"MIN, JAMES B",01/18/11,01/18/11,HABITATION EXPENSE,110.04,FISCAL YEAR 2011,AP,Accounts payable,00083036,"MIN, JAMES B"
,OFFICE OF THE MAJORITY LEADER,2011Q1,SUPPLIES AND MATERIALS,01-31,"MIN, JAMES B",01/18/11,01/18/11,FOOD & BEVERAGE,"2,276.82",FISCAL YEAR 2011,AP,Accounts payable,00083037,"MIN, JAMES B"
,OFFICE OF THE MAJORITY LEADER,2011Q1,SUPPLIES AND MATERIALS,02-03,LEXIS-NEXIS,12/31/10,12/31/11,PUBLICATIONS/REFERENCE MAT'L,"7,488.00",FISCAL YEAR 2011,AP,Accounts payable,00084896,LEXIS-NEXIS
,OFFICE OF THE MAJORITY LEADER,2011Q1,SUPPLIES AND MATERIALS,02-03,"HELM,KATHERINE D",01/11/11,01/11/11,FOOD & BEVERAGE,107.89,FISCAL YEAR 2011,AP,Accounts payable,00084911,"HELM,KATHERINE D"
,OFFICE OF THE MAJORITY LEADER,2011Q1,SUPPLIES AND MATERIALS,02-03,HIGHLAND ESTATES COFFEE,01/11/11,01/11/11,FOOD & BEVERAGE,280.18,FISCAL YEAR 2011,AP,Accounts payable,00084912,HIGHLAND ESTATES COFFEE
,OFFICE OF THE MAJORITY LEADER,2011Q1,SUPPLIES AND MATERIALS,02-03,"AVILES,DANIELLE R",01/19/11,01/19/11,FOOD & BEVERAGE,9.90,FISCAL YEAR 2011,AP,Accounts payable,00085274,"AVILES,DANIELLE R"
,OFFICE OF THE MAJORITY LEADER,2011Q1,SUPPLIES AND MATERIALS,02-03,"AVILES,DANIELLE R",01/19/11,01/19/11,FOOD & BEVERAGE,13.50,FISCAL YEAR 2011,AP,Accounts payable,00085275,"AVILES,DANIELLE R"
,OFFICE OF THE MAJORITY LEADER,2011Q1,SUPPLIES AND MATERIALS,02-03,"BETTY CRUDUP, CATERER",01/01/11,01/31/11,FOOD & BEVERAGE,900.00,FISCAL YEAR 2011,AP,Accounts payable,00085284,"BETTY CRUDUP, CATERER"
,OFFICE OF THE MAJORITY LEADER,2011Q1,SUPPLIES AND MATERIALS,02-04,ARROWHEAD,12/31/10,12/31/10,BOTTLED WATER,108.49,FISCAL YEAR 2011,AP,Accounts payable,00086620,ARROWHEAD
,OFFICE OF THE MAJORITY LEADER,2011Q1,SUPPLIES AND MATERIALS,02-07,HIGHLAND ESTATES COFFEE,01/04/11,01/04/11,FOOD & BEVERAGE,243.80,FISCAL YEAR 2011,AP,Accounts payable,00087306,HIGHLAND ESTATES COFFEE
,OFFICE OF THE MAJORITY LEADER,2011Q1,SUPPLIES AND MATERIALS,02-07,"KEECH, EMILY H",01/18/11,01/18/11,FOOD & BEVERAGE,28.04,FISCAL YEAR 2011,AP,Accounts payable,00087313,"KEECH, EMILY H"
,OFFICE OF THE MAJORITY LEADER,2011Q1,SUPPLIES AND MATERIALS,02-07,"STEVENS,AMANDA D",01/18/11,01/18/11,FOOD & BEVERAGE,213.87,FISCAL YEAR 2011,AP,Accounts payable,00087317,"STEVENS,AMANDA D"
,OFFICE OF THE MAJORITY LEADER,2011Q1,SUPPLIES AND MATERIALS,02-07,"NATIONAL JOURNAL GROUP, INC",01/04/11,01/03/12,PUBLICATIONS/REFERENCE MAT'L,"2,097.00",FISCAL YEAR 2011,AP,Accounts payable,00087320,"NATIONAL JOURNAL GROUP, INC"
,OFFICE OF THE MAJORITY LEADER,2011Q1,SUPPLIES AND MATERIALS,02-17,CORNER BAKERY,11/30/10,11/30/10,FOOD & BEVERAGE,158.50,FISCAL YEAR 2011,AP,Accounts payable,00094234,CORNER BAKERY
,OFFICE OF THE MAJORITY LEADER,2011Q1,SUPPLIES AND MATERIALS,02-17,CORNER BAKERY,12/01/10,12/01/10,FOOD & BEVERAGE,263.26,FISCAL YEAR 2011,AP,Accounts payable,00094235,CORNER BAKERY
,OFFICE OF THE MAJORITY LEADER,2011Q1,SUPPLIES AND MATERIALS,02-17,CORNER BAKERY,12/08/10,12/08/10,FOOD & BEVERAGE,253.26,FISCAL YEAR 2011,AP,Accounts payable,00094236,CORNER BAKERY
,OFFICE OF THE MAJORITY LEADER,2011Q1,SUPPLIES AND MATERIALS,02-17,CORNER BAKERY,12/08/10,12/08/10,FOOD & BEVERAGE,158.50,FISCAL YEAR 2011,AP,Accounts payable,00094237,CORNER BAKERY
,OFFICE OF THE MAJORITY LEADER,2011Q1,SUPPLIES AND MATERIALS,02-17,CORNER BAKERY,12/16/10,12/16/10,FOOD & BEVERAGE,328.00,FISCAL YEAR 2011,AP,Accounts payable,00094238,CORNER BAKERY
,OFFICE OF THE MAJORITY LEADER,2011Q1,SUPPLIES AND MATERIALS,02-18,"MIN, JAMES B",01/25/11,01/25/11,FOOD & BEVERAGE,"2,879.80",FISCAL YEAR 2011,AP,Accounts payable,00097597,"MIN, JAMES B"
,OFFICE OF THE MAJORITY LEADER,2011Q1,SUPPLIES AND MATERIALS,02-23,"AVILES,DANIELLE R",01/05/11,01/05/11,FOOD & BEVERAGE,-43.71,FISCAL YEAR 2011,AP,Accounts payable,00101262,"AVILES,DANIELLE R"
,OFFICE OF THE MAJORITY LEADER,2011Q1,SUPPLIES AND MATERIALS,02-23,"FRY,COURTNEY",01/12/11,01/12/11,FOOD & BEVERAGE,-102.68,FISCAL YEAR 2011,AP,Accounts payable,00101263,"FRY,COURTNEY"
,OFFICE OF THE MAJORITY LEADER,2011Q1,SUPPLIES AND MATERIALS,02-23,"AVILES,DANIELLE R",01/18/11,01/18/11,FOOD & BEVERAGE,-23.04,FISCAL YEAR 2011,AP,Accounts payable,00101266,"AVILES,DANIELLE R"
,OFFICE OF THE MAJORITY LEADER,2011Q1,SUPPLIES AND MATERIALS,02-23,"FRY,COURTNEY",01/13/11,01/13/11,FOOD & BEVERAGE,-9.65,FISCAL YEAR 2011,AP,Accounts payable,00101268,"FRY,COURTNEY"
,OFFICE OF THE MAJORITY LEADER,2011Q1,SUPPLIES AND MATERIALS,02-23,"FRY,COURTNEY",01/03/11,01/03/11,FOOD & BEVERAGE,-65.98,FISCAL YEAR 2011,AP,Accounts payable,00101269,"FRY,COURTNEY"
,OFFICE OF THE MAJORITY LEADER,2011Q1,SUPPLIES AND MATERIALS,02-23,"FRY,COURTNEY",01/13/11,01/13/11,FOOD & BEVERAGE,-34.99,FISCAL YEAR 2011,AP,Accounts payable,00101271,"FRY,COURTNEY"
,OFFICE OF THE MAJORITY LEADER,2011Q1,SUPPLIES AND MATERIALS,02-23,"AVILES,DANIELLE R",01/12/11,01/12/11,HABITATION EXPENSE,-16.51,FISCAL YEAR 2011,AP,Accounts payable,00101273,"AVILES,DANIELLE R"
,OFFICE OF THE MAJORITY LEADER,2011Q1,SUPPLIES AND MATERIALS,02-28,"MIN, JAMES B",01/25/11,01/25/11,FOOD & BEVERAGE,"-2,879.80",FISCAL YEAR 2011,AP,Accounts payable,00102119,"MIN, JAMES B"
,OFFICE OF THE MAJORITY LEADER,2011Q1,SUPPLIES AND MATERIALS,03-08,ARROWHEAD,01/31/11,01/31/11,BOTTLED WATER,153.86,FISCAL YEAR 2011,AP,Accounts payable,00109581,ARROWHEAD
,OFFICE OF THE MAJORITY LEADER,2011Q1,SUPPLIES AND MATERIALS,03-09,"KEECH, EMILY H",02/14/11,02/14/11,FOOD & BEVERAGE,27.98,FISCAL YEAR 2011,AP,Accounts payable,00110897,"KEECH, EMILY H"
,OFFICE OF THE MAJORITY LEADER,2011Q1,SUPPLIES AND MATERIALS,03-09,HIGHLAND ESTATES COFFEE,02/09/11,02/09/11,FOOD & BEVERAGE,255.80,FISCAL YEAR 2011,AP,Accounts payable,00110923,HIGHLAND ESTATES COFFEE
,OFFICE OF THE MAJORITY LEADER,2011Q1,SUPPLIES AND MATERIALS,03-09,HIGHLAND ESTATES COFFEE,02/02/11,02/02/11,FOOD & BEVERAGE,219.23,FISCAL YEAR 2011,AP,Accounts payable,00110924,HIGHLAND ESTATES COFFEE
,OFFICE OF THE MAJORITY LEADER,2011Q1,SUPPLIES AND MATERIALS,03-09,HIGHLAND ESTATES COFFEE,02/22/11,02/22/11,FOOD & BEVERAGE,85.14,FISCAL YEAR 2011,AP,Accounts payable,00110926,HIGHLAND ESTATES COFFEE
,OFFICE OF THE MAJORITY LEADER,2011Q1,SUPPLIES AND MATERIALS,03-09,HIGHLAND ESTATES COFFEE,03/01/11,03/01/11,FOOD & BEVERAGE,575.92,FISCAL YEAR 2011,AP,Accounts payable,00110927,HIGHLAND ESTATES COFFEE
,OFFICE OF THE MAJORITY LEADER,2011Q1,SUPPLIES AND MATERIALS,03-15,CITIBANK GOV CARD SERVICE,02/02/11,02/28/11,FOOD & BEVERAGE,"1,505.87",FISCAL YEAR 2011,AP,Accounts payable,00113818,CITIBANK GOV CARD SERVICE
,OFFICE OF THE MAJORITY LEADER,2011Q1,SUPPLIES AND MATERIALS,03-15,CITIBANK GOV CARD SERVICE,02/03/11,02/28/11,PUBLICATIONS/REFERENCE MAT'L,371.93,FISCAL YEAR 2011,AP,Accounts payable,00113834,CITIBANK GOV CARD SERVICE
,OFFICE OF THE MAJORITY LEADER,2011Q1,SUPPLIES AND MATERIALS,03-15,CITIBANK GOV CARD SERVICE,01/21/11,01/27/11,FOOD & BEVERAGE,622.38,FISCAL YEAR 2011,AP,Accounts payable,00113846,CITIBANK GOV CARD SERVICE
,OFFICE OF THE MAJORITY LEADER,2011Q1,SUPPLIES AND MATERIALS,03-24,ARROWHEAD,02/28/11,02/28/11,BOTTLED WATER,123.96,FISCAL YEAR 2011,AP,Accounts payable,00126294,ARROWHEAD
,OFFICE OF THE MAJORITY LEADER,2011Q1,SUPPLIES AND MATERIALS,03-31,"MIN, JAMES B",01/12/11,01/12/11,FOOD & BEVERAGE,-25.71,FISCAL YEAR 2011,AP,Accounts payable,00143547,"MIN, JAMES B"
,OFFICE OF THE MAJORITY LEADER,2011Q1,SUPPLIES AND MATERIALS,03-31,"MIN, JAMES B",01/12/11,01/12/11,FOOD & BEVERAGE,-53.40,FISCAL YEAR 2011,AP,Accounts payable,00143548,"MIN, JAMES B"
,OFFICE OF THE MAJORITY LEADER,2011Q1,SUPPLIES AND MATERIALS,03-31,"MIN, JAMES B",01/18/11,01/18/11,FOOD & BEVERAGE,-412.83,FISCAL YEAR 2011,AP,Accounts payable,00143549,"MIN, JAMES B"
,OFFICE OF THE MAJORITY LEADER,2011Q1,SUPPLIES AND MATERIALS,03-31,"MIN, JAMES B",01/18/11,01/18/11,FOOD & BEVERAGE,"-2,276.82",FISCAL YEAR 2011,AP,Accounts payable,00143551,"MIN, JAMES B"
,OFFICE OF THE MAJORITY LEADER,2011Q1,SUPPLIES AND MATERIALS,03-31,"MIN, JAMES B",01/18/11,01/18/11,HABITATION EXPENSE,-110.04,FISCAL YEAR 2011,AP,Accounts payable,00143553,"MIN, JAMES B"
,OFFICE OF THE MAJORITY LEADER,2011Q1,SUPPLIES AND MATERIALS,01-13,CITIBANK GOV CARD SERVICE,09/28/10,09/30/10,FOOD & BEVERAGE,"1,437.55",FISCAL YEAR 2010,AP,Accounts payable,00070741,CITIBANK GOV CARD SERVICE
,OFFICE OF THE MAJORITY LEADER,2011Q1,SUPPLIES AND MATERIALS,01-13,CITIBANK GOV CARD SERVICE,09/28/10,10/01/10,PUBLICATIONS/REFERENCE MAT'L,140.06,FISCAL YEAR 2010,AP,Accounts payable,00070743,CITIBANK GOV CARD SERVICE
,OFFICE OF THE MINORITY LEADER,2011Q1,PERSONNEL COMPENSATION,"","BUCK, BRENDAN K",01/01/11,01/02/11,DIR OF COMM FOR LEG OPERATIONS,500.00,FISCAL YEAR 2011,"","","","BUCK, BRENDAN K"
,OFFICE OF THE MINORITY LEADER,2011Q1,PERSONNEL COMPENSATION,"","CASSIDY, ED",01/01/11,01/02/11,SR ADVISOR/FLOOR ASSIST (STAT),933.33,FISCAL YEAR 2011,"","","","CASSIDY, ED"
,OFFICE OF THE MINORITY LEADER,2011Q1,PERSONNEL COMPENSATION,"","GREEN, JO-MARIE S",01/01/11,01/02/11,GEN. COUNSEL/DIR. OF FLOOR OPS,955.56,FISCAL YEAR 2011,"","","","GREEN, JO-MARIE S"
,OFFICE OF THE MINORITY LEADER,2011Q1,PERSONNEL COMPENSATION,"","JACKSON,BARRY S",01/01/11,01/02/11,CHIEF OF STAFF,958.33,FISCAL YEAR 2011,"","","","JACKSON,BARRY S"
,OFFICE OF THE MINORITY LEADER,2011Q1,PERSONNEL COMPENSATION,"","MEDLIN,MELINDA L",01/03/11,03/31/11,DIRECTOR OF SCHEDULING,"35,050.40",FISCAL YEAR 2011,"","","","MEDLIN,MELINDA L"
,OFFICE OF THE MINORITY LEADER,2011Q1,PERSONNEL COMPENSATION,"","NEWTON, KARINA L",01/03/11,03/31/11,DIRECTOR OF NEW MEDIA,"33,000.00",FISCAL YEAR 2011,"","","","NEWTON, KARINA L"
,OFFICE OF THE MINORITY LEADER,2011Q1,PERSONNEL COMPENSATION,"","PIERSON, JAY",01/01/11,01/02/11,FLOOR ASSISTANT (STAT),935.56,FISCAL YEAR 2011,"","","","PIERSON, JAY"
,OFFICE OF THE MINORITY LEADER,2011Q1,PERSONNEL COMPENSATION,"","SCHNITTGER, DAVID M",01/01/11,01/02/11,DEPUTY CHIEF OF STAFF,958.33,FISCAL YEAR 2011,"","","","SCHNITTGER, DAVID M"
,OFFICE OF THE MINORITY LEADER,2011Q1,PERSONNEL COMPENSATION,"","SMITH, KEVIN",01/01/11,01/02/11,COMMUNICATIONS DIR (STATUTORY),863.89,FISCAL YEAR 2011,"","","","SMITH, KEVIN"
,OFFICE OF THE MINORITY LEADER,2011Q1,PERSONNEL COMPENSATION,"","SOMMERS, MICHAEL J",01/01/11,01/02/11,POLICY DIRECTOR,958.33,FISCAL YEAR 2011,"","","","SOMMERS, MICHAEL J"
,OFFICE OF THE MINORITY LEADER,2011Q1,PERSONNEL COMPENSATION,"","STIVERS, JONATHAN",01/03/11,03/31/11,SENIOR ADVISOR,"33,000.00",FISCAL YEAR 2011,"","","","STIVERS, JONATHAN"
,OFFICE OF THE MINORITY LEADER,2011Q1,PERSONNEL COMPENSATION,"","TECKLENBURG, MICHAEL H",01/03/11,01/31/11,POLICY ADVISOR,"9,352.62",FISCAL YEAR 2011,"","","","TECKLENBURG, MICHAEL H"
,OFFICE OF THE MINORITY LEADER,2011Q1,PERSONNEL COMPENSATION,"","TECKLENBURG, MICHAEL H",02/01/11,03/31/11,COUNSEL,"20,041.34",FISCAL YEAR 2011,"","","","TECKLENBURG, MICHAEL H"
,OFFICE OF THE MINORITY LEADER,2011Q1,PERSONNEL COMPENSATION,"","WAYLAND,KAREN G",01/03/11,03/18/11,SENIOR POLICY ADVISOR,"29,189.70",FISCAL YEAR 2011,"","","","WAYLAND,KAREN G"
,OFFICE OF THE MINORITY LEADER,2011Q1,PERSONNEL COMPENSATION,"","ANDRES, ELIZABETH G",01/01/11,01/02/11,DEPUTY PRESS SECRETARY,416.11,FISCAL YEAR 2011,"","","","ANDRES, ELIZABETH G"
,OFFICE OF THE MINORITY LEADER,2011Q1,PERSONNEL COMPENSATION,"","BARRY,MARY K",01/03/11,03/31/11,SCHEDULING ASSISTANT,"12,518.00",FISCAL YEAR 2011,"","","","BARRY,MARY K"
,OFFICE OF THE MINORITY LEADER,2011Q1,PERSONNEL COMPENSATION,"","BENJAMIN, WILLIAM C",01/01/11,01/02/11,DIR OF INFORMATION TECHNOLOGY,516.67,FISCAL YEAR 2011,"","","","BENJAMIN, WILLIAM C"
,OFFICE OF THE MINORITY LEADER,2011Q1,PERSONNEL COMPENSATION,"","BERENS,KELLY E",01/03/11,03/31/11,DIRECTOR OF ADVANCE,"17,525.20",FISCAL YEAR 2011,"","","","BERENS,KELLY E"
,OFFICE OF THE MINORITY LEADER,2011Q1,PERSONNEL COMPENSATION,"","BERNARDS, STACEY F",01/03/11,03/31/11,DEPUTY CHIEF OF STAFF,"38,817.77",FISCAL YEAR 2011,"","","","BERNARDS, STACEY F"
,OFFICE OF THE MINORITY LEADER,2011Q1,PERSONNEL COMPENSATION,"","BLOOM, MICHAEL T",01/03/11,01/31/11,POLICY ASSISTANT,"6,017.12",FISCAL YEAR 2011,"","","","BLOOM, MICHAEL T"
,OFFICE OF THE MINORITY LEADER,2011Q1,PERSONNEL COMPENSATION,"","BLOOM, MICHAEL T",02/01/11,03/31/11,DEPUTY POLICY DIRECTOR,"12,893.84",FISCAL YEAR 2011,"","","","BLOOM, MICHAEL T"
,OFFICE OF THE MINORITY LEADER,2011Q1,PERSONNEL COMPENSATION,"","CASHMAN,MARY D",01/03/11,03/31/11,ASSIST TO THE CHIEF OF STAFF,"16,273.16",FISCAL YEAR 2011,"","","","CASHMAN,MARY D"
,OFFICE OF THE MINORITY LEADER,2011Q1,PERSONNEL COMPENSATION,"","CHAPLIN, KRISTEN F",01/01/11,01/02/11,DIR OF SCHEDLNG & SPEC EVENTS,541.67,FISCAL YEAR 2011,"","","","CHAPLIN, KRISTEN F"
,OFFICE OF THE MINORITY LEADER,2011Q1,PERSONNEL COMPENSATION,"","CHERRY,STEPHANIE",01/03/11,03/31/11,PRESS ADVISOR,"16,340.87",FISCAL YEAR 2011,"","","","CHERRY,STEPHANIE"
,OFFICE OF THE MINORITY LEADER,2011Q1,PERSONNEL COMPENSATION,"","COVEY-BRANDT, ALEXIS",01/03/11,03/31/11,FLOOR DIRECTOR,"35,151.10",FISCAL YEAR 2011,"","","","COVEY-BRANDT, ALEXIS"
,OFFICE OF THE MINORITY LEADER,2011Q1,PERSONNEL COMPENSATION,"","CRANFORD III, JAY N",01/01/11,01/02/11,POLICY ADVISOR,868.33,FISCAL YEAR 2011,"","","","CRANFORD III, JAY N"
,OFFICE OF THE MINORITY LEADER,2011Q1,PERSONNEL COMPENSATION,"","DEWHIRST, DIANE",01/03/11,03/31/11,SENIOR ADVISOR,"27,866.67",FISCAL YEAR 2011,"","","","DEWHIRST, DIANE"
,OFFICE OF THE MINORITY LEADER,2011Q1,PERSONNEL COMPENSATION,"","FALLON,BRIDGET C",01/03/11,03/31/11,DIRECTOR OF PROTOCOL,"28,811.93",FISCAL YEAR 2011,"","","","FALLON,BRIDGET C"
,OFFICE OF THE MINORITY LEADER,2011Q1,PERSONNEL COMPENSATION,"","GREENE,WILLIAM P",01/01/11,01/02/11,OUTREACH DIRECTOR,751.67,FISCAL YEAR 2011,"","","","GREENE,WILLIAM P"
,OFFICE OF THE MINORITY LEADER,2011Q1,PERSONNEL COMPENSATION,"","GREENER, APRIL L",01/03/11,03/31/11,RESEARCH DIRECTOR,"17,116.00",FISCAL YEAR 2011,"","","","GREENER, APRIL L"
,OFFICE OF THE MINORITY LEADER,2011Q1,PERSONNEL COMPENSATION,"","HALEY, KATHERINE C",01/01/11,01/02/11,POLICY ADVISOR,491.67,FISCAL YEAR 2011,"","","","HALEY, KATHERINE C"
,OFFICE OF THE MINORITY LEADER,2011Q1,PERSONNEL COMPENSATION,"","HAYNES JR, WILFRED J",01/03/11,03/31/11,IT DIRECTOR,"23,985.37",FISCAL YEAR 2011,"","","","HAYNES JR, WILFRED J"
,OFFICE OF THE MINORITY LEADER,2011Q1,PERSONNEL COMPENSATION,"","HERRLE, CYNTHIA A",01/01/11,01/02/11,POLICY ADVISOR,790.00,FISCAL YEAR 2011,"","","","HERRLE, CYNTHIA A"
,OFFICE OF THE MINORITY LEADER,2011Q1,PERSONNEL COMPENSATION,"","KEITA,KAMILAH Z",01/03/11,03/31/11,DEPUTY INFOMATION TECH. DIRECT,"20,810.04",FISCAL YEAR 2011,"","","","KEITA,KAMILAH Z"
,OFFICE OF THE MINORITY LEADER,2011Q1,PERSONNEL COMPENSATION,"","KERR, STACY R",01/03/11,03/31/11,SPECIAL ASSISTANT,"33,876.57",FISCAL YEAR 2011,"","","","KERR, STACY R"
,OFFICE OF THE MINORITY LEADER,2011Q1,PERSONNEL COMPENSATION,"","KINZEL,WILL C",01/01/11,01/02/11,POLICY ADVISOR/COUNSEL,635.56,FISCAL YEAR 2011,"","","","KINZEL,WILL C"
,OFFICE OF THE MINORITY LEADER,2011Q1,PERSONNEL COMPENSATION,"","LAMPERT,JUSTIN",01/01/11,01/02/11,STAFF ASSISTANT,226.67,FISCAL YEAR 2011,"","","","LAMPERT,JUSTIN"
,OFFICE OF THE MINORITY LEADER,2011Q1,PERSONNEL COMPENSATION,"","LAMPERT,JUSTIN",12/01/10,12/30/10,STAFF ASSISTANT (OVERTIME),897.39,FISCAL YEAR 2011,"","","","LAMPERT,JUSTIN"
,OFFICE OF THE MINORITY LEADER,2011Q1,PERSONNEL COMPENSATION,"","LIERMAN,TERRY L",01/03/11,03/31/11,CHIEF OF STAFF,"41,873.33",FISCAL YEAR 2011,"","","","LIERMAN,TERRY L"
,OFFICE OF THE MINORITY LEADER,2011Q1,PERSONNEL COMPENSATION,"","LONG,MICHAEL G",01/03/11,03/31/11,SPECIAL ASSISTANT,"13,769.80",FISCAL YEAR 2011,"","","","LONG,MICHAEL G"
,OFFICE OF THE MINORITY LEADER,2011Q1,PERSONNEL COMPENSATION,"","LOPER,BRETT S",01/01/11,01/02/11,POLICY DIRECTOR,"1,754.28",FISCAL YEAR 2011,"","","","LOPER,BRETT S"
,OFFICE OF THE MINORITY LEADER,2011Q1,PERSONNEL COMPENSATION,"","LOZUPONE, AMY S",01/01/11,01/02/11,DEP. CHIEF OF STAFF FOR ADMIN,794.44,FISCAL YEAR 2011,"","","","LOZUPONE, AMY S"
,OFFICE OF THE MINORITY LEADER,2011Q1,PERSONNEL COMPENSATION,"","MANATOS, ANASTASIOS",01/03/11,03/31/11,DEP.DIR-MEM.SRV/OUTREACH,"23,411.17",FISCAL YEAR 2011,"","","","MANATOS, ANASTASIOS"
,OFFICE OF THE MINORITY LEADER,2011Q1,PERSONNEL COMPENSATION,"","MANGRUM, PEARL J",01/03/11,03/31/11,FINANCIAL ADMINISTRATOR,"11,611.10",FISCAL YEAR 2011,"","","","MANGRUM, PEARL J"
,OFFICE OF THE MINORITY LEADER,2011Q1,PERSONNEL COMPENSATION,"","O'NEILL, CATLIN W",01/03/11,03/31/11,DEPUTY DIR LEG OPERATIONS,"13,656.51",FISCAL YEAR 2011,"","","","O'NEILL, CATLIN W"
,OFFICE OF THE MINORITY LEADER,2011Q1,PERSONNEL COMPENSATION,"","PAULSON, JUDY K",01/01/11,01/02/11,FINANCIAL ADMINISTRATOR,180.56,FISCAL YEAR 2011,"","","","PAULSON, JUDY K"
,OFFICE OF THE MINORITY LEADER,2011Q1,PERSONNEL COMPENSATION,"","PEPPER, LORI J",01/03/11,03/31/11,POLICY ADVISOR,"30,555.56",FISCAL YEAR 2011,"","","","PEPPER, LORI J"
,OFFICE OF THE MINORITY LEADER,2011Q1,PERSONNEL COMPENSATION,"","PORTER, EMILY S",01/01/11,01/02/11,POLICY ADVISOR,611.11,FISCAL YEAR 2011,"","","","PORTER, EMILY S"
,OFFICE OF THE MINORITY LEADER,2011Q1,PERSONNEL COMPENSATION,"","POWELL,JONATHAN M",01/03/11,03/31/11,DEPUTY SPEECHWRITER,"15,021.60",FISCAL YEAR 2011,"","","","POWELL,JONATHAN M"
,OFFICE OF THE MINORITY LEADER,2011Q1,PERSONNEL COMPENSATION,"","REPKO,MARY F",01/03/11,03/31/11,SENIOR POLICY ADVISOR,"32,217.77",FISCAL YEAR 2011,"","","","REPKO,MARY F"
,OFFICE OF THE MINORITY LEADER,2011Q1,PERSONNEL COMPENSATION,"","RICCI,MICHAEL",01/01/11,01/02/11,DEPUTY COMMUNICATIONS DIRECTOR,700.00,FISCAL YEAR 2011,"","","","RICCI,MICHAEL"
,OFFICE OF THE MINORITY LEADER,2011Q1,PERSONNEL COMPENSATION,"","ROLLAND,STACEY L",01/03/11,03/31/11,POLICY ADVISOR - TAX,"29,333.33",FISCAL YEAR 2011,"","","","ROLLAND,STACEY L"
,OFFICE OF THE MINORITY LEADER,2011Q1,PERSONNEL COMPENSATION,"","ROMICK, BRIAN",01/03/11,03/31/11,MEMBER SERVICES DIRECTOR,"35,151.10",FISCAL YEAR 2011,"","","","ROMICK, BRIAN"
,OFFICE OF THE MINORITY LEADER,2011Q1,PERSONNEL COMPENSATION,"","SANCHEZ, CARLOS S",01/03/11,03/31/11,PRESS ADVISOR,"15,684.77",FISCAL YEAR 2011,"","","","SANCHEZ, CARLOS S"
,OFFICE OF THE MINORITY LEADER,2011Q1,PERSONNEL COMPENSATION,"","SAUNDERS,GRANT H",01/01/11,01/02/11,STAFF ASSISTANT,194.44,FISCAL YEAR 2011,"","","","SAUNDERS,GRANT H"
,OFFICE OF THE MINORITY LEADER,2011Q1,PERSONNEL COMPENSATION,"","SAUNDERS,GRANT H",12/01/10,12/30/10,STAFF ASSISTANT (OVERTIME),"1,855.15",FISCAL YEAR 2011,"","","","SAUNDERS,GRANT H"
,OFFICE OF THE MINORITY LEADER,2011Q1,PERSONNEL COMPENSATION,"","SHYU,ELISA",01/03/11,01/31/11,ADVANCE ASSISTANT,"3,973.59",FISCAL YEAR 2011,"","","","SHYU,ELISA"
,OFFICE OF THE MINORITY LEADER,2011Q1,PERSONNEL COMPENSATION,"","SHYU,ELISA",02/01/11,03/31/11,SPECIAL ASST TO THE LEADER,"8,514.84",FISCAL YEAR 2011,"","","","SHYU,ELISA"
,OFFICE OF THE MINORITY LEADER,2011Q1,PERSONNEL COMPENSATION,"","SKEWES-COX,CHRISTINA J",03/01/11,03/31/11,OUTREACH MGR/SPEC ASST,"1,000.00",FISCAL YEAR 2011,"","","","SKEWES-COX,CHRISTINA J"
,OFFICE OF THE MINORITY LEADER,2011Q1,PERSONNEL COMPENSATION,"","STEWART, DAVID B",01/01/11,01/02/11,POLICY ADVISOR,736.11,FISCAL YEAR 2011,"","","","STEWART, DAVID B"
,OFFICE OF THE MINORITY LEADER,2011Q1,PERSONNEL COMPENSATION,"","STEWART, JENNIFER M",01/01/11,01/02/11,POLICY ADVISOR,611.11,FISCAL YEAR 2011,"","","","STEWART, JENNIFER M"
,OFFICE OF THE MINORITY LEADER,2011Q1,PERSONNEL COMPENSATION,"","STRUNK, JEFFREY A",01/01/11,01/02/11,FLOOR ASSISTANT,280.56,FISCAL YEAR 2011,"","","","STRUNK, JEFFREY A"
,OFFICE OF THE MINORITY LEADER,2011Q1,PERSONNEL COMPENSATION,"","THORNELL,DOUGLASS",01/03/11,01/31/11,PRESS STAFF,"9,049.77",FISCAL YEAR 2011,"","","","THORNELL,DOUGLASS"
,OFFICE OF THE MINORITY LEADER,2011Q1,PERSONNEL COMPENSATION,"","THORSEN, ANNE B",01/01/11,01/02/11,DEPUTY DIR LEG OPERATIONS,608.33,FISCAL YEAR 2011,"","","","THORSEN, ANNE B"
,OFFICE OF THE MINORITY LEADER,2011Q1,PERSONNEL COMPENSATION,"","VEITCH, ALEXANDRA N",01/03/11,03/31/11,DIRECTOR OF SPEECHWRITING,"27,539.60",FISCAL YEAR 2011,"","","","VEITCH, ALEXANDRA N"
,OFFICE OF THE MINORITY LEADER,2011Q1,PERSONNEL COMPENSATION,"","WIDMANN,MICHELLE C",01/03/11,02/28/11,STAFF ASSISTANT,"4,950.30",FISCAL YEAR 2011,"","","","WIDMANN,MICHELLE C"
,OFFICE OF THE MINORITY LEADER,2011Q1,PERSONNEL COMPENSATION,"","WIDMANN,MICHELLE C",02/01/11,02/28/11,STAFF ASSISTANT (OTHER COMPENSATION),"2,560.50",FISCAL YEAR 2011,"","","","WIDMANN,MICHELLE C"
,OFFICE OF THE MINORITY LEADER,2011Q1,PERSONNEL COMPENSATION,"","WOLF,ADAM J",01/01/11,01/02/11,FLOOR ASSISTANT,259.44,FISCAL YEAR 2011,"","","","WOLF,ADAM J"
,OFFICE OF THE MINORITY LEADER,2011Q1,PERSONNEL COMPENSATION,"","WOLTERS, KATE",01/03/11,03/31/11,PERSONAL ASSISTANT,"24,322.23",FISCAL YEAR 2011,"","","","WOLTERS, KATE"
,OFFICE OF THE MINORITY LEADER,2011Q1,TRAVEL,02-07,"STIVERS, JONATHAN",01/19/11,01/19/11,TAXI/PARKING/TOLLS,29.24,FISCAL YEAR 2011,AP,Accounts payable,00087759,"STIVERS, JONATHAN"
,OFFICE OF THE MINORITY LEADER,2011Q1,TRAVEL,02-07,"CASHMAN,MARY D",01/26/11,01/26/11,TAXI/PARKING/TOLLS,16.00,FISCAL YEAR 2011,AP,Accounts payable,00087761,"CASHMAN,MARY D"
,OFFICE OF THE MINORITY LEADER,2011Q1,TRAVEL,02-07,"LAWRENCE, JOHN A",01/13/11,01/13/11,TAXI/PARKING/TOLLS,10.00,FISCAL YEAR 2011,AP,Accounts payable,00087762,"LAWRENCE, JOHN A"
,OFFICE OF THE MINORITY LEADER,2011Q1,TRAVEL,02-11,CITIBANK GOV CARD SERVICE,01/06/11,01/07/11,COMMERCIAL TRANSPORTATION,42.00,FISCAL YEAR 2011,AP,Accounts payable,00091724,CITIBANK GOV CARD SERVICE
,OFFICE OF THE MINORITY LEADER,2011Q1,TRAVEL,02-11,CITIBANK GOV CARD SERVICE,01/07/11,01/12/11,TRAVEL SUBSISTENCE,805.26,FISCAL YEAR 2011,AP,Accounts payable,00091728,CITIBANK GOV CARD SERVICE
,OFFICE OF THE MINORITY LEADER,2011Q1,TRAVEL,02-11,CITIBANK GOV CARD SERVICE,01/10/11,01/13/11,TRAVEL SUBSISTENCE,"1,483.49",FISCAL YEAR 2011,AP,Accounts payable,00091729,CITIBANK GOV CARD SERVICE
,OFFICE OF THE MINORITY LEADER,2011Q1,TRAVEL,02-14,"BLOOM, MICHAEL",01/20/11,01/20/11,TAXI/PARKING/TOLLS,12.00,FISCAL YEAR 2011,AP,Accounts payable,00092428,"BLOOM, MICHAEL"
,OFFICE OF THE MINORITY LEADER,2011Q1,TRAVEL,02-17,"SHYU,ELISA",01/05/11,01/27/11,TAXI/PARKING/TOLLS,162.10,FISCAL YEAR 2011,AP,Accounts payable,00094248,"SHYU,ELISA"
,OFFICE OF THE MINORITY LEADER,2011Q1,TRAVEL,03-02,"HAMMILL, ANDREW T",02/04/11,02/07/11,TRAVEL SUBSISTENCE,843.43,FISCAL YEAR 2011,AP,Accounts payable,00104770,"HAMMILL, ANDREW T"
,OFFICE OF THE MINORITY LEADER,2011Q1,TRAVEL,03-02,"HAMMILL, ANDREW T",01/22/11,01/22/11,TAXI/PARKING/TOLLS,9.00,FISCAL YEAR 2011,AP,Accounts payable,00104790,"HAMMILL, ANDREW T"
,OFFICE OF THE MINORITY LEADER,2011Q1,TRAVEL,03-03,"SANCHEZ, CARLOS S",02/22/11,02/23/11,TRAVEL SUBSISTENCE,567.48,FISCAL YEAR 2011,AP,Accounts payable,00105474,"SANCHEZ, CARLOS S"
,OFFICE OF THE MINORITY LEADER,2011Q1,TRAVEL,03-03,"MERZ, JULIE E",02/15/11,02/18/11,TRAVEL SUBSISTENCE,581.26,FISCAL YEAR 2011,AP,Accounts payable,00105483,"MERZ, JULIE E"
,OFFICE OF THE MINORITY LEADER,2011Q1,TRAVEL,03-03,"WOLTERS, KATE",02/03/11,02/08/11,TRAVEL SUBSISTENCE,"2,850.85",FISCAL YEAR 2011,AP,Accounts payable,00105484,"WOLTERS, KATE"
,OFFICE OF THE MINORITY LEADER,2011Q1,TRAVEL,03-04,"SURGEON,BINA G",01/11/11,01/11/11,TAXI/PARKING/TOLLS,10.00,FISCAL YEAR 2011,AP,Accounts payable,00107475,"SURGEON,BINA G"
,OFFICE OF THE MINORITY LEADER,2011Q1,TRAVEL,03-10,"BERENS,KELLY E",01/05/11,03/02/11,TAXI/PARKING/TOLLS,108.00,FISCAL YEAR 2011,AP,Accounts payable,00112003,"BERENS,KELLY E"
,OFFICE OF THE MINORITY LEADER,2011Q1,TRAVEL,03-16,"WOLTERS, KATE",02/21/11,02/26/11,TRAVEL SUBSISTENCE,"2,235.73",FISCAL YEAR 2011,AP,Accounts payable,00115521,"WOLTERS, KATE"
,OFFICE OF THE MINORITY LEADER,2011Q1,TRAVEL,03-16,"WOLTERS, KATE",03/06/11,03/08/11,TRAVEL SUBSISTENCE,"1,167.18",FISCAL YEAR 2011,AP,Accounts payable,00115522,"WOLTERS, KATE"
,OFFICE OF THE MINORITY LEADER,2011Q1,TRAVEL,03-16,CITIBANK GOV CARD SERVICE,02/10/11,02/25/11,TRAVEL SUBSISTENCE,"3,570.55",FISCAL YEAR 2011,AP,Accounts payable,00115545,CITIBANK GOV CARD SERVICE
,OFFICE OF THE MINORITY LEADER,2011Q1,TRAVEL,03-16,CITIBANK GOV CARD SERVICE,01/29/11,02/02/11,TRAVEL SUBSISTENCE,"2,273.19",FISCAL YEAR 2011,AP,Accounts payable,00115547,CITIBANK GOV CARD SERVICE
,OFFICE OF THE MINORITY LEADER,2011Q1,TRAVEL,03-16,CITIBANK GOV CARD SERVICE,02/03/11,03/08/11,TRAVEL SUBSISTENCE,"3,174.00",FISCAL YEAR 2011,AP,Accounts payable,00115548,CITIBANK GOV CARD SERVICE
,OFFICE OF THE MINORITY LEADER,2011Q1,TRAVEL,03-31,"SURGEON,BINA G",02/15/11,03/22/11,TAXI/PARKING/TOLLS,65.00,FISCAL YEAR 2011,AP,Accounts payable,00132683,"SURGEON,BINA G"
,OFFICE OF THE MINORITY LEADER,2011Q1,TRAVEL,03-31,"STIVERS, JONATHAN",02/15/11,03/09/11,TAXI/PARKING/TOLLS,31.00,FISCAL YEAR 2011,AP,Accounts payable,00132703,"STIVERS, JONATHAN"
,OFFICE OF THE MINORITY LEADER,2011Q1,"RENT, COMMUNICATION, UTILITIES",01-12,FEDERAL EXPRESS CORP,12/28/10,12/28/10,POSTAGE / COURIER / BOX RENTAL,7.18,FISCAL YEAR 2011,AP,Accounts payable,00069833,FEDERAL EXPRESS CORP
,OFFICE OF THE MINORITY LEADER,2011Q1,"RENT, COMMUNICATION, UTILITIES",01-12,FEDERAL EXPRESS CORP,12/30/10,12/30/10,POSTAGE / COURIER / BOX RENTAL,7.18,FISCAL YEAR 2011,AP,Accounts payable,00069833,FEDERAL EXPRESS CORP
,OFFICE OF THE MINORITY LEADER,2011Q1,"RENT, COMMUNICATION, UTILITIES",01-20,FEDERAL EXPRESS CORP,12/15/10,12/15/10,POSTAGE / COURIER / BOX RENTAL,6.08,FISCAL YEAR 2011,AP,Accounts payable,00075034,FEDERAL EXPRESS CORP
,OFFICE OF THE MINORITY LEADER,2011Q1,"RENT, COMMUNICATION, UTILITIES",01-20,FEDERAL EXPRESS CORP,12/17/10,12/17/10,POSTAGE / COURIER / BOX RENTAL,19.25,FISCAL YEAR 2011,AP,Accounts payable,00075034,FEDERAL EXPRESS CORP
,OFFICE OF THE MINORITY LEADER,2011Q1,"RENT, COMMUNICATION, UTILITIES",02-17,"EFE NEWS SERVICE, INC",02/01/11,02/28/11,NEWS WIRE SERVICE,561.15,FISCAL YEAR 2011,AP,Accounts payable,00094250,"EFE NEWS SERVICE, INC"
,OFFICE OF THE MINORITY LEADER,2011Q1,"RENT, COMMUNICATION, UTILITIES",02-22,CITIBANK GOV CARD SERVICE,12/29/10,12/29/10,UTILITIES,50.00,FISCAL YEAR 2011,AP,Accounts payable,00100221,CITIBANK GOV CARD SERVICE
,OFFICE OF THE MINORITY LEADER,2011Q1,"RENT, COMMUNICATION, UTILITIES",02-25,HELLO DIRECT,12/31/10,12/31/10,TELECOMSRV/EQ/TOLL CHARGE QTY - 7,"1,655.50",FISCAL YEAR 2011,AP,Accounts payable,00101861,HELLO DIRECT
,OFFICE OF THE MINORITY LEADER,2011Q1,"RENT, COMMUNICATION, UTILITIES",03-02,"HAMMILL, ANDREW T",01/08/11,01/16/11,RECORDING (OUTSIDE),150.32,FISCAL YEAR 2011,AP,Accounts payable,00104772,"HAMMILL, ANDREW T"
,OFFICE OF THE MINORITY LEADER,2011Q1,"RENT, COMMUNICATION, UTILITIES",03-11,"EFE NEWS SERVICE, INC",03/01/11,03/31/11,NEWS WIRE SERVICE,561.15,FISCAL YEAR 2011,AP,Accounts payable,00112135,"EFE NEWS SERVICE, INC"
,OFFICE OF THE MINORITY LEADER,2011Q1,"RENT, COMMUNICATION, UTILITIES",03-31,FEDERAL EXPRESS CORP,03/04/11,03/04/11,POSTAGE / COURIER / BOX RENTAL,14.32,FISCAL YEAR 2011,AP,Accounts payable,00132685,FEDERAL EXPRESS CORP
,OFFICE OF THE MINORITY LEADER,2011Q1,"RENT, COMMUNICATION, UTILITIES",03-31,FEDERAL EXPRESS CORP,01/12/11,01/12/11,POSTAGE / COURIER / BOX RENTAL,15.30,FISCAL YEAR 2011,AP,Accounts payable,00132712,FEDERAL EXPRESS CORP
,OFFICE OF THE MINORITY LEADER,2011Q1,"RENT, COMMUNICATION, UTILITIES",03-31,FEDERAL EXPRESS CORP,02/24/11,03/01/11,POSTAGE / COURIER / BOX RENTAL,14.64,FISCAL YEAR 2011,AP,Accounts payable,00132713,FEDERAL EXPRESS CORP
,OFFICE OF THE MINORITY LEADER,2011Q1,PRINTING AND REPRODUCTION,01-25,"",01/03/11,01/03/11,PRINTING & REPRODUCTION,-61.90,FISCAL YEAR 2011,GL,General ledger,GLA0004337,""
,OFFICE OF THE MINORITY LEADER,2011Q1,PRINTING AND REPRODUCTION,01-28,"",01/01/11,01/31/11,PHOTOGRAPHIC (TRANSFER),419.00,FISCAL YEAR 2011,GL,General ledger,PIX0004500,""
,OFFICE OF THE MINORITY LEADER,2011Q1,PRINTING AND REPRODUCTION,02-07,"DAVID L. ANDRUKITUS, INC",01/05/11,01/05/11,PRINTING & REPRODUCTION,"1,440.55",FISCAL YEAR 2011,AP,Accounts payable,00088135,"DAVID L. ANDRUKITUS, INC"
,OFFICE OF THE MINORITY LEADER,2011Q1,PRINTING AND REPRODUCTION,02-07,"DAVID L. ANDRUKITUS, INC",01/25/11,01/25/11,PRINTING & REPRODUCTION,279.50,FISCAL YEAR 2011,AP,Accounts payable,00088136,"DAVID L. ANDRUKITUS, INC"
,OFFICE OF THE MINORITY LEADER,2011Q1,PRINTING AND REPRODUCTION,02-28,"",02/01/11,02/28/11,PHOTOGRAPHIC (TRANSFER),384.10,FISCAL YEAR 2011,GL,General ledger,PIX0005896,""
,OFFICE OF THE MINORITY LEADER,2011Q1,PRINTING AND REPRODUCTION,03-02,"DAVID L. ANDRUKITUS, INC",02/14/11,02/14/11,PRINTING & REPRODUCTION,179.50,FISCAL YEAR 2011,AP,Accounts payable,00104776,"DAVID L. ANDRUKITUS, INC"
,OFFICE OF THE MINORITY LEADER,2011Q1,PRINTING AND REPRODUCTION,03-02,"DAVID L. ANDRUKITUS, INC",02/15/11,02/15/11,PRINTING & REPRODUCTION,712.50,FISCAL YEAR 2011,AP,Accounts payable,00104777,"DAVID L. ANDRUKITUS, INC"
,OFFICE OF THE MINORITY LEADER,2011Q1,PRINTING AND REPRODUCTION,03-02,"DAVID L. ANDRUKITUS, INC",02/15/11,02/15/11,PRINTING & REPRODUCTION,357.50,FISCAL YEAR 2011,AP,Accounts payable,00104778,"DAVID L. ANDRUKITUS, INC"
,OFFICE OF THE MINORITY LEADER,2011Q1,PRINTING AND REPRODUCTION,03-10,"SANCHEZ, CARLOS S",02/24/11,02/25/11,PRINTING & REPRODUCTION,52.72,FISCAL YEAR 2011,AP,Accounts payable,00112002,"SANCHEZ, CARLOS S"
,OFFICE OF THE MINORITY LEADER,2011Q1,PRINTING AND REPRODUCTION,03-31,"",03/01/11,03/31/11,PHOTOGRAPHIC (TRANSFER),602.00,FISCAL YEAR 2011,GL,General ledger,PIX0007205,""
,OFFICE OF THE MINORITY LEADER,2011Q1,OTHER SERVICES,02-07,"NEAL R. GROSS & CO, INC",01/18/11,01/18/11,STENOGRAPHIC REPORTING,"1,500.00",FISCAL YEAR 2011,AP,Accounts payable,00088118,"NEAL R. GROSS & CO, INC"
,OFFICE OF THE MINORITY LEADER,2011Q1,OTHER SERVICES,02-10,BERNARD RAIMO,01/01/11,01/31/11,CONSULTANT CONTRACT SERVICE,"7,628.00",FISCAL YEAR 2011,AP,Accounts payable,00089884,BERNARD RAIMO
,OFFICE OF THE MINORITY LEADER,2011Q1,OTHER SERVICES,02-17,"NEAL R. GROSS & CO, INC",02/02/11,02/02/11,STENOGRAPHIC REPORTING,"1,500.00",FISCAL YEAR 2011,AP,Accounts payable,00094245,"NEAL R. GROSS & CO, INC"
,OFFICE OF THE MINORITY LEADER,2011Q1,OTHER SERVICES,03-03,BLACKBAUD,02/06/11,03/05/11,"WEB DEV HST,EMAIL & RLTD SERV","3,092.25",FISCAL YEAR 2011,AP,Accounts payable,00105469,BLACKBAUD
,OFFICE OF THE MINORITY LEADER,2011Q1,OTHER SERVICES,03-03,BERNARD RAIMO,02/01/11,02/28/11,CONSULTANT CONTRACT SERVICE,"7,628.00",FISCAL YEAR 2011,AP,Accounts payable,00105475,BERNARD RAIMO
,OFFICE OF THE MINORITY LEADER,2011Q1,OTHER SERVICES,03-04,"NEAL R. GROSS & CO, INC",02/28/11,02/28/11,STENOGRAPHIC REPORTING,"1,500.00",FISCAL YEAR 2011,AP,Accounts payable,00107477,"NEAL R. GROSS & CO, INC"
,OFFICE OF THE MINORITY LEADER,2011Q1,OTHER SERVICES,03-11,"NEAL R. GROSS & CO, INC",02/28/11,02/28/11,STENOGRAPHIC REPORTING,"1,200.00",FISCAL YEAR 2011,AP,Accounts payable,00112134,"NEAL R. GROSS & CO, INC"
,OFFICE OF THE MINORITY LEADER,2011Q1,SUPPLIES AND MATERIALS,01-12,JOE RAGAN'S COFFEE LTD,12/02/10,12/02/10,BOTTLED WATER,17.85,FISCAL YEAR 2011,AP,Accounts payable,00068872,JOE RAGAN'S COFFEE LTD
,OFFICE OF THE MINORITY LEADER,2011Q1,SUPPLIES AND MATERIALS,01-12,JOE RAGAN'S COFFEE LTD,12/07/10,12/07/10,BOTTLED WATER,17.85,FISCAL YEAR 2011,AP,Accounts payable,00068873,JOE RAGAN'S COFFEE LTD
,OFFICE OF THE MINORITY LEADER,2011Q1,SUPPLIES AND MATERIALS,01-12,JOE RAGAN'S COFFEE LTD,12/07/10,12/07/10,BOTTLED WATER,37.85,FISCAL YEAR 2011,AP,Accounts payable,00068874,JOE RAGAN'S COFFEE LTD
,OFFICE OF THE MINORITY LEADER,2011Q1,SUPPLIES AND MATERIALS,01-12,JOE RAGAN'S COFFEE LTD,12/16/10,12/16/10,BOTTLED WATER,36.00,FISCAL YEAR 2011,AP,Accounts payable,00068875,JOE RAGAN'S COFFEE LTD
,OFFICE OF THE MINORITY LEADER,2011Q1,SUPPLIES AND MATERIALS,01-12,JOE RAGAN'S COFFEE LTD,12/02/10,12/02/10,FOOD & BEVERAGE,733.15,FISCAL YEAR 2011,AP,Accounts payable,00068876,JOE RAGAN'S COFFEE LTD
,OFFICE OF THE MINORITY LEADER,2011Q1,SUPPLIES AND MATERIALS,01-12,JOE RAGAN'S COFFEE LTD,12/14/10,12/14/10,FOOD & BEVERAGE,506.89,FISCAL YEAR 2011,AP,Accounts payable,00068877,JOE RAGAN'S COFFEE LTD
,OFFICE OF THE MINORITY LEADER,2011Q1,SUPPLIES AND MATERIALS,01-12,JOE RAGAN'S COFFEE LTD,12/21/10,12/21/10,FOOD & BEVERAGE,"1,721.75",FISCAL YEAR 2011,AP,Accounts payable,00068878,JOE RAGAN'S COFFEE LTD
,OFFICE OF THE MINORITY LEADER,2011Q1,SUPPLIES AND MATERIALS,01-19,CITIBANK GOV CARD SERVICE,11/29/10,12/19/10,FOOD & BEVERAGE,"9,404.16",FISCAL YEAR 2011,AP,Accounts payable,00072708,CITIBANK GOV CARD SERVICE
,OFFICE OF THE MINORITY LEADER,2011Q1,SUPPLIES AND MATERIALS,01-19,CITIBANK GOV CARD SERVICE,12/01/10,12/12/10,PUBLICATIONS/REFERENCE MAT'L,219.22,FISCAL YEAR 2011,AP,Accounts payable,00072709,CITIBANK GOV CARD SERVICE
,OFFICE OF THE MINORITY LEADER,2011Q1,SUPPLIES AND MATERIALS,01-19,CAPITOL HOST,12/06/10,12/06/10,FOOD & BEVERAGE,63.00,FISCAL YEAR 2011,AP,Accounts payable,00072710,CAPITOL HOST
,OFFICE OF THE MINORITY LEADER,2011Q1,SUPPLIES AND MATERIALS,01-31,"MIN, JAMES B",01/06/11,01/06/11,FOOD & BEVERAGE,220.00,FISCAL YEAR 2011,AP,Accounts payable,00082300,"MIN, JAMES B"
,OFFICE OF THE MINORITY LEADER,2011Q1,SUPPLIES AND MATERIALS,02-07,"E & E PUBLISHING, LLC",01/03/11,01/02/12,PUBLICATIONS/REFERENCE MAT'L,"5,475.00",FISCAL YEAR 2011,AP,Accounts payable,00087120,"E & E PUBLISHING, LLC"
,OFFICE OF THE MINORITY LEADER,2011Q1,SUPPLIES AND MATERIALS,02-07,LEXIS-NEXIS,01/03/11,01/02/12,PUBLICATIONS/REFERENCE MAT'L,"18,700.00",FISCAL YEAR 2011,AP,Accounts payable,00087122,LEXIS-NEXIS
,OFFICE OF THE MINORITY LEADER,2011Q1,SUPPLIES AND MATERIALS,02-07,"NATIONAL JOURNAL GROUP, INC",01/30/11,01/29/12,PUBLICATIONS/REFERENCE MAT'L,"2,097.00",FISCAL YEAR 2011,AP,Accounts payable,00087123,"NATIONAL JOURNAL GROUP, INC"
,OFFICE OF THE MINORITY LEADER,2011Q1,SUPPLIES AND MATERIALS,02-07,PR NEWSWIRE,01/01/11,01/31/11,PUBLICATIONS/REFERENCE MAT'L,"1,000.00",FISCAL YEAR 2011,AP,Accounts payable,00087424,PR NEWSWIRE
,OFFICE OF THE MINORITY LEADER,2011Q1,SUPPLIES AND MATERIALS,02-07,"LEADERSHIP DIRECTORIES, INC",03/01/11,02/29/12,PUBLICATIONS/REFERENCE MAT'L,893.00,FISCAL YEAR 2011,AP,Accounts payable,00088114,"LEADERSHIP DIRECTORIES, INC"
,OFFICE OF THE MINORITY LEADER,2011Q1,SUPPLIES AND MATERIALS,02-07,"SOUTHWEST DISTRIBUTION, INC",01/01/11,03/31/11,PUBLICATIONS/REFERENCE MAT'L,"3,767.00",FISCAL YEAR 2011,AP,Accounts payable,00088115,"SOUTHWEST DISTRIBUTION, INC"
,OFFICE OF THE MINORITY LEADER,2011Q1,SUPPLIES AND MATERIALS,02-07,BURRELLE`S INFORMATION,01/01/11,01/31/11,PUBLICATIONS/REFERENCE MAT'L,673.01,FISCAL YEAR 2011,AP,Accounts payable,00088116,BURRELLE`S INFORMATION
,OFFICE OF THE MINORITY LEADER,2011Q1,SUPPLIES AND MATERIALS,02-07,"EFE NEWS SERVICE, INC",01/01/11,01/31/11,PUBLICATIONS/REFERENCE MAT'L,561.15,FISCAL YEAR 2011,AP,Accounts payable,00088117,"EFE NEWS SERVICE, INC"
,OFFICE OF THE MINORITY LEADER,2011Q1,SUPPLIES AND MATERIALS,02-07,MILLICENT BLUFORD,01/05/11,01/05/11,HABITATION EXPENSE,250.00,FISCAL YEAR 2011,AP,Accounts payable,00088128,MILLICENT BLUFORD
,OFFICE OF THE MINORITY LEADER,2011Q1,SUPPLIES AND MATERIALS,02-07,MILLICENT BLUFORD,01/11/11,01/11/11,HABITATION EXPENSE,250.00,FISCAL YEAR 2011,AP,Accounts payable,00088129,MILLICENT BLUFORD
,OFFICE OF THE MINORITY LEADER,2011Q1,SUPPLIES AND MATERIALS,02-07,MILLICENT BLUFORD,01/17/11,01/17/11,HABITATION EXPENSE,250.00,FISCAL YEAR 2011,AP,Accounts payable,00088130,MILLICENT BLUFORD
,OFFICE OF THE MINORITY LEADER,2011Q1,SUPPLIES AND MATERIALS,02-07,MILLICENT BLUFORD,01/24/11,01/24/11,HABITATION EXPENSE,250.00,FISCAL YEAR 2011,AP,Accounts payable,00088132,MILLICENT BLUFORD
,OFFICE OF THE MINORITY LEADER,2011Q1,SUPPLIES AND MATERIALS,02-07,HAGUE QUALITY WATER,01/01/11,01/31/11,BOTTLED WATER,378.00,FISCAL YEAR 2011,AP,Accounts payable,00088134,HAGUE QUALITY WATER
,OFFICE OF THE MINORITY LEADER,2011Q1,SUPPLIES AND MATERIALS,02-07,CAPITOL HOST,01/06/11,01/06/11,FOOD & BEVERAGE,120.00,FISCAL YEAR 2011,AP,Accounts payable,00088141,CAPITOL HOST
,OFFICE OF THE MINORITY LEADER,2011Q1,SUPPLIES AND MATERIALS,02-07,CAPITOL HOST,01/07/11,01/07/11,FOOD & BEVERAGE,67.50,FISCAL YEAR 2011,AP,Accounts payable,00088142,CAPITOL HOST
,OFFICE OF THE MINORITY LEADER,2011Q1,SUPPLIES AND MATERIALS,02-07,CAPITOL HOST,01/12/11,01/12/11,FOOD & BEVERAGE,112.50,FISCAL YEAR 2011,AP,Accounts payable,00088143,CAPITOL HOST
,OFFICE OF THE MINORITY LEADER,2011Q1,SUPPLIES AND MATERIALS,02-11,JOE RAGAN'S COFFEE LTD,12/29/10,12/29/10,FOOD & BEVERAGE,371.15,FISCAL YEAR 2011,AP,Accounts payable,00091335,JOE RAGAN'S COFFEE LTD
,OFFICE OF THE MINORITY LEADER,2011Q1,SUPPLIES AND MATERIALS,02-14,CITIBANK GOV CARD SERVICE,01/23/11,01/26/11,FOOD & BEVERAGE,115.56,FISCAL YEAR 2011,AP,Accounts payable,00092127,CITIBANK GOV CARD SERVICE
,OFFICE OF THE MINORITY LEADER,2011Q1,SUPPLIES AND MATERIALS,02-14,CITIBANK GOV CARD SERVICE,01/26/11,01/27/11,PUBLICATIONS/REFERENCE MAT'L,243.83,FISCAL YEAR 2011,AP,Accounts payable,00092128,CITIBANK GOV CARD SERVICE
,OFFICE OF THE MINORITY LEADER,2011Q1,SUPPLIES AND MATERIALS,02-15,MILLICENT BLUFORD,02/07/11,02/07/11,HABITATION EXPENSE,250.00,FISCAL YEAR 2011,AP,Accounts payable,00092854,MILLICENT BLUFORD
,OFFICE OF THE MINORITY LEADER,2011Q1,SUPPLIES AND MATERIALS,02-17,CRYSTAL SPRINGS,01/01/11,01/31/11,BOTTLED WATER,741.98,FISCAL YEAR 2011,AP,Accounts payable,00094242,CRYSTAL SPRINGS
,OFFICE OF THE MINORITY LEADER,2011Q1,SUPPLIES AND MATERIALS,02-17,CAPITOL HOST,01/18/11,01/18/11,FOOD & BEVERAGE,225.00,FISCAL YEAR 2011,AP,Accounts payable,00094243,CAPITOL HOST
,OFFICE OF THE MINORITY LEADER,2011Q1,SUPPLIES AND MATERIALS,02-17,CAPITOL HOST,01/20/11,01/20/11,FOOD & BEVERAGE,45.00,FISCAL YEAR 2011,AP,Accounts payable,00094244,CAPITOL HOST
,OFFICE OF THE MINORITY LEADER,2011Q1,SUPPLIES AND MATERIALS,02-17,CAPITOL HOST,01/26/11,01/26/11,FOOD & BEVERAGE,49.50,FISCAL YEAR 2011,AP,Accounts payable,00094249,CAPITOL HOST
,OFFICE OF THE MINORITY LEADER,2011Q1,SUPPLIES AND MATERIALS,02-17,NATIONAL NEWS,04/01/11,06/30/11,PUBLICATIONS/REFERENCE MAT'L,"2,239.48",FISCAL YEAR 2011,AP,Accounts payable,00094253,NATIONAL NEWS
,OFFICE OF THE MINORITY LEADER,2011Q1,SUPPLIES AND MATERIALS,03-01,CQ ROLL CALL GROUP,01/14/11,01/13/12,PUBLICATIONS/REFERENCE MAT'L,"64,945.00",FISCAL YEAR 2011,AP,Accounts payable,00103308,CQ ROLL CALL GROUP
,OFFICE OF THE MINORITY LEADER,2011Q1,SUPPLIES AND MATERIALS,03-02,MILLICENT BLUFORD,02/14/11,02/14/11,HABITATION EXPENSE,250.00,FISCAL YEAR 2011,AP,Accounts payable,00104782,MILLICENT BLUFORD
,OFFICE OF THE MINORITY LEADER,2011Q1,SUPPLIES AND MATERIALS,03-03,HAGUE QUALITY WATER,02/01/11,02/28/11,BOTTLED WATER,378.00,FISCAL YEAR 2011,AP,Accounts payable,00105470,HAGUE QUALITY WATER
,OFFICE OF THE MINORITY LEADER,2011Q1,SUPPLIES AND MATERIALS,03-03,HAGUE QUALITY WATER,01/02/11,01/10/11,BOTTLED WATER,350.00,FISCAL YEAR 2011,AP,Accounts payable,00105471,HAGUE QUALITY WATER
,OFFICE OF THE MINORITY LEADER,2011Q1,SUPPLIES AND MATERIALS,03-03,HAGUE QUALITY WATER,01/03/11,01/03/11,BOTTLED WATER,125.00,FISCAL YEAR 2011,AP,Accounts payable,00105472,HAGUE QUALITY WATER
,OFFICE OF THE MINORITY LEADER,2011Q1,SUPPLIES AND MATERIALS,03-03,MILLICENT BLUFORD,01/28/11,01/28/11,HABITATION EXPENSE,250.00,FISCAL YEAR 2011,AP,Accounts payable,00105482,MILLICENT BLUFORD
,OFFICE OF THE MINORITY LEADER,2011Q1,SUPPLIES AND MATERIALS,03-04,"SURGEON,BINA G",01/10/11,01/11/11,FOOD & BEVERAGE,58.59,FISCAL YEAR 2011,AP,Accounts payable,00107472,"SURGEON,BINA G"
,OFFICE OF THE MINORITY LEADER,2011Q1,SUPPLIES AND MATERIALS,03-04,BURRELLE`S INFORMATION,02/01/11,02/28/11,PUBLICATIONS/REFERENCE MAT'L,482.08,FISCAL YEAR 2011,AP,Accounts payable,00107478,BURRELLE`S INFORMATION
,OFFICE OF THE MINORITY LEADER,2011Q1,SUPPLIES AND MATERIALS,03-08,"CHAPLIN, KRISTEN F",01/02/11,01/02/11,FOOD & BEVERAGE,34.56,FISCAL YEAR 2011,AP,Accounts payable,00108466,"CHAPLIN, KRISTEN F"
,OFFICE OF THE MINORITY LEADER,2011Q1,SUPPLIES AND MATERIALS,03-11,CITIBANK GOV CARD SERVICE,01/28/11,01/28/11,OFFICE SUPPLIES (OUTSIDE),550.00,FISCAL YEAR 2011,AP,Accounts payable,00112125,CITIBANK GOV CARD SERVICE
,OFFICE OF THE MINORITY LEADER,2011Q1,SUPPLIES AND MATERIALS,03-11,CITIBANK GOV CARD SERVICE,02/01/11,02/27/11,FOOD & BEVERAGE,840.09,FISCAL YEAR 2011,AP,Accounts payable,00112126,CITIBANK GOV CARD SERVICE
,OFFICE OF THE MINORITY LEADER,2011Q1,SUPPLIES AND MATERIALS,03-11,CITIBANK GOV CARD SERVICE,02/11/11,02/17/11,OFFICE SUPPLIES (OUTSIDE),45.38,FISCAL YEAR 2011,AP,Accounts payable,00112128,CITIBANK GOV CARD SERVICE
,OFFICE OF THE MINORITY LEADER,2011Q1,SUPPLIES AND MATERIALS,03-11,CAPITOL HOST,02/09/11,02/09/11,FOOD & BEVERAGE,33.00,FISCAL YEAR 2011,AP,Accounts payable,00112132,CAPITOL HOST
,OFFICE OF THE MINORITY LEADER,2011Q1,SUPPLIES AND MATERIALS,03-11,CRYSTAL SPRINGS,01/20/11,02/10/11,FOOD & BEVERAGE,898.03,FISCAL YEAR 2011,AP,Accounts payable,00112133,CRYSTAL SPRINGS
,OFFICE OF THE MINORITY LEADER,2011Q1,SUPPLIES AND MATERIALS,03-16,CAPITOL HOST,02/16/11,02/16/11,FOOD & BEVERAGE,49.50,FISCAL YEAR 2011,AP,Accounts payable,00115525,CAPITOL HOST
,OFFICE OF THE MINORITY LEADER,2011Q1,SUPPLIES AND MATERIALS,03-16,MILLICENT BLUFORD,03/09/11,03/09/11,HABITATION EXPENSE,250.00,FISCAL YEAR 2011,AP,Accounts payable,00115527,MILLICENT BLUFORD
,OFFICE OF THE MINORITY LEADER,2011Q1,SUPPLIES AND MATERIALS,03-31,MILLICENT BLUFORD,03/14/11,03/14/11,HABITATION EXPENSE,250.00,FISCAL YEAR 2011,AP,Accounts payable,00132709,MILLICENT BLUFORD
,OFFICE OF THE MINORITY LEADER,2011Q1,SUPPLIES AND MATERIALS,03-31,"SOUTHWEST DISTRIBUTION, INC",04/01/11,06/30/11,PUBLICATIONS/REFERENCE MAT'L,"3,223.60",FISCAL YEAR 2011,AP,Accounts payable,00132710,"SOUTHWEST DISTRIBUTION, INC"
,OFFICE OF THE MINORITY LEADER,2011Q1,SUPPLIES AND MATERIALS,02-15,CRYSTAL SPRINGS,06/01/07,06/30/07,BOTTLED WATER,82.17,FISCAL YEAR 2009,AP,Accounts payable,00092851,CRYSTAL SPRINGS
,OFFICE OF THE MAJORITY WHIP,2011Q1,PERSONNEL COMPENSATION,"","BERRY,TIMOTHY J",01/04/11,03/31/11,CHIEF OF STAFF,"41,687.50",FISCAL YEAR 2011,"","","","BERRY,TIMOTHY J"
,OFFICE OF THE MAJORITY WHIP,2011Q1,PERSONNEL COMPENSATION,"","PINKOS,STEPHEN M",03/01/11,03/31/11,POLICY DIR AND GENERAL COUNSEL,"13,500.00",FISCAL YEAR 2011,"","","","PINKOS,STEPHEN M"
,OFFICE OF THE MAJORITY WHIP,2011Q1,PERSONNEL COMPENSATION,"","SINGLETARY, BARVETTA",01/01/11,01/02/11,SHARED EMPLOYEE,333.33,FISCAL YEAR 2011,"","","","SINGLETARY, BARVETTA"
,OFFICE OF THE MAJORITY WHIP,2011Q1,PERSONNEL COMPENSATION,"","WATKINS, YELBERTON R",01/01/11,01/02/11,CHIEF OF STAFF,916.67,FISCAL YEAR 2011,"","","","WATKINS, YELBERTON R"
,OFFICE OF THE MAJORITY WHIP,2011Q1,PERSONNEL COMPENSATION,"","WATKINS, YELBERTON R",01/01/11,01/02/11,CHIEF OF STAFF (OTHER COMPENSATION),284.25,FISCAL YEAR 2011,"","","","WATKINS, YELBERTON R"
,OFFICE OF THE MAJORITY WHIP,2011Q1,PERSONNEL COMPENSATION,"","ANDERSON,KRISTOPHER E",01/03/11,03/31/11,DIR OF STRATEGIC COMMUNICATION,"17,366.67",FISCAL YEAR 2011,"","","","ANDERSON,KRISTOPHER E"
,OFFICE OF THE MAJORITY WHIP,2011Q1,PERSONNEL COMPENSATION,"","BARNES,FREDERIC W",01/03/11,03/31/11,FLOOR ASSISTANT,"10,766.67",FISCAL YEAR 2011,"","","","BARNES,FREDERIC W"
,OFFICE OF THE MAJORITY WHIP,2011Q1,PERSONNEL COMPENSATION,"","BIRCH, SARAH L",01/01/11,01/02/11,DIR SPECIAL PROJ./MEMBER SERV,444.44,FISCAL YEAR 2011,"","","","BIRCH, SARAH L"
,OFFICE OF THE MAJORITY WHIP,2011Q1,PERSONNEL COMPENSATION,"","BUCHANAN,NATALIE L",01/03/11,03/31/11,DEP DIR OF MEM SERV & COALITIO,"12,966.67",FISCAL YEAR 2011,"","","","BUCHANAN,NATALIE L"
,OFFICE OF THE MAJORITY WHIP,2011Q1,PERSONNEL COMPENSATION,"","CANTRELL,MARGARET",01/01/11,01/02/11,POLICY ADVISOR,500.00,FISCAL YEAR 2011,"","","","CANTRELL,MARGARET"
,OFFICE OF THE MAJORITY WHIP,2011Q1,PERSONNEL COMPENSATION,"","CANTRELL,MARGARET",01/01/11,01/02/11,POLICY ADVISOR (OTHER COMPENSATION),"7,000.00",FISCAL YEAR 2011,"","","","CANTRELL,MARGARET"
,OFFICE OF THE MAJORITY WHIP,2011Q1,PERSONNEL COMPENSATION,"","CANTRELL,MARGARET",10/01/10,10/31/10,POLICY ADVISOR (OTHER COMPENSATION),"2,500.00",FISCAL YEAR 2011,"","","","CANTRELL,MARGARET"
,OFFICE OF THE MAJORITY WHIP,2011Q1,PERSONNEL COMPENSATION,"","CANTRELL,MARGARET",01/01/11,01/02/11,POLICY ADVISOR (OTHER COMPENSATION),"3,750.00",FISCAL YEAR 2011,"","","","CANTRELL,MARGARET"
,OFFICE OF THE MAJORITY WHIP,2011Q1,PERSONNEL COMPENSATION,"","CAREY,BRITTANY M",01/18/11,03/31/11,STAFF ASSISTANT,"6,583.33",FISCAL YEAR 2011,"","","","CAREY,BRITTANY M"
,OFFICE OF THE MAJORITY WHIP,2011Q1,PERSONNEL COMPENSATION,"","COLLINS, MICHAEL E",01/01/11,01/02/11,CHIEF DEPUTY WHIP,236.11,FISCAL YEAR 2011,"","","","COLLINS, MICHAEL E"
,OFFICE OF THE MAJORITY WHIP,2011Q1,PERSONNEL COMPENSATION,"","DAY,TAMIKA K",01/01/11,01/02/11,SYSTEMS ADMINISTRATOR,277.78,FISCAL YEAR 2011,"","","","DAY,TAMIKA K"
,OFFICE OF THE MAJORITY WHIP,2011Q1,PERSONNEL COMPENSATION,"","DIXON, KELLY A",01/24/11,03/31/11,DEPUTY DIRECTOR OF FLOOR OPERA,"16,133.33",FISCAL YEAR 2011,"","","","DIXON, KELLY A"
,OFFICE OF THE MAJORITY WHIP,2011Q1,PERSONNEL COMPENSATION,"","ELLIOTT,ERICA L",01/03/11,03/31/11,PRESS SECRETARY,"24,000.00",FISCAL YEAR 2011,"","","","ELLIOTT,ERICA L"
,OFFICE OF THE MAJORITY WHIP,2011Q1,PERSONNEL COMPENSATION,"","ELLISON,MATTHEW B",01/01/11,01/02/11,STAFF ASSISTANT,166.67,FISCAL YEAR 2011,"","","","ELLISON,MATTHEW B"
,OFFICE OF THE MAJORITY WHIP,2011Q1,PERSONNEL COMPENSATION,"","GRECO, KRISTINE M",01/01/11,01/02/11,COMMUNICATIONS DIRECTOR,722.22,FISCAL YEAR 2011,"","","","GRECO, KRISTINE M"
,OFFICE OF THE MAJORITY WHIP,2011Q1,PERSONNEL COMPENSATION,"","HACKER,MICHAEL E",01/01/11,01/02/11,DEP FLOOR DIR FOR COALITIONS,666.67,FISCAL YEAR 2011,"","","","HACKER,MICHAEL E"
,OFFICE OF THE MAJORITY WHIP,2011Q1,PERSONNEL COMPENSATION,"","HARRISON, ANTONIO L",01/01/11,01/02/11,DIRECTOR OF OUTREACH,555.56,FISCAL YEAR 2011,"","","","HARRISON, ANTONIO L"
,OFFICE OF THE MAJORITY WHIP,2011Q1,PERSONNEL COMPENSATION,"","HARRISON, ANTONIO L",01/01/11,01/02/11,DIRECTOR OF OUTREACH (OTHER COMPENSATION),"7,777.78",FISCAL YEAR 2011,"","","","HARRISON, ANTONIO L"
,OFFICE OF THE MAJORITY WHIP,2011Q1,PERSONNEL COMPENSATION,"","HARRISON, ANTONIO L",12/01/10,12/31/10,DIRECTOR OF OUTREACH (OTHER COMPENSATION),"2,500.00",FISCAL YEAR 2011,"","","","HARRISON, ANTONIO L"
,OFFICE OF THE MAJORITY WHIP,2011Q1,PERSONNEL COMPENSATION,"","HARRISON, ANTONIO L",01/01/11,01/02/11,DIRECTOR OF OUTREACH (OTHER COMPENSATION),"2,541.33",FISCAL YEAR 2011,"","","","HARRISON, ANTONIO L"
,OFFICE OF THE MAJORITY WHIP,2011Q1,PERSONNEL COMPENSATION,"","HARTMAN, WENDY A",01/01/11,01/02/11,SHARED EMPLOYEE,444.44,FISCAL YEAR 2011,"","","","HARTMAN, WENDY A"
,OFFICE OF THE MAJORITY WHIP,2011Q1,PERSONNEL COMPENSATION,"","HARTMAN, WENDY A",12/01/10,12/20/10,SHARED EMPLOYEE (OTHER COMPENSATION),"2,500.00",FISCAL YEAR 2011,"","","","HARTMAN, WENDY A"
,OFFICE OF THE MAJORITY WHIP,2011Q1,PERSONNEL COMPENSATION,"","HARTMAN, WENDY A",01/01/11,01/02/11,SHARED EMPLOYEE (OTHER COMPENSATION),"6,666.67",FISCAL YEAR 2011,"","","","HARTMAN, WENDY A"
,OFFICE OF THE MAJORITY WHIP,2011Q1,PERSONNEL COMPENSATION,"","HENEHAN, EMILY A",01/03/11,03/31/11,POLICY ADVISOR,"20,800.00",FISCAL YEAR 2011,"","","","HENEHAN, EMILY A"
,OFFICE OF THE MAJORITY WHIP,2011Q1,PERSONNEL COMPENSATION,"","HODGE,ADAM",01/01/11,01/02/11,PRESS SECRETARY,405.56,FISCAL YEAR 2011,"","","","HODGE,ADAM"
,OFFICE OF THE MAJORITY WHIP,2011Q1,PERSONNEL COMPENSATION,"","HODGE,ADAM",12/01/10,12/20/10,PRESS SECRETARY (OTHER COMPENSATION),"2,500.00",FISCAL YEAR 2011,"","","","HODGE,ADAM"
,OFFICE OF THE MAJORITY WHIP,2011Q1,PERSONNEL COMPENSATION,"","HODGE,ADAM",01/01/11,01/02/11,PRESS SECRETARY (OTHER COMPENSATION),"6,083.33",FISCAL YEAR 2011,"","","","HODGE,ADAM"
,OFFICE OF THE MAJORITY WHIP,2011Q1,PERSONNEL COMPENSATION,"","HOWARD,BENJAMIN R",01/03/11,03/31/11,FLOOR ASSISTANT,"10,767.33",FISCAL YEAR 2011,"","","","HOWARD,BENJAMIN R"
,OFFICE OF THE MAJORITY WHIP,2011Q1,PERSONNEL COMPENSATION,"","LONG,MICHAEL P",01/25/11,03/31/11,PRESS AIDE,"7,100.00",FISCAL YEAR 2011,"","","","LONG,MICHAEL P"
,OFFICE OF THE MAJORITY WHIP,2011Q1,PERSONNEL COMPENSATION,"","MARTIN,MORGAN O",01/01/11,01/02/11,LEGISLATIVE CORRESPONDENT,160.56,FISCAL YEAR 2011,"","","","MARTIN,MORGAN O"
,OFFICE OF THE MAJORITY WHIP,2011Q1,PERSONNEL COMPENSATION,"","MEACHUM, CHARLES P",01/03/11,03/31/11,DIR OF MEMBER SERVICES,"33,500.00",FISCAL YEAR 2011,"","","","MEACHUM, CHARLES P"
,OFFICE OF THE MAJORITY WHIP,2011Q1,PERSONNEL COMPENSATION,"","METCALF, JOHN T",01/01/11,01/02/11,FLOOR DIRECTOR AND COUNSEL,805.56,FISCAL YEAR 2011,"","","","METCALF, JOHN T"
,OFFICE OF THE MAJORITY WHIP,2011Q1,PERSONNEL COMPENSATION,"","METCALF, JOHN T",01/01/11,01/02/11,FLOOR DIRECTOR AND COUNSEL (OTHER COMPENSATION),"11,277.78",FISCAL YEAR 2011,"","","","METCALF, JOHN T"
,OFFICE OF THE MAJORITY WHIP,2011Q1,PERSONNEL COMPENSATION,"","METCALF, JOHN T",01/01/11,01/02/11,FLOOR DIRECTOR AND COUNSEL (OTHER COMPENSATION),"1,950.91",FISCAL YEAR 2011,"","","","METCALF, JOHN T"
,OFFICE OF THE MAJORITY WHIP,2011Q1,PERSONNEL COMPENSATION,"","METTLER,ASHLEY",01/03/11,03/31/11,SENIOR STAFF ASSISTANT,"9,300.00",FISCAL YEAR 2011,"","","","METTLER,ASHLEY"
,OFFICE OF THE MAJORITY WHIP,2011Q1,PERSONNEL COMPENSATION,"","MIN, JAMES B",01/03/11,03/31/11,DEPUTY CHIEF OF STAFF,"18,200.00",FISCAL YEAR 2011,"","","","MIN, JAMES B"
,OFFICE OF THE MAJORITY WHIP,2011Q1,PERSONNEL COMPENSATION,"","MOORE, MIKAEL",01/01/11,01/02/11,FLOOR ASSISTANT,222.22,FISCAL YEAR 2011,"","","","MOORE, MIKAEL"
,OFFICE OF THE MAJORITY WHIP,2011Q1,PERSONNEL COMPENSATION,"","MOORE,STEVEN E",01/03/11,03/31/11,CHIEF OF STAFF TO THE DEP WHIP,"15,000.00",FISCAL YEAR 2011,"","","","MOORE,STEVEN E"
,OFFICE OF THE MAJORITY WHIP,2011Q1,PERSONNEL COMPENSATION,"","NEILL, ALLIE",01/01/11,01/02/11,DEP FLOOR DIR AND SENIOR ADVIS,694.44,FISCAL YEAR 2011,"","","","NEILL, ALLIE"
,OFFICE OF THE MAJORITY WHIP,2011Q1,PERSONNEL COMPENSATION,"","NEILL, ALLIE",01/01/11,01/02/11,DEP FLOOR DIR AND SENIOR ADVIS (OTHER COMPENSATION),"9,722.22",FISCAL YEAR 2011,"","","","NEILL, ALLIE"
,OFFICE OF THE MAJORITY WHIP,2011Q1,PERSONNEL COMPENSATION,"","NEILL, ALLIE",10/01/10,10/31/10,DEP FLOOR DIR AND SENIOR ADVIS (OTHER COMPENSATION),"2,500.00",FISCAL YEAR 2011,"","","","NEILL, ALLIE"
,OFFICE OF THE MAJORITY WHIP,2011Q1,PERSONNEL COMPENSATION,"","NEILL, ALLIE",01/01/11,01/02/11,DEP FLOOR DIR AND SENIOR ADVIS (OTHER COMPENSATION),"3,472.22",FISCAL YEAR 2011,"","","","NEILL, ALLIE"
,OFFICE OF THE MAJORITY WHIP,2011Q1,PERSONNEL COMPENSATION,"","PATAKI,TIMOTHY A",01/24/11,03/31/11,STAFF ASSISTANT,"5,525.00",FISCAL YEAR 2011,"","","","PATAKI,TIMOTHY A"
,OFFICE OF THE MAJORITY WHIP,2011Q1,PERSONNEL COMPENSATION,"","PINKOS,STEPHEN M",01/12/11,02/28/11,POLICY DIR AND GENERAL COUNSEL,"20,416.67",FISCAL YEAR 2011,"","","","PINKOS,STEPHEN M"
,OFFICE OF THE MAJORITY WHIP,2011Q1,PERSONNEL COMPENSATION,"","POMPEI,SARAH",01/03/11,03/31/11,COMMUNICATIONS DIRECTOR,"33,500.00",FISCAL YEAR 2011,"","","","POMPEI,SARAH"
,OFFICE OF THE MAJORITY WHIP,2011Q1,PERSONNEL COMPENSATION,"","SHERIDAN,KELLY A",01/01/11,01/02/11,STAFF ASSISTANT,166.67,FISCAL YEAR 2011,"","","","SHERIDAN,KELLY A"
,OFFICE OF THE MAJORITY WHIP,2011Q1,PERSONNEL COMPENSATION,"","SHERIDAN,KELLY A",12/01/10,12/20/10,STAFF ASSISTANT (OTHER COMPENSATION),"2,500.00",FISCAL YEAR 2011,"","","","SHERIDAN,KELLY A"
,OFFICE OF THE MAJORITY WHIP,2011Q1,PERSONNEL COMPENSATION,"","SHERIDAN,KELLY A",01/01/11,01/02/11,STAFF ASSISTANT (OTHER COMPENSATION),"2,500.00",FISCAL YEAR 2011,"","","","SHERIDAN,KELLY A"
,OFFICE OF THE MAJORITY WHIP,2011Q1,PERSONNEL COMPENSATION,"","STIPICEVIC, JOHN A",01/03/11,03/31/11,DIRECTOR OF FLOOR OPERATIONS,"30,333.33",FISCAL YEAR 2011,"","","","STIPICEVIC, JOHN A"
,OFFICE OF THE MAJORITY WHIP,2011Q1,PERSONNEL COMPENSATION,"","THOMPSON,DEAN J",01/03/11,01/31/11,SPECIAL ASST TO CHIEF DEPUTY W,"2,333.33",FISCAL YEAR 2011,"","","","THOMPSON,DEAN J"
,OFFICE OF THE MAJORITY WHIP,2011Q1,PERSONNEL COMPENSATION,"","THOMPSON,DEAN J",02/01/11,03/31/11,SR ADV FR WHIP OP/CHF DEP WHIP,"5,000.00",FISCAL YEAR 2011,"","","","THOMPSON,DEAN J"
,OFFICE OF THE MAJORITY WHIP,2011Q1,PERSONNEL COMPENSATION,"","WORTH,BRIAN A",01/03/11,03/31/11,DIRECTOR OF COALITIONS,"33,500.00",FISCAL YEAR 2011,"","","","WORTH,BRIAN A"
,OFFICE OF THE MAJORITY WHIP,2011Q1,PERSONNEL COMPENSATION,"","WRIGHT,ANGELA E",01/01/11,01/02/11,STAFF ASSISTANT/FELLOW,161.11,FISCAL YEAR 2011,"","","","WRIGHT,ANGELA E"
,OFFICE OF THE MAJORITY WHIP,2011Q1,PERSONNEL COMPENSATION,"","WRIGHT,ANGELA E",12/01/10,12/20/10,STAFF ASSISTANT/FELLOW (OTHER COMPENSATION),"1,000.00",FISCAL YEAR 2011,"","","","WRIGHT,ANGELA E"
,OFFICE OF THE MAJORITY WHIP,2011Q1,TRAVEL,02-07,"AVILES,DANIELLE R",01/25/11,01/25/11,TAXI/PARKING/TOLLS,21.00,FISCAL YEAR 2011,AP,Accounts payable,00087476,"AVILES,DANIELLE R"
,OFFICE OF THE MAJORITY WHIP,2011Q1,TRAVEL,02-07,"AVILES,DANIELLE R",01/25/11,01/25/11,TAXI/PARKING/TOLLS,16.00,FISCAL YEAR 2011,AP,Accounts payable,00087482,"AVILES,DANIELLE R"
,OFFICE OF THE MAJORITY WHIP,2011Q1,TRAVEL,02-09,"AVILES,DANIELLE R",01/25/11,01/25/11,TAXI/PARKING/TOLLS,15.00,FISCAL YEAR 2011,AP,Accounts payable,00089796,"AVILES,DANIELLE R"
,OFFICE OF THE MAJORITY WHIP,2011Q1,TRAVEL,02-11,"AVILES,DANIELLE R",01/26/11,01/26/11,TAXI/PARKING/TOLLS,14.00,FISCAL YEAR 2011,AP,Accounts payable,00091004,"AVILES,DANIELLE R"
,OFFICE OF THE MAJORITY WHIP,2011Q1,TRAVEL,02-23,"AVILES,DANIELLE R",01/25/11,01/25/11,TAXI/PARKING/TOLLS,-21.00,FISCAL YEAR 2011,AP,Accounts payable,00101281,"AVILES,DANIELLE R"
,OFFICE OF THE MAJORITY WHIP,2011Q1,TRAVEL,02-23,"AVILES,DANIELLE R",01/25/11,01/25/11,TAXI/PARKING/TOLLS,-16.00,FISCAL YEAR 2011,AP,Accounts payable,00101282,"AVILES,DANIELLE R"
,OFFICE OF THE MAJORITY WHIP,2011Q1,TRAVEL,02-23,"AVILES,DANIELLE R",01/25/11,01/25/11,TAXI/PARKING/TOLLS,-15.00,FISCAL YEAR 2011,AP,Accounts payable,00101283,"AVILES,DANIELLE R"
,OFFICE OF THE MAJORITY WHIP,2011Q1,TRAVEL,02-23,"AVILES,DANIELLE R",01/26/11,01/26/11,TAXI/PARKING/TOLLS,-14.00,FISCAL YEAR 2011,AP,Accounts payable,00101284,"AVILES,DANIELLE R"
,OFFICE OF THE MAJORITY WHIP,2011Q1,"RENT, COMMUNICATION, UTILITIES",01-20,FEDERAL EXPRESS CORP,12/14/10,12/14/10,POSTAGE / COURIER / BOX RENTAL,130.50,FISCAL YEAR 2011,AP,Accounts payable,00075034,FEDERAL EXPRESS CORP
,OFFICE OF THE MAJORITY WHIP,2011Q1,"RENT, COMMUNICATION, UTILITIES",01-20,FEDERAL EXPRESS CORP,12/17/10,12/17/10,POSTAGE / COURIER / BOX RENTAL,98.70,FISCAL YEAR 2011,AP,Accounts payable,00075034,FEDERAL EXPRESS CORP
,OFFICE OF THE MAJORITY WHIP,2011Q1,"RENT, COMMUNICATION, UTILITIES",01-20,FEDERAL EXPRESS CORP,12/20/10,12/20/10,POSTAGE / COURIER / BOX RENTAL,791.40,FISCAL YEAR 2011,AP,Accounts payable,00075034,FEDERAL EXPRESS CORP
,OFFICE OF THE MAJORITY WHIP,2011Q1,"RENT, COMMUNICATION, UTILITIES",03-02,FEDERAL EXPRESS CORP,12/24/10,12/24/10,POSTAGE / COURIER / BOX RENTAL,"1,020.60",FISCAL YEAR 2011,AP,Accounts payable,00104334,FEDERAL EXPRESS CORP
,OFFICE OF THE MAJORITY WHIP,2011Q1,"RENT, COMMUNICATION, UTILITIES",03-28,"",03/01/11,03/31/11,HIR GRAPHICS (TRANSFER),70.00,FISCAL YEAR 2011,GL,General ledger,GRP0006899,""
,OFFICE OF THE MAJORITY WHIP,2011Q1,PRINTING AND REPRODUCTION,02-07,"DAVID L. ANDRUKITUS, INC",01/21/11,01/21/11,PRINTING & REPRODUCTION,37.50,FISCAL YEAR 2011,AP,Accounts payable,00087473,"DAVID L. ANDRUKITUS, INC"
,OFFICE OF THE MAJORITY WHIP,2011Q1,PRINTING AND REPRODUCTION,02-07,"DAVID L. ANDRUKITUS, INC",01/31/11,01/31/11,PRINTING & REPRODUCTION,117.50,FISCAL YEAR 2011,AP,Accounts payable,00087575,"DAVID L. ANDRUKITUS, INC"
,OFFICE OF THE MAJORITY WHIP,2011Q1,PRINTING AND REPRODUCTION,02-07,"DAVID L. ANDRUKITUS, INC",01/31/11,01/31/11,PRINTING & REPRODUCTION,117.50,FISCAL YEAR 2011,AP,Accounts payable,00087576,"DAVID L. ANDRUKITUS, INC"
,OFFICE OF THE MAJORITY WHIP,2011Q1,PRINTING AND REPRODUCTION,02-07,"DAVID L. ANDRUKITUS, INC",01/28/11,01/28/11,PRINTING & REPRODUCTION,127.50,FISCAL YEAR 2011,AP,Accounts payable,00087578,"DAVID L. ANDRUKITUS, INC"
,OFFICE OF THE MAJORITY WHIP,2011Q1,PRINTING AND REPRODUCTION,02-23,"DAVID L. ANDRUKITUS, INC",01/21/11,01/21/11,PRINTING & REPRODUCTION,-37.50,FISCAL YEAR 2011,AP,Accounts payable,00101285,"DAVID L. ANDRUKITUS, INC"
,OFFICE OF THE MAJORITY WHIP,2011Q1,PRINTING AND REPRODUCTION,02-23,"DAVID L. ANDRUKITUS, INC",01/31/11,01/31/11,PRINTING & REPRODUCTION,-117.50,FISCAL YEAR 2011,AP,Accounts payable,00101286,"DAVID L. ANDRUKITUS, INC"
,OFFICE OF THE MAJORITY WHIP,2011Q1,PRINTING AND REPRODUCTION,02-23,"DAVID L. ANDRUKITUS, INC",01/31/11,01/31/11,PRINTING & REPRODUCTION,-117.50,FISCAL YEAR 2011,AP,Accounts payable,00101287,"DAVID L. ANDRUKITUS, INC"
,OFFICE OF THE MAJORITY WHIP,2011Q1,PRINTING AND REPRODUCTION,02-23,"DAVID L. ANDRUKITUS, INC",01/28/11,01/28/11,PRINTING & REPRODUCTION,-127.50,FISCAL YEAR 2011,AP,Accounts payable,00101289,"DAVID L. ANDRUKITUS, INC"
,OFFICE OF THE MAJORITY WHIP,2011Q1,PRINTING AND REPRODUCTION,02-28,"ACCURATE WORD, LLC",01/12/11,01/12/11,PRINTING & REPRODUCTION,"1,820.00",FISCAL YEAR 2011,AP,Accounts payable,00102125,"ACCURATE WORD, LLC"
,OFFICE OF THE MAJORITY WHIP,2011Q1,OTHER SERVICES,01-12,FIRESIDE21,12/01/10,12/31/10,"WEB DEV HST,EMAIL & RLTD SERV",585.00,FISCAL YEAR 2011,AP,Accounts payable,00069653,FIRESIDE21
,OFFICE OF THE MAJORITY WHIP,2011Q1,OTHER SERVICES,02-09,FIRESIDE21,01/01/11,01/31/11,"WEB DEV HST,EMAIL & RLTD SERV",585.00,FISCAL YEAR 2011,AP,Accounts payable,00089698,FIRESIDE21
,OFFICE OF THE MAJORITY WHIP,2011Q1,OTHER SERVICES,03-10,FIRESIDE21,02/01/11,02/28/11,"WEB DEV HST,EMAIL & RLTD SERV",585.00,FISCAL YEAR 2011,AP,Accounts payable,00112006,FIRESIDE21
,OFFICE OF THE MAJORITY WHIP,2011Q1,SUPPLIES AND MATERIALS,01-24,CAPITOL HOST,12/15/10,12/15/10,FOOD & BEVERAGE,649.64,FISCAL YEAR 2011,AP,Accounts payable,00078725,CAPITOL HOST
,OFFICE OF THE MAJORITY WHIP,2011Q1,SUPPLIES AND MATERIALS,01-24,CAPITOL HOST,12/02/10,12/02/10,FOOD & BEVERAGE,"3,565.28",FISCAL YEAR 2011,AP,Accounts payable,00078752,CAPITOL HOST
,OFFICE OF THE MAJORITY WHIP,2011Q1,SUPPLIES AND MATERIALS,01-24,CAPITOL HOST,12/09/10,12/09/10,FOOD & BEVERAGE,"2,156.03",FISCAL YEAR 2011,AP,Accounts payable,00078756,CAPITOL HOST
,OFFICE OF THE MAJORITY WHIP,2011Q1,SUPPLIES AND MATERIALS,01-24,"BIRCH, SARAH L",12/23/10,12/23/10,FOOD & BEVERAGE,98.56,FISCAL YEAR 2011,AP,Accounts payable,00078758,"BIRCH, SARAH L"
,OFFICE OF THE MAJORITY WHIP,2011Q1,SUPPLIES AND MATERIALS,01-25,"",01/03/11,01/03/11,OFFICE SUPPLIES (OUTSIDE),-238.50,FISCAL YEAR 2011,GL,General ledger,GLA0004337,""
,OFFICE OF THE MAJORITY WHIP,2011Q1,SUPPLIES AND MATERIALS,02-07,CAPITOL HOST,01/20/11,01/20/11,FOOD & BEVERAGE,295.44,FISCAL YEAR 2011,AP,Accounts payable,00087470,CAPITOL HOST
,OFFICE OF THE MAJORITY WHIP,2011Q1,SUPPLIES AND MATERIALS,02-07,CAPITOL HOST,01/19/11,01/19/11,FOOD & BEVERAGE,89.99,FISCAL YEAR 2011,AP,Accounts payable,00087580,CAPITOL HOST
,OFFICE OF THE MAJORITY WHIP,2011Q1,SUPPLIES AND MATERIALS,02-11,CITIBANK GOV CARD SERVICE,01/05/11,01/05/11,PUBLICATIONS/REFERENCE MAT'L,28.93,FISCAL YEAR 2011,AP,Accounts payable,00091002,CITIBANK GOV CARD SERVICE
,OFFICE OF THE MAJORITY WHIP,2011Q1,SUPPLIES AND MATERIALS,02-11,"AVILES,DANIELLE R",01/26/11,01/26/11,FOOD & BEVERAGE,7.07,FISCAL YEAR 2011,AP,Accounts payable,00091006,"AVILES,DANIELLE R"
,OFFICE OF THE MAJORITY WHIP,2011Q1,SUPPLIES AND MATERIALS,02-11,CAPITOL HOST,01/06/11,01/06/11,FOOD & BEVERAGE,89.99,FISCAL YEAR 2011,AP,Accounts payable,00091007,CAPITOL HOST
,OFFICE OF THE MAJORITY WHIP,2011Q1,SUPPLIES AND MATERIALS,02-18,"NATIONAL JOURNAL GROUP, INC",01/11/11,01/10/12,PUBLICATIONS/REFERENCE MAT'L,"2,188.00",FISCAL YEAR 2011,AP,Accounts payable,00097590,"NATIONAL JOURNAL GROUP, INC"
,OFFICE OF THE MAJORITY WHIP,2011Q1,SUPPLIES AND MATERIALS,02-18,"MIN, JAMES B",01/23/11,01/23/11,HABITATION EXPENSE,248.50,FISCAL YEAR 2011,AP,Accounts payable,00097591,"MIN, JAMES B"
,OFFICE OF THE MAJORITY WHIP,2011Q1,SUPPLIES AND MATERIALS,02-18,"MIN, JAMES B",01/24/11,01/24/11,FOOD & BEVERAGE,162.41,FISCAL YEAR 2011,AP,Accounts payable,00097592,"MIN, JAMES B"
,OFFICE OF THE MAJORITY WHIP,2011Q1,SUPPLIES AND MATERIALS,02-18,"MIN, JAMES B",01/24/11,01/24/11,FOOD & BEVERAGE,"2,243.00",FISCAL YEAR 2011,AP,Accounts payable,00097593,"MIN, JAMES B"
,OFFICE OF THE MAJORITY WHIP,2011Q1,SUPPLIES AND MATERIALS,02-18,CBC RESTAURANT CORP,01/25/11,01/25/11,FOOD & BEVERAGE,174.87,FISCAL YEAR 2011,AP,Accounts payable,00097594,CBC RESTAURANT CORP
,OFFICE OF THE MAJORITY WHIP,2011Q1,SUPPLIES AND MATERIALS,02-18,"MIN, JAMES B",02/03/11,02/03/11,FOOD & BEVERAGE,88.27,FISCAL YEAR 2011,AP,Accounts payable,00097599,"MIN, JAMES B"
,OFFICE OF THE MAJORITY WHIP,2011Q1,SUPPLIES AND MATERIALS,02-18,DEER PARK,12/27/10,01/26/11,BOTTLED WATER,182.33,FISCAL YEAR 2011,AP,Accounts payable,00097603,DEER PARK
,OFFICE OF THE MAJORITY WHIP,2011Q1,SUPPLIES AND MATERIALS,02-18,"MIN, JAMES B",02/08/11,02/08/11,FOOD & BEVERAGE,304.80,FISCAL YEAR 2011,AP,Accounts payable,00097605,"MIN, JAMES B"
,OFFICE OF THE MAJORITY WHIP,2011Q1,SUPPLIES AND MATERIALS,02-18,"MIN, JAMES B",02/14/11,02/14/11,FOOD & BEVERAGE,101.82,FISCAL YEAR 2011,AP,Accounts payable,00097606,"MIN, JAMES B"
,OFFICE OF THE MAJORITY WHIP,2011Q1,SUPPLIES AND MATERIALS,02-18,"MIN, JAMES B",02/14/11,02/14/11,FOOD & BEVERAGE,9.19,FISCAL YEAR 2011,AP,Accounts payable,00097607,"MIN, JAMES B"
,OFFICE OF THE MAJORITY WHIP,2011Q1,SUPPLIES AND MATERIALS,02-23,CAPITOL HOST,01/20/11,01/20/11,FOOD & BEVERAGE,-295.44,FISCAL YEAR 2011,AP,Accounts payable,00101291,CAPITOL HOST
,OFFICE OF THE MAJORITY WHIP,2011Q1,SUPPLIES AND MATERIALS,02-23,CAPITOL HOST,01/19/11,01/19/11,FOOD & BEVERAGE,-89.99,FISCAL YEAR 2011,AP,Accounts payable,00101292,CAPITOL HOST
,OFFICE OF THE MAJORITY WHIP,2011Q1,SUPPLIES AND MATERIALS,02-23,"AVILES,DANIELLE R",01/26/11,01/26/11,FOOD & BEVERAGE,-7.07,FISCAL YEAR 2011,AP,Accounts payable,00101293,"AVILES,DANIELLE R"
,OFFICE OF THE MAJORITY WHIP,2011Q1,SUPPLIES AND MATERIALS,02-23,CAPITOL HOST,01/06/11,01/06/11,FOOD & BEVERAGE,-89.99,FISCAL YEAR 2011,AP,Accounts payable,00101294,CAPITOL HOST
,OFFICE OF THE MAJORITY WHIP,2011Q1,SUPPLIES AND MATERIALS,02-23,CITIBANK GOV CARD SERVICE,01/05/11,01/05/11,PUBLICATIONS/REFERENCE MAT'L,-28.93,FISCAL YEAR 2011,AP,Accounts payable,00101295,CITIBANK GOV CARD SERVICE
,OFFICE OF THE MAJORITY WHIP,2011Q1,SUPPLIES AND MATERIALS,02-28,"MIN, JAMES B",01/25/11,01/25/11,FOOD & BEVERAGE,"2,879.80",FISCAL YEAR 2011,AP,Accounts payable,00102119,"MIN, JAMES B"
,OFFICE OF THE MAJORITY WHIP,2011Q1,SUPPLIES AND MATERIALS,03-09,CQ ROLL CALL GROUP,02/21/11,12/26/11,PUBLICATIONS/REFERENCE MAT'L,"11,500.00",FISCAL YEAR 2011,AP,Accounts payable,00110941,CQ ROLL CALL GROUP
,OFFICE OF THE MAJORITY WHIP,2011Q1,SUPPLIES AND MATERIALS,03-09,"MIN, JAMES B",03/04/11,03/04/11,FOOD & BEVERAGE,205.37,FISCAL YEAR 2011,AP,Accounts payable,00110943,"MIN, JAMES B"
,OFFICE OF THE MAJORITY WHIP,2011Q1,SUPPLIES AND MATERIALS,03-11,"MIN, JAMES B",02/08/11,02/08/11,FOOD & BEVERAGE,133.37,FISCAL YEAR 2011,AP,Accounts payable,00112211,"MIN, JAMES B"
,OFFICE OF THE MAJORITY WHIP,2011Q1,SUPPLIES AND MATERIALS,03-11,"MIN, JAMES B",02/08/11,02/08/11,FOOD & BEVERAGE,196.63,FISCAL YEAR 2011,AP,Accounts payable,00112212,"MIN, JAMES B"
,OFFICE OF THE MAJORITY WHIP,2011Q1,SUPPLIES AND MATERIALS,03-11,"MIN, JAMES B",02/18/11,02/18/11,FOOD & BEVERAGE,"1,102.20",FISCAL YEAR 2011,AP,Accounts payable,00112213,"MIN, JAMES B"
,OFFICE OF THE MAJORITY WHIP,2011Q1,SUPPLIES AND MATERIALS,03-11,"MIN, JAMES B",02/18/11,02/18/11,FOOD & BEVERAGE,"1,363.50",FISCAL YEAR 2011,AP,Accounts payable,00112214,"MIN, JAMES B"
,OFFICE OF THE MAJORITY WHIP,2011Q1,SUPPLIES AND MATERIALS,03-15,CITIBANK GOV CARD SERVICE,02/18/11,02/18/11,FOOD & BEVERAGE,15.02,FISCAL YEAR 2011,AP,Accounts payable,00113865,CITIBANK GOV CARD SERVICE
,OFFICE OF THE MAJORITY WHIP,2011Q1,SUPPLIES AND MATERIALS,03-15,CITIBANK GOV CARD SERVICE,02/18/11,02/18/11,FOOD & BEVERAGE,"1,062.60",FISCAL YEAR 2011,AP,Accounts payable,00113872,CITIBANK GOV CARD SERVICE
,OFFICE OF THE MAJORITY WHIP,2011Q1,SUPPLIES AND MATERIALS,03-15,CITIBANK GOV CARD SERVICE,02/08/11,02/08/11,FOOD & BEVERAGE,87.75,FISCAL YEAR 2011,AP,Accounts payable,00113878,CITIBANK GOV CARD SERVICE
,OFFICE OF THE MAJORITY WHIP,2011Q1,SUPPLIES AND MATERIALS,03-15,CITIBANK GOV CARD SERVICE,02/10/11,02/10/11,FOOD & BEVERAGE,106.20,FISCAL YEAR 2011,AP,Accounts payable,00113885,CITIBANK GOV CARD SERVICE
,OFFICE OF THE MAJORITY WHIP,2011Q1,SUPPLIES AND MATERIALS,03-15,CITIBANK GOV CARD SERVICE,02/15/11,02/15/11,FOOD & BEVERAGE,122.65,FISCAL YEAR 2011,AP,Accounts payable,00113891,CITIBANK GOV CARD SERVICE
,OFFICE OF THE MAJORITY WHIP,2011Q1,SUPPLIES AND MATERIALS,03-15,CITIBANK GOV CARD SERVICE,02/17/11,02/17/11,PUBLICATIONS/REFERENCE MAT'L,95.88,FISCAL YEAR 2011,AP,Accounts payable,00113896,CITIBANK GOV CARD SERVICE
,OFFICE OF THE MAJORITY WHIP,2011Q1,SUPPLIES AND MATERIALS,03-15,CITIBANK GOV CARD SERVICE,02/17/11,02/17/11,FOOD & BEVERAGE,29.16,FISCAL YEAR 2011,AP,Accounts payable,00113900,CITIBANK GOV CARD SERVICE
,OFFICE OF THE MAJORITY WHIP,2011Q1,SUPPLIES AND MATERIALS,03-15,CITIBANK GOV CARD SERVICE,01/18/11,01/18/11,FOOD & BEVERAGE,256.40,FISCAL YEAR 2011,AP,Accounts payable,00113934,CITIBANK GOV CARD SERVICE
,OFFICE OF THE MAJORITY WHIP,2011Q1,SUPPLIES AND MATERIALS,03-15,CITIBANK GOV CARD SERVICE,01/24/11,01/24/11,FOOD & BEVERAGE,47.98,FISCAL YEAR 2011,AP,Accounts payable,00113944,CITIBANK GOV CARD SERVICE
,OFFICE OF THE MAJORITY WHIP,2011Q1,SUPPLIES AND MATERIALS,03-15,CITIBANK GOV CARD SERVICE,01/25/11,01/25/11,FOOD & BEVERAGE,193.93,FISCAL YEAR 2011,AP,Accounts payable,00113951,CITIBANK GOV CARD SERVICE
,OFFICE OF THE MAJORITY WHIP,2011Q1,SUPPLIES AND MATERIALS,03-15,CITIBANK GOV CARD SERVICE,01/25/11,01/25/11,FOOD & BEVERAGE,10.20,FISCAL YEAR 2011,AP,Accounts payable,00113959,CITIBANK GOV CARD SERVICE
,OFFICE OF THE MAJORITY WHIP,2011Q1,SUPPLIES AND MATERIALS,03-15,CITIBANK GOV CARD SERVICE,02/03/11,02/03/11,FOOD & BEVERAGE,294.58,FISCAL YEAR 2011,AP,Accounts payable,00113965,CITIBANK GOV CARD SERVICE
,OFFICE OF THE MAJORITY WHIP,2011Q1,SUPPLIES AND MATERIALS,03-15,CITIBANK GOV CARD SERVICE,02/16/11,02/16/11,FOOD & BEVERAGE,42.70,FISCAL YEAR 2011,AP,Accounts payable,00113966,CITIBANK GOV CARD SERVICE
,OFFICE OF THE MAJORITY WHIP,2011Q1,SUPPLIES AND MATERIALS,03-15,CITIBANK GOV CARD SERVICE,02/16/11,02/16/11,FOOD & BEVERAGE,"2,593.00",FISCAL YEAR 2011,AP,Accounts payable,00113967,CITIBANK GOV CARD SERVICE
,OFFICE OF THE MAJORITY WHIP,2011Q1,SUPPLIES AND MATERIALS,03-15,CITIBANK GOV CARD SERVICE,02/16/11,02/16/11,FOOD & BEVERAGE,162.81,FISCAL YEAR 2011,AP,Accounts payable,00113968,CITIBANK GOV CARD SERVICE
,OFFICE OF THE MAJORITY WHIP,2011Q1,SUPPLIES AND MATERIALS,03-15,CITIBANK GOV CARD SERVICE,02/16/11,02/16/11,FOOD & BEVERAGE,330.85,FISCAL YEAR 2011,AP,Accounts payable,00113971,CITIBANK GOV CARD SERVICE
,OFFICE OF THE MAJORITY WHIP,2011Q1,SUPPLIES AND MATERIALS,03-15,CITIBANK GOV CARD SERVICE,02/17/11,02/17/11,FOOD & BEVERAGE,"2,981.77",FISCAL YEAR 2011,AP,Accounts payable,00113972,CITIBANK GOV CARD SERVICE
,OFFICE OF THE MAJORITY WHIP,2011Q1,SUPPLIES AND MATERIALS,03-16,"MIN, JAMES B",02/08/11,02/08/11,FOOD & BEVERAGE,"2,053.12",FISCAL YEAR 2011,AP,Accounts payable,00117449,"MIN, JAMES B"
,OFFICE OF THE MAJORITY WHIP,2011Q1,SUPPLIES AND MATERIALS,03-22,CITIBANK GOV CARD SERVICE,02/10/11,02/10/11,FOOD & BEVERAGE,95.50,FISCAL YEAR 2011,AP,Accounts payable,00123400,CITIBANK GOV CARD SERVICE
,OFFICE OF THE MAJORITY WHIP,2011Q1,SUPPLIES AND MATERIALS,03-22,CITIBANK GOV CARD SERVICE,02/10/11,02/10/11,FOOD & BEVERAGE,26.41,FISCAL YEAR 2011,AP,Accounts payable,00123401,CITIBANK GOV CARD SERVICE
,OFFICE OF THE MAJORITY WHIP,2011Q1,SUPPLIES AND MATERIALS,03-22,CITIBANK GOV CARD SERVICE,02/11/11,02/11/11,FOOD & BEVERAGE,434.50,FISCAL YEAR 2011,AP,Accounts payable,00123402,CITIBANK GOV CARD SERVICE
,OFFICE OF THE MAJORITY WHIP,2011Q1,SUPPLIES AND MATERIALS,03-22,CITIBANK GOV CARD SERVICE,02/15/11,02/15/11,FOOD & BEVERAGE,"2,002.00",FISCAL YEAR 2011,AP,Accounts payable,00123403,CITIBANK GOV CARD SERVICE
,OFFICE OF THE MAJORITY WHIP,2011Q1,SUPPLIES AND MATERIALS,03-22,CITIBANK GOV CARD SERVICE,02/14/11,02/14/11,FOOD & BEVERAGE,"2,305.00",FISCAL YEAR 2011,AP,Accounts payable,00123404,CITIBANK GOV CARD SERVICE
,OFFICE OF THE MAJORITY WHIP,2011Q1,SUPPLIES AND MATERIALS,03-23,DEER PARK,01/27/11,02/26/11,BOTTLED WATER,189.80,FISCAL YEAR 2011,AP,Accounts payable,00124606,DEER PARK
,OFFICE OF THE MAJORITY WHIP,2011Q1,SUPPLIES AND MATERIALS,03-23,TV EYES INC,03/15/11,03/15/12,PUBLICATIONS/REFERENCE MAT'L,"2,400.00",FISCAL YEAR 2011,AP,Accounts payable,00124607,TV EYES INC
,OFFICE OF THE MAJORITY WHIP,2011Q1,SUPPLIES AND MATERIALS,03-25,"POMPEI, SARAH",03/03/11,03/03/11,FOOD & BEVERAGE,21.47,FISCAL YEAR 2011,AP,Accounts payable,00126961,"POMPEI, SARAH"
,OFFICE OF THE MAJORITY WHIP,2011Q1,SUPPLIES AND MATERIALS,03-25,"POMPEI, SARAH",03/10/11,03/10/11,FOOD & BEVERAGE,24.77,FISCAL YEAR 2011,AP,Accounts payable,00126973,"POMPEI, SARAH"
,OFFICE OF THE MAJORITY WHIP,2011Q1,SUPPLIES AND MATERIALS,03-29,MORE DIRECT,10/14/10,10/14/10,OFFICE SUPPLIES (OUTSIDE),738.00,FISCAL YEAR 2011,AP,Accounts payable,00129264,MORE DIRECT
,OFFICE OF THE MAJORITY WHIP,2011Q1,SUPPLIES AND MATERIALS,03-31,"MEACHUM, CHARLES P",03/09/11,03/09/11,FOOD & BEVERAGE,34.72,FISCAL YEAR 2011,AP,Accounts payable,00132241,"MEACHUM, CHARLES P"
,OFFICE OF THE MAJORITY WHIP,2011Q1,SUPPLIES AND MATERIALS,03-31,"POMPEI, SARAH",03/17/11,03/17/11,FOOD & BEVERAGE,25.32,FISCAL YEAR 2011,AP,Accounts payable,00132242,"POMPEI, SARAH"
,OFFICE OF THE MAJORITY WHIP,2011Q1,SUPPLIES AND MATERIALS,03-31,"MIN, JAMES B",01/23/11,01/23/11,HABITATION EXPENSE,-248.50,FISCAL YEAR 2011,AP,Accounts payable,00143089,"MIN, JAMES B"
,OFFICE OF THE MAJORITY WHIP,2011Q1,SUPPLIES AND MATERIALS,03-31,"MIN, JAMES B",01/23/11,01/23/11,OFFICE SUPPLIES (OUTSIDE),248.50,FISCAL YEAR 2011,AP,Accounts payable,00143089,"MIN, JAMES B"
,OFFICE OF THE MAJORITY WHIP,2011Q1,SUPPLIES AND MATERIALS,03-31,"MIN, JAMES B",01/12/11,01/12/11,FOOD & BEVERAGE,25.71,FISCAL YEAR 2011,AP,Accounts payable,00143547,"MIN, JAMES B"
,OFFICE OF THE MAJORITY WHIP,2011Q1,SUPPLIES AND MATERIALS,03-31,"MIN, JAMES B",01/12/11,01/12/11,FOOD & BEVERAGE,53.40,FISCAL YEAR 2011,AP,Accounts payable,00143548,"MIN, JAMES B"
,OFFICE OF THE MAJORITY WHIP,2011Q1,SUPPLIES AND MATERIALS,03-31,"MIN, JAMES B",01/18/11,01/18/11,FOOD & BEVERAGE,412.83,FISCAL YEAR 2011,AP,Accounts payable,00143549,"MIN, JAMES B"
,OFFICE OF THE MAJORITY WHIP,2011Q1,SUPPLIES AND MATERIALS,03-31,"MIN, JAMES B",01/18/11,01/18/11,FOOD & BEVERAGE,"2,276.82",FISCAL YEAR 2011,AP,Accounts payable,00143551,"MIN, JAMES B"
,OFFICE OF THE MAJORITY WHIP,2011Q1,SUPPLIES AND MATERIALS,03-31,"MIN, JAMES B",01/18/11,01/18/11,HABITATION EXPENSE,110.04,FISCAL YEAR 2011,AP,Accounts payable,00143553,"MIN, JAMES B"
,OFFICE OF THE MAJORITY WHIP,2011Q1,EQUIPMENT,03-10,"MIN, JAMES B",02/28/11,02/28/11,WARRANTIES,250.95,FISCAL YEAR 2011,AP,Accounts payable,00111633,"MIN, JAMES B"
,OFFICE OF THE MAJORITY WHIP,2011Q1,EQUIPMENT,03-29,MORE DIRECT,10/21/10,10/21/10,"COMPUTER HARDW PURCH LESS THAN $25,000","9,085.00",FISCAL YEAR 2011,AP,Accounts payable,00129266,MORE DIRECT
,OFFICE OF THE MAJORITY WHIP,2011Q1,"RENT, COMMUNICATION, UTILITIES",03-02,FEDERAL EXPRESS CORP,09/29/10,09/29/10,POSTAGE / COURIER / BOX RENTAL,16.36,FISCAL YEAR 2010,AP,Accounts payable,00104336,FEDERAL EXPRESS CORP
,OFFICE OF THE MAJORITY WHIP,2011Q1,SUPPLIES AND MATERIALS,01-26,MORE DIRECT,09/29/10,09/29/10,OFFICE SUPPLIES (OUTSIDE),"5,460.00",FISCAL YEAR 2010,AP,Accounts payable,00080410,MORE DIRECT
,OFFICE OF THE MAJORITY WHIP,2011Q1,EQUIPMENT,01-26,MORE DIRECT,09/29/10,09/29/10,"COMPUTER HARDW PURCH LESS THAN $25,000","21,156.00",FISCAL YEAR 2010,AP,Accounts payable,00080408,MORE DIRECT
,OFFICE OF THE MINORITY WHIP,2011Q1,PERSONNEL COMPENSATION,"","MURRAY,JOHN A",01/01/11,01/02/11,COMMUNICATIONS DIRECTOR,948.31,FISCAL YEAR 2011,"","","","MURRAY,JOHN A"
,OFFICE OF THE MINORITY WHIP,2011Q1,PERSONNEL COMPENSATION,"","STOMBRES, STEVEN C",01/01/11,01/02/11,CHIEF OF STAFF,958.33,FISCAL YEAR 2011,"","","","STOMBRES, STEVEN C"
,OFFICE OF THE MINORITY WHIP,2011Q1,PERSONNEL COMPENSATION,"","ABOUCHAR, KEITH S",01/01/11,03/31/11,SENIOR POLICY ADVISOR,537.77,FISCAL YEAR 2011,"","","","ABOUCHAR, KEITH S"
,OFFICE OF THE MINORITY WHIP,2011Q1,PERSONNEL COMPENSATION,"","ANDRES,DOUGLAS R",01/01/11,01/02/11,RESEARCH ASSISTANT,219.44,FISCAL YEAR 2011,"","","","ANDRES,DOUGLAS R"
,OFFICE OF THE MINORITY WHIP,2011Q1,PERSONNEL COMPENSATION,"","AVILES,DANIELLE R",01/03/11,03/31/11,STAFF ASSISTANT,"6,844.44",FISCAL YEAR 2011,"","","","AVILES,DANIELLE R"
,OFFICE OF THE MINORITY WHIP,2011Q1,PERSONNEL COMPENSATION,"","AVILES,DANIELLE R",01/01/11,02/28/11,STAFF ASSISTANT (OVERTIME),"3,281.21",FISCAL YEAR 2011,"","","","AVILES,DANIELLE R"
,OFFICE OF THE MINORITY WHIP,2011Q1,PERSONNEL COMPENSATION,"","BARNES,FREDERIC W",01/01/11,01/02/11,SPECIAL ASSISTANT,183.33,FISCAL YEAR 2011,"","","","BARNES,FREDERIC W"
,OFFICE OF THE MINORITY WHIP,2011Q1,PERSONNEL COMPENSATION,"","BARRERA,AMY D",01/01/11,01/02/11,DIRECTOR OF ADMINISTRATION,138.89,FISCAL YEAR 2011,"","","","BARRERA,AMY D"
,OFFICE OF THE MINORITY WHIP,2011Q1,PERSONNEL COMPENSATION,"","BEACH,MAUREEN M",01/03/11,03/31/11,MD PRESS SEC/DEP PRESS SEC,"8,311.10",FISCAL YEAR 2011,"","","","BEACH,MAUREEN M"
,OFFICE OF THE MINORITY WHIP,2011Q1,PERSONNEL COMPENSATION,"","BERNARDS, STACEY F",01/03/11,03/31/11,DEPUTY CHIEF OF STAFF,293.33,FISCAL YEAR 2011,"","","","BERNARDS, STACEY F"
,OFFICE OF THE MINORITY WHIP,2011Q1,PERSONNEL COMPENSATION,"","BOHANAN JR, JOHN L",01/03/11,03/31/11,CONSTITUENT LIAISON,"1,466.67",FISCAL YEAR 2011,"","","","BOHANAN JR, JOHN L"
,OFFICE OF THE MINORITY WHIP,2011Q1,PERSONNEL COMPENSATION,"","BRAVO, MATTHEW",01/01/11,01/02/11,FLOOR ASSISTANT/SPECIAL ASSIST,243.06,FISCAL YEAR 2011,"","","","BRAVO, MATTHEW"
,OFFICE OF THE MINORITY WHIP,2011Q1,PERSONNEL COMPENSATION,"","BURNES, AUSTIN W",01/03/11,03/31/11,DEPUTY FLOOR DIRECTOR,"22,000.00",FISCAL YEAR 2011,"","","","BURNES, AUSTIN W"
,OFFICE OF THE MINORITY WHIP,2011Q1,PERSONNEL COMPENSATION,"","COLLINS, MICHAEL E",01/03/11,03/31/11,CHIEF DEPUTY WHIP,"10,388.90",FISCAL YEAR 2011,"","","","COLLINS, MICHAEL E"
,OFFICE OF THE MINORITY WHIP,2011Q1,PERSONNEL COMPENSATION,"","COVEY-BRANDT, ALEXIS",01/03/11,03/31/11,FLOOR DIRECTOR,293.33,FISCAL YEAR 2011,"","","","COVEY-BRANDT, ALEXIS"
,OFFICE OF THE MINORITY WHIP,2011Q1,PERSONNEL COMPENSATION,"","CULLEN,RICHARD T",01/01/11,01/02/11,STAFF ASSISTANT,208.33,FISCAL YEAR 2011,"","","","CULLEN,RICHARD T"
,OFFICE OF THE MINORITY WHIP,2011Q1,PERSONNEL COMPENSATION,"","DAVID, MARTA M",01/03/11,01/17/11,DIRECTOR OF EXTERNAL RELATIONS,"6,875.00",FISCAL YEAR 2011,"","","","DAVID, MARTA M"
,OFFICE OF THE MINORITY WHIP,2011Q1,PERSONNEL COMPENSATION,"","DAYSPRING, BRADFORD",01/01/11,01/02/11,PRESS SECRETARY,300.00,FISCAL YEAR 2011,"","","","DAYSPRING, BRADFORD"
,OFFICE OF THE MINORITY WHIP,2011Q1,PERSONNEL COMPENSATION,"","EISENBERG,MICHAEL",01/03/11,01/31/11,FLOOR ASSISTANT,"4,666.67",FISCAL YEAR 2011,"","","","EISENBERG,MICHAEL"
,OFFICE OF THE MINORITY WHIP,2011Q1,PERSONNEL COMPENSATION,"","EISENBERG,MICHAEL",02/01/11,03/31/11,WHIP COORDINATOR,"10,000.00",FISCAL YEAR 2011,"","","","EISENBERG,MICHAEL"
,OFFICE OF THE MINORITY WHIP,2011Q1,PERSONNEL COMPENSATION,"","ELLIOTT,ERICA L",01/01/11,01/03/11,COMMUNICATIONS DIRECTOR,388.89,FISCAL YEAR 2011,"","","","ELLIOTT,ERICA L"
,OFFICE OF THE MINORITY WHIP,2011Q1,PERSONNEL COMPENSATION,"","FERENCE, MICHAEL J",01/01/11,01/02/11,POLICY ADVISOR,191.11,FISCAL YEAR 2011,"","","","FERENCE, MICHAEL J"
,OFFICE OF THE MINORITY WHIP,2011Q1,PERSONNEL COMPENSATION,"","FINKEL,LOUIS ANDREW",02/03/11,03/31/11,SENIOR ADVISOR,"2,900.00",FISCAL YEAR 2011,"","","","FINKEL,LOUIS ANDREW"
,OFFICE OF THE MINORITY WHIP,2011Q1,PERSONNEL COMPENSATION,"","FREDERICKS, AUTUMN",01/01/11,01/02/11,SHARED EMPLOYEE,66.67,FISCAL YEAR 2011,"","","","FREDERICKS, AUTUMN"
,OFFICE OF THE MINORITY WHIP,2011Q1,PERSONNEL COMPENSATION,"","FRY,COURTNEY",01/03/11,01/31/11,EXECUTIVE ASSISTANT/OFFICE MAN,"5,444.44",FISCAL YEAR 2011,"","","","FRY,COURTNEY"
,OFFICE OF THE MINORITY WHIP,2011Q1,PERSONNEL COMPENSATION,"","FRY,COURTNEY",02/01/11,03/31/11,MEMBER SRVS AND OUTREACH COORD,"11,666.66",FISCAL YEAR 2011,"","","","FRY,COURTNEY"
,OFFICE OF THE MINORITY WHIP,2011Q1,PERSONNEL COMPENSATION,"","GHOSH,APRATIM",01/03/11,03/31/11,STAFF ASSISTANT,"6,844.44",FISCAL YEAR 2011,"","","","GHOSH,APRATIM"
,OFFICE OF THE MINORITY WHIP,2011Q1,PERSONNEL COMPENSATION,"","GHOSH,APRATIM",01/01/11,02/28/11,STAFF ASSISTANT (OVERTIME),"2,877.38",FISCAL YEAR 2011,"","","","GHOSH,APRATIM"
,OFFICE OF THE MINORITY WHIP,2011Q1,PERSONNEL COMPENSATION,"","GOFF,SHUWANZA R",01/03/11,03/31/11,FLOOR AIDE,"12,222.23",FISCAL YEAR 2011,"","","","GOFF,SHUWANZA R"
,OFFICE OF THE MINORITY WHIP,2011Q1,PERSONNEL COMPENSATION,"","GOODMAN,ROBERT",01/03/11,03/31/11,SPEECHWRITER,"17,111.10",FISCAL YEAR 2011,"","","","GOODMAN,ROBERT"
,OFFICE OF THE MINORITY WHIP,2011Q1,PERSONNEL COMPENSATION,"","GRANT,KATHRYN L",01/03/11,03/31/11,COMMUNICATIONS DIRECTOR,"22,000.00",FISCAL YEAR 2011,"","","","GRANT,KATHRYN L"
,OFFICE OF THE MINORITY WHIP,2011Q1,PERSONNEL COMPENSATION,"","GUSTAFSON,NICOLE M",01/01/11,01/02/11,POLICY ADVISOR & LEGIS. COUNS,180.56,FISCAL YEAR 2011,"","","","GUSTAFSON,NICOLE M"
,OFFICE OF THE MINORITY WHIP,2011Q1,PERSONNEL COMPENSATION,"","HELM,KATHERINE D",01/01/11,01/02/11,STAFF ASSISTANT,138.89,FISCAL YEAR 2011,"","","","HELM,KATHERINE D"
,OFFICE OF THE MINORITY WHIP,2011Q1,PERSONNEL COMPENSATION,"","HUGHES,JOHN C",01/03/11,03/31/11,SENIOR POLICY ADVISOR,"31,777.77",FISCAL YEAR 2011,"","","","HUGHES,JOHN C"
,OFFICE OF THE MINORITY WHIP,2011Q1,PERSONNEL COMPENSATION,"","JACOBY,DREW",01/03/11,03/31/11,SPECIAL ASSISTANT,"9,777.77",FISCAL YEAR 2011,"","","","JACOBY,DREW"
,OFFICE OF THE MINORITY WHIP,2011Q1,PERSONNEL COMPENSATION,"","JAEGER, CHERYL L",01/01/11,01/02/11,SR POLICY ADVISOR FOR DEFENSE,191.11,FISCAL YEAR 2011,"","","","JAEGER, CHERYL L"
,OFFICE OF THE MINORITY WHIP,2011Q1,PERSONNEL COMPENSATION,"","JOHNSTON,STEVEN",01/01/11,01/02/11,ASSOCIATE DIR OF NEW MEDIA,230.56,FISCAL YEAR 2011,"","","","JOHNSTON,STEVEN"
,OFFICE OF THE MINORITY WHIP,2011Q1,PERSONNEL COMPENSATION,"","LEMOS, JESSICA A",01/03/11,01/17/11,LEGISLATIVE COORDINATOR,"2,708.33",FISCAL YEAR 2011,"","","","LEMOS, JESSICA A"
,OFFICE OF THE MINORITY WHIP,2011Q1,PERSONNEL COMPENSATION,"","LEUSCHEN, JAMES P",01/03/11,03/31/11,SENIOR POLICY ADVISOR,"28,111.10",FISCAL YEAR 2011,"","","","LEUSCHEN, JAMES P"
,OFFICE OF THE MINORITY WHIP,2011Q1,PERSONNEL COMPENSATION,"","LI TRENTA, VIRGINIA SIMONE",01/03/11,03/31/11,SCHED AND DIR OF SPECIAL EVENT,"23,833.33",FISCAL YEAR 2011,"","","","LI TRENTA, VIRGINIA SIMONE"
,OFFICE OF THE MINORITY WHIP,2011Q1,PERSONNEL COMPENSATION,"","LIERMAN,TERRY L",01/03/11,03/31/11,CHIEF OF STAFF,293.33,FISCAL YEAR 2011,"","","","LIERMAN,TERRY L"
,OFFICE OF THE MINORITY WHIP,2011Q1,PERSONNEL COMPENSATION,"","LIRA,MATHEW L",01/01/11,01/02/11,DIRECTOR OF NEW MEDIA,527.78,FISCAL YEAR 2011,"","","","LIRA,MATHEW L"
,OFFICE OF THE MINORITY WHIP,2011Q1,PERSONNEL COMPENSATION,"","LONG,MICHAEL P",01/01/11,01/02/11,STAFF ASSISTANT,138.89,FISCAL YEAR 2011,"","","","LONG,MICHAEL P"
,OFFICE OF THE MINORITY WHIP,2011Q1,PERSONNEL COMPENSATION,"","MOORE, MIKAEL",01/03/11,03/31/11,CHIEF DEPUTY WHIP,"9,777.77",FISCAL YEAR 2011,"","","","MOORE, MIKAEL"
,OFFICE OF THE MINORITY WHIP,2011Q1,PERSONNEL COMPENSATION,"","MUNOZ, DENIS",01/03/11,02/28/11,SYSTEM ADMINISTRATOR,"8,055.56",FISCAL YEAR 2011,"","","","MUNOZ, DENIS"
,OFFICE OF THE MINORITY WHIP,2011Q1,PERSONNEL COMPENSATION,"","MURRAY, ELIZABETH M",01/03/11,03/31/11,SENIOR POLICY ADVISOR,"32,277.77",FISCAL YEAR 2011,"","","","MURRAY, ELIZABETH M"
,OFFICE OF THE MINORITY WHIP,2011Q1,PERSONNEL COMPENSATION,"","NEVINS, KYLE W",01/01/11,01/02/11,SHARED EMPLOYEE,21.08,FISCAL YEAR 2011,"","","","NEVINS, KYLE W"
,OFFICE OF THE MINORITY WHIP,2011Q1,PERSONNEL COMPENSATION,"","O'CONNOR, KATHLEEN",01/01/11,01/02/11,DEPUTY SCHEDULER,265.28,FISCAL YEAR 2011,"","","","O'CONNOR, KATHLEEN"
,OFFICE OF THE MINORITY WHIP,2011Q1,PERSONNEL COMPENSATION,"","PALACIO,RICHARD A",01/03/11,03/31/11,DEPUTY DIRECTOR OF MEMBER SVCS,"18,773.33",FISCAL YEAR 2011,"","","","PALACIO,RICHARD A"
,OFFICE OF THE MINORITY WHIP,2011Q1,PERSONNEL COMPENSATION,"","PATRICK,BRIAN C",01/01/11,01/02/11,STRATEGIC COMMUNICATIONS,375.00,FISCAL YEAR 2011,"","","","PATRICK,BRIAN C"
,OFFICE OF THE MINORITY WHIP,2011Q1,PERSONNEL COMPENSATION,"","REILLY,DANIEL W",01/03/11,03/31/11,PRESS SECRETARY,"2,444.44",FISCAL YEAR 2011,"","","","REILLY,DANIEL W"
,OFFICE OF THE MINORITY WHIP,2011Q1,PERSONNEL COMPENSATION,"","REPKO,MARY F",01/03/11,03/31/11,SENIOR POLICY ADVISOR,293.33,FISCAL YEAR 2011,"","","","REPKO,MARY F"
,OFFICE OF THE MINORITY WHIP,2011Q1,PERSONNEL COMPENSATION,"","ROMICK, BRIAN",01/03/11,01/31/11,MEMBER SERVICES DIRECTOR,93.33,FISCAL YEAR 2011,"","","","ROMICK, BRIAN"
,OFFICE OF THE MINORITY WHIP,2011Q1,PERSONNEL COMPENSATION,"","ROMICK, BRIAN",02/01/11,03/31/11,WHIP DIR AND SENIOR ADVISOR,200.00,FISCAL YEAR 2011,"","","","ROMICK, BRIAN"
,OFFICE OF THE MINORITY WHIP,2011Q1,PERSONNEL COMPENSATION,"","SAEZ,MARIEL S",01/03/11,03/31/11,PRESS AND RESEARCH ASSISTANT,"8,800.00",FISCAL YEAR 2011,"","","","SAEZ,MARIEL S"
,OFFICE OF THE MINORITY WHIP,2011Q1,PERSONNEL COMPENSATION,"","SHOTT,DANIEL",01/03/11,01/31/11,STAFF ASSISTANT,"3,111.11",FISCAL YEAR 2011,"","","","SHOTT,DANIEL"
,OFFICE OF THE MINORITY WHIP,2011Q1,PERSONNEL COMPENSATION,"","SHOTT,DANIEL",02/01/11,03/31/11,EXECUTIVE ASST/OFFICE MANAGER,"6,666.66",FISCAL YEAR 2011,"","","","SHOTT,DANIEL"
,OFFICE OF THE MINORITY WHIP,2011Q1,PERSONNEL COMPENSATION,"","SILVERMAN,DAVID J",01/01/11,01/02/11,SPEECHWRITER,347.22,FISCAL YEAR 2011,"","","","SILVERMAN,DAVID J"
,OFFICE OF THE MINORITY WHIP,2011Q1,PERSONNEL COMPENSATION,"","SIXKILLER, MARIAH S",01/03/11,03/31/11,SENIOR POLICY ADVISOR,"14,177.77",FISCAL YEAR 2011,"","","","SIXKILLER, MARIAH S"
,OFFICE OF THE MINORITY WHIP,2011Q1,PERSONNEL COMPENSATION,"","STEIN, SHIMON",01/01/11,01/02/11,POLICY ADVISOR,601.39,FISCAL YEAR 2011,"","","","STEIN, SHIMON"
,OFFICE OF THE MINORITY WHIP,2011Q1,PERSONNEL COMPENSATION,"","STEVENS,AMANDA D",01/01/11,01/02/11,DEPUTY SCHEDULER,166.67,FISCAL YEAR 2011,"","","","STEVENS,AMANDA D"
,OFFICE OF THE MINORITY WHIP,2011Q1,PERSONNEL COMPENSATION,"","STIPICEVIC, JOHN A",01/01/11,01/02/11,FLOOR ASSISTANT,288.89,FISCAL YEAR 2011,"","","","STIPICEVIC, JOHN A"
,OFFICE OF THE MINORITY WHIP,2011Q1,PERSONNEL COMPENSATION,"","TUELL,JAMES A",01/01/11,01/02/11,SPECIAL ASSISTANT,173.61,FISCAL YEAR 2011,"","","","TUELL,JAMES A"
,OFFICE OF THE MINORITY WHIP,2011Q1,PERSONNEL COMPENSATION,"","VIESON, CHRISTOPHER W",01/01/11,01/02/11,FLOOR ASSISTANT,347.22,FISCAL YEAR 2011,"","","","VIESON, CHRISTOPHER W"
,OFFICE OF THE MINORITY WHIP,2011Q1,PERSONNEL COMPENSATION,"","WILLIAMS, KELLY K",01/01/11,01/02/11,FINANCIAL ADMINISTRATOR,88.89,FISCAL YEAR 2011,"","","","WILLIAMS, KELLY K"
,OFFICE OF THE MINORITY WHIP,2011Q1,TRAVEL,01-07,"TUELL,JAMES A",12/06/10,12/17/10,TAXI/PARKING/TOLLS,23.00,FISCAL YEAR 2011,AP,Accounts payable,00066492,"TUELL,JAMES A"
,OFFICE OF THE MINORITY WHIP,2011Q1,TRAVEL,01-07,"NELSON, VALERIE S",12/01/10,12/07/10,TAXI/PARKING/TOLLS,47.00,FISCAL YEAR 2011,AP,Accounts payable,00066493,"NELSON, VALERIE S"
,OFFICE OF THE MINORITY WHIP,2011Q1,TRAVEL,01-07,"STEIN, SHIMON",12/14/10,12/14/10,TAXI/PARKING/TOLLS,12.00,FISCAL YEAR 2011,AP,Accounts payable,00066497,"STEIN, SHIMON"
,OFFICE OF THE MINORITY WHIP,2011Q1,TRAVEL,01-07,"TUELL,JAMES A",10/28/10,12/06/10,PRIVATE AUTO MILEAGE,28.28,FISCAL YEAR 2011,AP,Accounts payable,00066499,"TUELL,JAMES A"
,OFFICE OF THE MINORITY WHIP,2011Q1,TRAVEL,01-07,"FERENCE, MICHAEL J",12/02/10,12/08/10,TAXI/PARKING/TOLLS,42.00,FISCAL YEAR 2011,AP,Accounts payable,00066502,"FERENCE, MICHAEL J"
,OFFICE OF THE MINORITY WHIP,2011Q1,TRAVEL,02-17,"AVILES,DANIELLE R",02/10/11,02/10/11,TAXI/PARKING/TOLLS,13.00,FISCAL YEAR 2011,AP,Accounts payable,00094257,"AVILES,DANIELLE R"
,OFFICE OF THE MINORITY WHIP,2011Q1,TRAVEL,02-17,"AVILES,DANIELLE R",02/09/11,02/09/11,TAXI/PARKING/TOLLS,14.00,FISCAL YEAR 2011,AP,Accounts payable,00094258,"AVILES,DANIELLE R"
,OFFICE OF THE MINORITY WHIP,2011Q1,TRAVEL,02-17,"AVILES,DANIELLE R",02/09/11,02/09/11,TAXI/PARKING/TOLLS,12.00,FISCAL YEAR 2011,AP,Accounts payable,00094259,"AVILES,DANIELLE R"
,OFFICE OF THE MINORITY WHIP,2011Q1,TRAVEL,02-17,"AVILES,DANIELLE R",02/08/11,02/08/11,TAXI/PARKING/TOLLS,14.00,FISCAL YEAR 2011,AP,Accounts payable,00094260,"AVILES,DANIELLE R"
,OFFICE OF THE MINORITY WHIP,2011Q1,TRAVEL,02-17,"SHOTT,DANIEL",02/08/11,02/08/11,TAXI/PARKING/TOLLS,12.00,FISCAL YEAR 2011,AP,Accounts payable,00094261,"SHOTT,DANIEL"
,OFFICE OF THE MINORITY WHIP,2011Q1,TRAVEL,02-23,"AVILES,DANIELLE R",01/04/11,01/05/11,TAXI/PARKING/TOLLS,51.25,FISCAL YEAR 2011,AP,Accounts payable,00101239,"AVILES,DANIELLE R"
,OFFICE OF THE MINORITY WHIP,2011Q1,TRAVEL,02-23,"AVILES,DANIELLE R",01/13/11,01/13/11,TAXI/PARKING/TOLLS,7.00,FISCAL YEAR 2011,AP,Accounts payable,00101253,"AVILES,DANIELLE R"
,OFFICE OF THE MINORITY WHIP,2011Q1,TRAVEL,02-23,"AVILES,DANIELLE R",01/18/11,01/18/11,TAXI/PARKING/TOLLS,15.00,FISCAL YEAR 2011,AP,Accounts payable,00101255,"AVILES,DANIELLE R"
,OFFICE OF THE MINORITY WHIP,2011Q1,TRAVEL,02-23,"AVILES,DANIELLE R",01/18/11,01/18/11,TAXI/PARKING/TOLLS,20.00,FISCAL YEAR 2011,AP,Accounts payable,00101257,"AVILES,DANIELLE R"
,OFFICE OF THE MINORITY WHIP,2011Q1,TRAVEL,02-23,"AVILES,DANIELLE R",01/13/11,01/13/11,TAXI/PARKING/TOLLS,12.00,FISCAL YEAR 2011,AP,Accounts payable,00101258,"AVILES,DANIELLE R"
,OFFICE OF THE MINORITY WHIP,2011Q1,TRAVEL,02-23,"AVILES,DANIELLE R",01/25/11,01/25/11,TAXI/PARKING/TOLLS,21.00,FISCAL YEAR 2011,AP,Accounts payable,00101281,"AVILES,DANIELLE R"
,OFFICE OF THE MINORITY WHIP,2011Q1,TRAVEL,02-23,"AVILES,DANIELLE R",01/25/11,01/25/11,TAXI/PARKING/TOLLS,16.00,FISCAL YEAR 2011,AP,Accounts payable,00101282,"AVILES,DANIELLE R"
,OFFICE OF THE MINORITY WHIP,2011Q1,TRAVEL,02-23,"AVILES,DANIELLE R",01/25/11,01/25/11,TAXI/PARKING/TOLLS,15.00,FISCAL YEAR 2011,AP,Accounts payable,00101283,"AVILES,DANIELLE R"
,OFFICE OF THE MINORITY WHIP,2011Q1,TRAVEL,02-23,"AVILES,DANIELLE R",01/26/11,01/26/11,TAXI/PARKING/TOLLS,14.00,FISCAL YEAR 2011,AP,Accounts payable,00101284,"AVILES,DANIELLE R"
,OFFICE OF THE MINORITY WHIP,2011Q1,TRAVEL,03-09,ARCHITECT OF THE CAPITOL,11/09/10,12/15/10,GASOLINE,329.02,FISCAL YEAR 2011,AP,Accounts payable,00110886,ARCHITECT OF THE CAPITOL
,OFFICE OF THE MINORITY WHIP,2011Q1,TRAVEL,03-09,"FERENCE, MICHAEL J",11/15/10,11/23/10,TAXI/PARKING/TOLLS,28.00,FISCAL YEAR 2011,AP,Accounts payable,00110888,"FERENCE, MICHAEL J"
,OFFICE OF THE MINORITY WHIP,2011Q1,TRAVEL,03-11,"AVILES,DANIELLE R",03/01/11,03/01/11,TAXI/PARKING/TOLLS,13.00,FISCAL YEAR 2011,AP,Accounts payable,00112770,"AVILES,DANIELLE R"
,OFFICE OF THE MINORITY WHIP,2011Q1,TRAVEL,03-11,"GHOSH,APRATIM",02/07/11,02/07/11,TAXI/PARKING/TOLLS,7.00,FISCAL YEAR 2011,AP,Accounts payable,00112772,"GHOSH,APRATIM"
,OFFICE OF THE MINORITY WHIP,2011Q1,TRAVEL,03-11,"GHOSH,APRATIM",02/15/11,02/15/11,TAXI/PARKING/TOLLS,7.00,FISCAL YEAR 2011,AP,Accounts payable,00112773,"GHOSH,APRATIM"
,OFFICE OF THE MINORITY WHIP,2011Q1,TRAVEL,03-11,"GHOSH,APRATIM",02/16/11,02/16/11,TAXI/PARKING/TOLLS,9.00,FISCAL YEAR 2011,AP,Accounts payable,00112774,"GHOSH,APRATIM"
,OFFICE OF THE MINORITY WHIP,2011Q1,TRAVEL,03-21,"AVILES,DANIELLE R",03/04/11,03/04/11,TAXI/PARKING/TOLLS,13.00,FISCAL YEAR 2011,AP,Accounts payable,00122538,"AVILES,DANIELLE R"
,OFFICE OF THE MINORITY WHIP,2011Q1,TRAVEL,03-21,"AVILES,DANIELLE R",03/04/11,03/04/11,TAXI/PARKING/TOLLS,18.00,FISCAL YEAR 2011,AP,Accounts payable,00122539,"AVILES,DANIELLE R"
,OFFICE OF THE MINORITY WHIP,2011Q1,TRAVEL,03-21,"AVILES,DANIELLE R",03/10/11,03/10/11,TAXI/PARKING/TOLLS,13.00,FISCAL YEAR 2011,AP,Accounts payable,00122540,"AVILES,DANIELLE R"
,OFFICE OF THE MINORITY WHIP,2011Q1,"RENT, COMMUNICATION, UTILITIES",01-07,"HELM,KATHERINE D",12/06/10,12/06/10,POSTAGE / COURIER / BOX RENTAL,22.43,FISCAL YEAR 2011,AP,Accounts payable,00066500,"HELM,KATHERINE D"
,OFFICE OF THE MINORITY WHIP,2011Q1,"RENT, COMMUNICATION, UTILITIES",03-11,"BERNARDS, STACEY F",02/17/11,02/17/11,UTILITIES,9.95,FISCAL YEAR 2011,AP,Accounts payable,00112779,"BERNARDS, STACEY F"
,OFFICE OF THE MINORITY WHIP,2011Q1,"RENT, COMMUNICATION, UTILITIES",03-11,"BERNARDS, STACEY F",02/17/11,02/17/11,UTILITIES,4.95,FISCAL YEAR 2011,AP,Accounts payable,00112780,"BERNARDS, STACEY F"
,OFFICE OF THE MINORITY WHIP,2011Q1,"RENT, COMMUNICATION, UTILITIES",03-11,"BERNARDS, STACEY F",02/22/11,02/22/11,UTILITIES,9.95,FISCAL YEAR 2011,AP,Accounts payable,00112781,"BERNARDS, STACEY F"
,OFFICE OF THE MINORITY WHIP,2011Q1,PRINTING AND REPRODUCTION,02-23,"DAVID L. ANDRUKITUS, INC",01/21/11,01/21/11,PRINTING & REPRODUCTION,37.50,FISCAL YEAR 2011,AP,Accounts payable,00101285,"DAVID L. ANDRUKITUS, INC"
,OFFICE OF THE MINORITY WHIP,2011Q1,PRINTING AND REPRODUCTION,02-23,"DAVID L. ANDRUKITUS, INC",01/31/11,01/31/11,PRINTING & REPRODUCTION,117.50,FISCAL YEAR 2011,AP,Accounts payable,00101286,"DAVID L. ANDRUKITUS, INC"
,OFFICE OF THE MINORITY WHIP,2011Q1,PRINTING AND REPRODUCTION,02-23,"DAVID L. ANDRUKITUS, INC",01/31/11,01/31/11,PRINTING & REPRODUCTION,117.50,FISCAL YEAR 2011,AP,Accounts payable,00101287,"DAVID L. ANDRUKITUS, INC"
,OFFICE OF THE MINORITY WHIP,2011Q1,PRINTING AND REPRODUCTION,02-23,"DAVID L. ANDRUKITUS, INC",01/28/11,01/28/11,PRINTING & REPRODUCTION,127.50,FISCAL YEAR 2011,AP,Accounts payable,00101289,"DAVID L. ANDRUKITUS, INC"
,OFFICE OF THE MINORITY WHIP,2011Q1,PRINTING AND REPRODUCTION,03-11,"DAVID L. ANDRUKITUS, INC",02/16/11,02/16/11,PRINTING & REPRODUCTION,100.50,FISCAL YEAR 2011,AP,Accounts payable,00112775,"DAVID L. ANDRUKITUS, INC"
,OFFICE OF THE MINORITY WHIP,2011Q1,PRINTING AND REPRODUCTION,03-11,"DAVID L. ANDRUKITUS, INC",02/18/11,02/18/11,PRINTING & REPRODUCTION,800.00,FISCAL YEAR 2011,AP,Accounts payable,00112776,"DAVID L. ANDRUKITUS, INC"
,OFFICE OF THE MINORITY WHIP,2011Q1,PRINTING AND REPRODUCTION,03-21,"DAVID L. ANDRUKITUS, INC",02/28/11,02/28/11,PRINTING & REPRODUCTION,"9,760.80",FISCAL YEAR 2011,AP,Accounts payable,00122541,"DAVID L. ANDRUKITUS, INC"
,OFFICE OF THE MINORITY WHIP,2011Q1,PRINTING AND REPRODUCTION,03-31,"",03/01/11,03/31/11,PHOTOGRAPHIC (TRANSFER),6.40,FISCAL YEAR 2011,GL,General ledger,PIX0007205,""
,OFFICE OF THE MINORITY WHIP,2011Q1,SUPPLIES AND MATERIALS,01-07,CITIBANK GOV CARD SERVICE,10/29/10,11/26/10,FOOD & BEVERAGE,"4,904.20",FISCAL YEAR 2011,AP,Accounts payable,00066488,CITIBANK GOV CARD SERVICE
,OFFICE OF THE MINORITY WHIP,2011Q1,SUPPLIES AND MATERIALS,01-07,CITIBANK GOV CARD SERVICE,10/29/10,11/26/10,PUBLICATIONS/REFERENCE MAT'L,929.43,FISCAL YEAR 2011,AP,Accounts payable,00066490,CITIBANK GOV CARD SERVICE
,OFFICE OF THE MINORITY WHIP,2011Q1,SUPPLIES AND MATERIALS,01-07,HIGHLAND ESTATES COFFEE,12/13/10,12/13/10,FOOD & BEVERAGE,85.14,FISCAL YEAR 2011,AP,Accounts payable,00066494,HIGHLAND ESTATES COFFEE
,OFFICE OF THE MINORITY WHIP,2011Q1,SUPPLIES AND MATERIALS,01-07,LEXIS-NEXIS,11/01/10,11/30/10,PUBLICATIONS/REFERENCE MAT'L,606.00,FISCAL YEAR 2011,AP,Accounts payable,00066495,LEXIS-NEXIS
,OFFICE OF THE MINORITY WHIP,2011Q1,SUPPLIES AND MATERIALS,01-07,"TUELL,JAMES A",12/09/10,12/09/10,FOOD & BEVERAGE,27.62,FISCAL YEAR 2011,AP,Accounts payable,00066496,"TUELL,JAMES A"
,OFFICE OF THE MINORITY WHIP,2011Q1,SUPPLIES AND MATERIALS,01-07,"TUELL,JAMES A",12/07/10,12/07/10,FOOD & BEVERAGE,47.68,FISCAL YEAR 2011,AP,Accounts payable,00066501,"TUELL,JAMES A"
,OFFICE OF THE MINORITY WHIP,2011Q1,SUPPLIES AND MATERIALS,01-07,CITIBANK GOV CARD SERVICE,11/29/10,12/28/10,OFFICE SUPPLIES (OUTSIDE),968.13,FISCAL YEAR 2011,AP,Accounts payable,00066503,CITIBANK GOV CARD SERVICE
,OFFICE OF THE MINORITY WHIP,2011Q1,SUPPLIES AND MATERIALS,01-07,CITIBANK GOV CARD SERVICE,11/29/10,12/28/10,OFFICE SUPPLIES (OUTSIDE),"2,484.94",FISCAL YEAR 2011,AP,Accounts payable,00066504,CITIBANK GOV CARD SERVICE
,OFFICE OF THE MINORITY WHIP,2011Q1,SUPPLIES AND MATERIALS,01-07,CITIBANK GOV CARD SERVICE,11/29/10,12/28/10,FOOD & BEVERAGE,"7,044.06",FISCAL YEAR 2011,AP,Accounts payable,00066505,CITIBANK GOV CARD SERVICE
,OFFICE OF THE MINORITY WHIP,2011Q1,SUPPLIES AND MATERIALS,01-12,ABT GEM LASER,12/14/10,12/14/10,OFFICE SUPPLIES (OUTSIDE),489.27,FISCAL YEAR 2011,AP,Accounts payable,00069993,ABT GEM LASER
,OFFICE OF THE MINORITY WHIP,2011Q1,SUPPLIES AND MATERIALS,01-12,ABT GEM LASER,12/07/10,12/07/10,OFFICE SUPPLIES (OUTSIDE),40.00,FISCAL YEAR 2011,AP,Accounts payable,00070027,ABT GEM LASER
,OFFICE OF THE MINORITY WHIP,2011Q1,SUPPLIES AND MATERIALS,01-25,"",01/03/11,01/03/11,OFFICE SUPPLIES (OUTSIDE),"-1,068.76",FISCAL YEAR 2011,GL,General ledger,GLA0004337,""
,OFFICE OF THE MINORITY WHIP,2011Q1,SUPPLIES AND MATERIALS,02-23,"AVILES,DANIELLE R",01/05/11,01/05/11,FOOD & BEVERAGE,43.71,FISCAL YEAR 2011,AP,Accounts payable,00101262,"AVILES,DANIELLE R"
,OFFICE OF THE MINORITY WHIP,2011Q1,SUPPLIES AND MATERIALS,02-23,"FRY,COURTNEY",01/12/11,01/12/11,FOOD & BEVERAGE,102.68,FISCAL YEAR 2011,AP,Accounts payable,00101263,"FRY,COURTNEY"
,OFFICE OF THE MINORITY WHIP,2011Q1,SUPPLIES AND MATERIALS,02-23,"AVILES,DANIELLE R",01/18/11,01/18/11,FOOD & BEVERAGE,23.04,FISCAL YEAR 2011,AP,Accounts payable,00101266,"AVILES,DANIELLE R"
,OFFICE OF THE MINORITY WHIP,2011Q1,SUPPLIES AND MATERIALS,02-23,"FRY,COURTNEY",01/13/11,01/13/11,FOOD & BEVERAGE,9.65,FISCAL YEAR 2011,AP,Accounts payable,00101268,"FRY,COURTNEY"
,OFFICE OF THE MINORITY WHIP,2011Q1,SUPPLIES AND MATERIALS,02-23,"FRY,COURTNEY",01/03/11,01/03/11,FOOD & BEVERAGE,65.98,FISCAL YEAR 2011,AP,Accounts payable,00101269,"FRY,COURTNEY"
,OFFICE OF THE MINORITY WHIP,2011Q1,SUPPLIES AND MATERIALS,02-23,"FRY,COURTNEY",01/13/11,01/13/11,FOOD & BEVERAGE,34.99,FISCAL YEAR 2011,AP,Accounts payable,00101271,"FRY,COURTNEY"
,OFFICE OF THE MINORITY WHIP,2011Q1,SUPPLIES AND MATERIALS,02-23,"AVILES,DANIELLE R",01/12/11,01/12/11,HABITATION EXPENSE,16.51,FISCAL YEAR 2011,AP,Accounts payable,00101273,"AVILES,DANIELLE R"
,OFFICE OF THE MINORITY WHIP,2011Q1,SUPPLIES AND MATERIALS,02-23,CAPITOL HOST,01/20/11,01/20/11,FOOD & BEVERAGE,295.44,FISCAL YEAR 2011,AP,Accounts payable,00101291,CAPITOL HOST
,OFFICE OF THE MINORITY WHIP,2011Q1,SUPPLIES AND MATERIALS,02-23,CAPITOL HOST,01/19/11,01/19/11,FOOD & BEVERAGE,89.99,FISCAL YEAR 2011,AP,Accounts payable,00101292,CAPITOL HOST
,OFFICE OF THE MINORITY WHIP,2011Q1,SUPPLIES AND MATERIALS,02-23,"AVILES,DANIELLE R",01/26/11,01/26/11,FOOD & BEVERAGE,7.07,FISCAL YEAR 2011,AP,Accounts payable,00101293,"AVILES,DANIELLE R"
,OFFICE OF THE MINORITY WHIP,2011Q1,SUPPLIES AND MATERIALS,02-23,CAPITOL HOST,01/06/11,01/06/11,FOOD & BEVERAGE,89.99,FISCAL YEAR 2011,AP,Accounts payable,00101294,CAPITOL HOST
,OFFICE OF THE MINORITY WHIP,2011Q1,SUPPLIES AND MATERIALS,02-23,CITIBANK GOV CARD SERVICE,01/05/11,01/05/11,PUBLICATIONS/REFERENCE MAT'L,28.93,FISCAL YEAR 2011,AP,Accounts payable,00101295,CITIBANK GOV CARD SERVICE
,OFFICE OF THE MINORITY WHIP,2011Q1,SUPPLIES AND MATERIALS,03-11,"AVILES,DANIELLE R",02/16/11,02/16/11,FOOD & BEVERAGE,12.59,FISCAL YEAR 2011,AP,Accounts payable,00112777,"AVILES,DANIELLE R"
,OFFICE OF THE MINORITY WHIP,2011Q1,SUPPLIES AND MATERIALS,03-11,"BERNARDS, STACEY F",01/25/11,01/25/11,PUBLICATIONS/REFERENCE MAT'L,10.59,FISCAL YEAR 2011,AP,Accounts payable,00112783,"BERNARDS, STACEY F"
,OFFICE OF THE MINORITY WHIP,2011Q1,SUPPLIES AND MATERIALS,03-21,"BETTY CRUDUP, CATERER",02/10/11,02/17/11,FOOD & BEVERAGE,"1,600.00",FISCAL YEAR 2011,AP,Accounts payable,00122537,"BETTY CRUDUP, CATERER"
,OFFICE OF THE MINORITY WHIP,2011Q1,PERSONNEL BENEFITS,02-02,HON. STENY HOYER,01/03/11,01/31/11,OFFICIAL EXPENSES FOR LEADERS,527.77,FISCAL YEAR 2011,AP,Accounts payable,00084587,HON. STENY HOYER
,OFFICE OF THE MINORITY WHIP,2011Q1,PERSONNEL BENEFITS,02-20,HON. STENY HOYER,02/01/11,02/28/11,OFFICIAL EXPENSES FOR LEADERS,527.77,FISCAL YEAR 2011,AP,Accounts payable,00098726,HON. STENY HOYER
,DEMOCRATIC STEERING AND POLICY,2011Q1,PERSONNEL COMPENSATION,"","GRECO, KRISTINE M",01/03/11,03/31/11,COMMUNICATIONS DIRECTOR,"31,777.77",FISCAL YEAR 2011,"","","","GRECO, KRISTINE M"
,DEMOCRATIC STEERING AND POLICY,2011Q1,PERSONNEL COMPENSATION,"","LIZARRAGA, JAIME E",01/01/11,01/02/11,DIR.MEM.SERV/SR. ADV,948.31,FISCAL YEAR 2011,"","","","LIZARRAGA, JAIME E"
,DEMOCRATIC STEERING AND POLICY,2011Q1,PERSONNEL COMPENSATION,"","PARKER, WYNDEE R",01/01/11,01/02/11,SENIOR POLICY ADVISOR,958.33,FISCAL YEAR 2011,"","","","PARKER, WYNDEE R"
,DEMOCRATIC STEERING AND POLICY,2011Q1,PERSONNEL COMPENSATION,"","PRIMUS, WENDELL E",01/01/11,01/02/11,SENIOR POLICY ADVISOR,958.33,FISCAL YEAR 2011,"","","","PRIMUS, WENDELL E"
,DEMOCRATIC STEERING AND POLICY,2011Q1,PERSONNEL COMPENSATION,"","QUALLS,ELLEN S",01/01/11,01/02/11,SR ADV FOR STRATEGIC PLANNING,946.72,FISCAL YEAR 2011,"","","","QUALLS,ELLEN S"
,DEMOCRATIC STEERING AND POLICY,2011Q1,PERSONNEL COMPENSATION,"","QUALLS,ELLEN S",01/01/11,01/02/11,SR ADV FOR STRATEGIC PLANNING (OTHER COMPENSATION),"13,254.11",FISCAL YEAR 2011,"","","","QUALLS,ELLEN S"
,DEMOCRATIC STEERING AND POLICY,2011Q1,PERSONNEL COMPENSATION,"","ROLLAND,STACEY L",01/01/11,01/02/11,POLICY ADVISOR - TAX,666.67,FISCAL YEAR 2011,"","","","ROLLAND,STACEY L"
,DEMOCRATIC STEERING AND POLICY,2011Q1,PERSONNEL COMPENSATION,"","SINGLETARY, BARVETTA",01/03/11,03/31/11,POLICY DIRECTOR,"32,511.10",FISCAL YEAR 2011,"","","","SINGLETARY, BARVETTA"
,DEMOCRATIC STEERING AND POLICY,2011Q1,PERSONNEL COMPENSATION,"","WATKINS, YELBERTON R",01/03/11,03/31/11,CHIEF OF STAFF,"40,333.33",FISCAL YEAR 2011,"","","","WATKINS, YELBERTON R"
,DEMOCRATIC STEERING AND POLICY,2011Q1,PERSONNEL COMPENSATION,"","ABOUCHAR, KEITH S",01/03/11,03/31/11,SENIOR POLICY ADVISOR,"31,973.33",FISCAL YEAR 2011,"","","","ABOUCHAR, KEITH S"
,DEMOCRATIC STEERING AND POLICY,2011Q1,PERSONNEL COMPENSATION,"","BLOOM, MICHAEL T",01/01/11,01/02/11,POLICY ASSISTANT,429.79,FISCAL YEAR 2011,"","","","BLOOM, MICHAEL T"
,DEMOCRATIC STEERING AND POLICY,2011Q1,PERSONNEL COMPENSATION,"","BOULE, SCOTT",01/01/11,01/02/11,POLICY ADVISOR,370.33,FISCAL YEAR 2011,"","","","BOULE, SCOTT"
,DEMOCRATIC STEERING AND POLICY,2011Q1,PERSONNEL COMPENSATION,"","CAPRON, MARGARET W",01/01/11,01/02/11,POLICY ADVISOR,"10,641.42",FISCAL YEAR 2011,"","","","CAPRON, MARGARET W"
,DEMOCRATIC STEERING AND POLICY,2011Q1,PERSONNEL COMPENSATION,"","CAPRON, MARGARET W",02/01/11,03/31/11,SENIOR ADV POLICY & COMM,"21,282.84",FISCAL YEAR 2011,"","","","CAPRON, MARGARET W"
,DEMOCRATIC STEERING AND POLICY,2011Q1,PERSONNEL COMPENSATION,"","DAY,TAMIKA K",01/03/11,03/31/11,SR STAFF ASST SYS ADMIN,"12,222.23",FISCAL YEAR 2011,"","","","DAY,TAMIKA K"
,DEMOCRATIC STEERING AND POLICY,2011Q1,PERSONNEL COMPENSATION,"","ELLISON,MATTHEW B",01/03/11,03/31/11,RESEARCH ASSISTANT,"7,333.33",FISCAL YEAR 2011,"","","","ELLISON,MATTHEW B"
,DEMOCRATIC STEERING AND POLICY,2011Q1,PERSONNEL COMPENSATION,"","GEORGE,EVANGELINE M",01/03/11,03/31/11,PRESS ASSISTANT,"10,534.40",FISCAL YEAR 2011,"","","","GEORGE,EVANGELINE M"
,DEMOCRATIC STEERING AND POLICY,2011Q1,PERSONNEL COMPENSATION,"","HACKER,MICHAEL E",01/03/11,03/31/11,FLOOR DIR AND SENIOR ADVISOR,"29,333.33",FISCAL YEAR 2011,"","","","HACKER,MICHAEL E"
,DEMOCRATIC STEERING AND POLICY,2011Q1,PERSONNEL COMPENSATION,"","JUDGE, KRISTINE A",01/01/11,01/02/11,POLICY ADVISOR,"10,641.42",FISCAL YEAR 2011,"","","","JUDGE, KRISTINE A"
,DEMOCRATIC STEERING AND POLICY,2011Q1,PERSONNEL COMPENSATION,"","JUDGE, KRISTINE A",02/01/11,03/31/11,SENIOR ADVISOR/POLICY COMM,"21,282.84",FISCAL YEAR 2011,"","","","JUDGE, KRISTINE A"
,DEMOCRATIC STEERING AND POLICY,2011Q1,PERSONNEL COMPENSATION,"","PEPPER, LORI J",01/01/11,01/02/11,POLICY ADVISOR,694.44,FISCAL YEAR 2011,"","","","PEPPER, LORI J"
,DEMOCRATIC STEERING AND POLICY,2011Q1,PERSONNEL COMPENSATION,"","PRICE, REVA B",01/01/11,01/02/11,POLICY ADVISOR,709.43,FISCAL YEAR 2011,"","","","PRICE, REVA B"
,DEMOCRATIC STEERING AND POLICY,2011Q1,PERSONNEL COMPENSATION,"","SURGEON,BINA G",01/03/11,03/31/11,DEPUTY DIRECTOR OF PROTOCOL,"13,769.80",FISCAL YEAR 2011,"","","","SURGEON,BINA G"
,DEMOCRATIC STEERING AND POLICY,2011Q1,PERSONNEL COMPENSATION,"","TECKLENBURG, MICHAEL H",01/01/11,01/02/11,POLICY ADVISOR,668.04,FISCAL YEAR 2011,"","","","TECKLENBURG, MICHAEL H"
,DEMOCRATIC STEERING AND POLICY,2011Q1,PERSONNEL COMPENSATION,"","UENG,STEPHANIE L",01/03/11,03/31/11,OUTREACH ASSISTANT,"11,221.90",FISCAL YEAR 2011,"","","","UENG,STEPHANIE L"
,DEMOCRATIC STEERING AND POLICY,2011Q1,PERSONNEL COMPENSATION,"","UENG,STEPHANIE L",01/01/11,01/31/11,OUTREACH ASSISTANT (OVERTIME),843.38,FISCAL YEAR 2011,"","","","UENG,STEPHANIE L"
,DEMOCRATIC STEERING AND POLICY,2011Q1,PERSONNEL COMPENSATION,"","WAYLAND,KAREN G",01/01/11,01/02/11,SENIOR POLICY ADVISOR,768.15,FISCAL YEAR 2011,"","","","WAYLAND,KAREN G"
,DEMOCRATIC CAUCUS,2011Q1,PERSONNEL COMPENSATION,"","SHEVLIN IV, GEORGE F",01/01/11,03/31/11,EXECUTIVE DIRECTOR,"43,125.00",FISCAL YEAR 2011,"","","","SHEVLIN IV, GEORGE F"
,DEMOCRATIC CAUCUS,2011Q1,PERSONNEL COMPENSATION,"","TRAN,CATHERINE LE",01/01/11,02/28/11,POLICY DIRECTOR,"20,833.34",FISCAL YEAR 2011,"","","","TRAN,CATHERINE LE"
,DEMOCRATIC CAUCUS,2011Q1,PERSONNEL COMPENSATION,"","TRAN,CATHERINE LE",03/01/11,03/31/11,SENIOR POLICY COUNSEL,"10,833.33",FISCAL YEAR 2011,"","","","TRAN,CATHERINE LE"
,DEMOCRATIC CAUCUS,2011Q1,PERSONNEL COMPENSATION,"","TRAN,CATHERINE LE",01/01/11,01/31/11,POLICY DIRECTOR (OTHER COMPENSATION),"2,508.33",FISCAL YEAR 2011,"","","","TRAN,CATHERINE LE"
,DEMOCRATIC CAUCUS,2011Q1,PERSONNEL COMPENSATION,"","BANJAC,SRDAN",01/01/11,03/31/11,ASSISTANT TO THE CHAIRMAN,"13,500.00",FISCAL YEAR 2011,"","","","BANJAC,SRDAN"
,DEMOCRATIC CAUCUS,2011Q1,PERSONNEL COMPENSATION,"","BARNES,CHRISTOPHER E",01/01/11,02/01/11,SENIOR ADVISOR TO THE CHAIRMAN,"14,208.33",FISCAL YEAR 2011,"","","","BARNES,CHRISTOPHER E"
,DEMOCRATIC CAUCUS,2011Q1,PERSONNEL COMPENSATION,"","BARNES,CHRISTOPHER E",02/01/11,02/01/11,SENIOR ADVISOR TO THE CHAIRMAN (OTHER COMPENSATION),"10,083.33",FISCAL YEAR 2011,"","","","BARNES,CHRISTOPHER E"
,DEMOCRATIC CAUCUS,2011Q1,PERSONNEL COMPENSATION,"","BARNES,CHRISTOPHER E",01/01/11,02/01/11,SENIOR ADVISOR TO THE CHAIRMAN (OTHER COMPENSATION),"3,776.82",FISCAL YEAR 2011,"","","","BARNES,CHRISTOPHER E"
,DEMOCRATIC CAUCUS,2011Q1,PERSONNEL COMPENSATION,"","BAROCAS,EMILY",01/01/11,01/02/11,PRESS SECRETARY,388.89,FISCAL YEAR 2011,"","","","BAROCAS,EMILY"
,DEMOCRATIC CAUCUS,2011Q1,PERSONNEL COMPENSATION,"","BAROCAS,EMILY",01/01/11,01/02/11,PRESS SECRETARY (OTHER COMPENSATION),583.33,FISCAL YEAR 2011,"","","","BAROCAS,EMILY"
,DEMOCRATIC CAUCUS,2011Q1,PERSONNEL COMPENSATION,"","BRACHMAN, ELLIS A",02/28/11,03/31/11,COMMUNICATIONS DIRECTOR,"11,000.00",FISCAL YEAR 2011,"","","","BRACHMAN, ELLIS A"
,DEMOCRATIC CAUCUS,2011Q1,PERSONNEL COMPENSATION,"","BUI, TONIA",01/01/11,03/31/11,MEMBER OUTREACH ASST-VICE CHR,"7,931.34",FISCAL YEAR 2011,"","","","BUI, TONIA"
,DEMOCRATIC CAUCUS,2011Q1,PERSONNEL COMPENSATION,"","BUI, TONIA",01/01/11,01/31/11,MEMBER OUTREACH ASST-VICE CHR (OTHER COMPENSATION),"1,639.00",FISCAL YEAR 2011,"","","","BUI, TONIA"
,DEMOCRATIC CAUCUS,2011Q1,PERSONNEL COMPENSATION,"","CHU,ANNA L",01/01/11,03/31/11,POLICY ADVISOR,"11,250.00",FISCAL YEAR 2011,"","","","CHU,ANNA L"
,DEMOCRATIC CAUCUS,2011Q1,PERSONNEL COMPENSATION,"","DAGADAKIS,STAMATIOS",01/01/11,02/28/11,TECHNOLOGY & RESEARCH ASSISTAN,"8,333.34",FISCAL YEAR 2011,"","","","DAGADAKIS,STAMATIOS"
,DEMOCRATIC CAUCUS,2011Q1,PERSONNEL COMPENSATION,"","DAGADAKIS,STAMATIOS",03/01/11,03/31/11,EXECUTIVE ADVISOR,"2,708.33",FISCAL YEAR 2011,"","","","DAGADAKIS,STAMATIOS"
,DEMOCRATIC CAUCUS,2011Q1,PERSONNEL COMPENSATION,"","DE PUY,GERALDINE M",03/09/11,03/31/11,CORRESPONDENCE ASSISTANT,"2,475.00",FISCAL YEAR 2011,"","","","DE PUY,GERALDINE M"
,DEMOCRATIC CAUCUS,2011Q1,PERSONNEL COMPENSATION,"","DELANEY, ERIC L",01/01/11,03/31/11,MEMBER OUTREACH ASST-VICE CHR,"9,431.34",FISCAL YEAR 2011,"","","","DELANEY, ERIC L"
,DEMOCRATIC CAUCUS,2011Q1,PERSONNEL COMPENSATION,"","DELANEY, ERIC L",12/01/10,12/22/10,MEMBER OUTREACH ASST-VICE CHR (OTHER COMPENSATION),"3,139.00",FISCAL YEAR 2011,"","","","DELANEY, ERIC L"
,DEMOCRATIC CAUCUS,2011Q1,PERSONNEL COMPENSATION,"","GLEESON,JAMES M",01/01/11,03/31/11,PRESS SEC FOR THE VICE CHAIR,"5,375.00",FISCAL YEAR 2011,"","","","GLEESON,JAMES M"
,DEMOCRATIC CAUCUS,2011Q1,PERSONNEL COMPENSATION,"","GONZALES, MELONDY S",01/01/11,03/31/11,DIR OF MBR OUTREACH-VICE CHAIR,"15,583.00",FISCAL YEAR 2011,"","","","GONZALES, MELONDY S"
,DEMOCRATIC CAUCUS,2011Q1,PERSONNEL COMPENSATION,"","GONZALES, MELONDY S",12/01/10,12/22/10,DIR OF MBR OUTREACH-VICE CHAIR (OTHER COMPENSATION),"3,335.00",FISCAL YEAR 2011,"","","","GONZALES, MELONDY S"
,DEMOCRATIC CAUCUS,2011Q1,PERSONNEL COMPENSATION,"","JAWORSKI, KIMBERLY H",01/01/11,03/31/11,EVENTS AND PROJECTS COORDINATO,"12,999.99",FISCAL YEAR 2011,"","","","JAWORSKI, KIMBERLY H"
,DEMOCRATIC CAUCUS,2011Q1,PERSONNEL COMPENSATION,"","KISSINGER,JUSTIN A",01/03/11,01/31/11,SHARED EMPLOYEE,994.70,FISCAL YEAR 2011,"","","","KISSINGER,JUSTIN A"
,DEMOCRATIC CAUCUS,2011Q1,PERSONNEL COMPENSATION,"","KRASOV,ALEXANDRA",01/01/11,01/02/11,DEPUTY COMMUNICATIONS DIRECTOR,300.00,FISCAL YEAR 2011,"","","","KRASOV,ALEXANDRA"
,DEMOCRATIC CAUCUS,2011Q1,PERSONNEL COMPENSATION,"","MALERBA,LIZ",12/01/10,12/31/10,OUTREACH ASSISTANT (OTHER COMPENSATION),666.67,FISCAL YEAR 2011,"","","","MALERBA,LIZ"
,DEMOCRATIC CAUCUS,2011Q1,PERSONNEL COMPENSATION,"","MCCLUSKIE,SEAN E",01/01/11,03/31/11,STAFF DIR FOR THE VICE CHAIR,"11,000.00",FISCAL YEAR 2011,"","","","MCCLUSKIE,SEAN E"
,DEMOCRATIC CAUCUS,2011Q1,PERSONNEL COMPENSATION,"","MCGRANE,BILLIE S",01/03/11,03/31/11,ASSISTANT TO THE CHAIRMAN,"8,800.00",FISCAL YEAR 2011,"","","","MCGRANE,BILLIE S"
,DEMOCRATIC CAUCUS,2011Q1,PERSONNEL COMPENSATION,"","MERZ, JULIE E",01/01/11,01/02/11,SHARED EMPLOYEE,388.89,FISCAL YEAR 2011,"","","","MERZ, JULIE E"
,DEMOCRATIC CAUCUS,2011Q1,PERSONNEL COMPENSATION,"","MORA,JASMINE",01/01/11,03/31/11,PRESS ASST/RESCHR FOR VICE CHR,"7,644.34",FISCAL YEAR 2011,"","","","MORA,JASMINE"
,DEMOCRATIC CAUCUS,2011Q1,PERSONNEL COMPENSATION,"","MORA,JASMINE",12/01/10,12/22/10,PRESS ASST/RESCHR FOR VICE CHR (OTHER COMPENSATION),"2,213.00",FISCAL YEAR 2011,"","","","MORA,JASMINE"
,DEMOCRATIC CAUCUS,2011Q1,PERSONNEL COMPENSATION,"","PERONACE,ANTONIO",01/01/11,03/31/11,DIR OF MULTIMEDIA COMM AND TEC,"14,250.00",FISCAL YEAR 2011,"","","","PERONACE,ANTONIO"
,DEMOCRATIC CAUCUS,2011Q1,PERSONNEL COMPENSATION,"","PLATT,ANDREW J",02/19/11,03/31/11,RESEARCH & TECHNOLOGY ASST,"4,083.34",FISCAL YEAR 2011,"","","","PLATT,ANDREW J"
,DEMOCRATIC CAUCUS,2011Q1,PERSONNEL COMPENSATION,"","RESENDENZ,MARVENE R",01/01/11,03/31/11,EXECUTIVE ASSISTANT/SCHEDULER,"12,500.00",FISCAL YEAR 2011,"","","","RESENDENZ,MARVENE R"
,DEMOCRATIC CAUCUS,2011Q1,PERSONNEL COMPENSATION,"","ROBB, KAREN A",01/01/11,01/02/11,SHARED EMPLOYEE,361.11,FISCAL YEAR 2011,"","","","ROBB, KAREN A"
,DEMOCRATIC CAUCUS,2011Q1,PERSONNEL COMPENSATION,"","RODRIGUEZ-OLVERA,LORENZO A",01/01/11,03/31/11,MEMBER OUTREACH ASST-VICE CHR,"8,306.34",FISCAL YEAR 2011,"","","","RODRIGUEZ-OLVERA,LORENZO A"
,DEMOCRATIC CAUCUS,2011Q1,PERSONNEL COMPENSATION,"","RODRIGUEZ-OLVERA,LORENZO A",12/01/10,12/22/10,MEMBER OUTREACH ASST-VICE CHR (OTHER COMPENSATION),"3,139.00",FISCAL YEAR 2011,"","","","RODRIGUEZ-OLVERA,LORENZO A"
,DEMOCRATIC CAUCUS,2011Q1,PERSONNEL COMPENSATION,"","RUBINO,SHELLEY M",01/01/11,02/28/11,ADVISOR TO THE CHAIRMAN,"22,500.00",FISCAL YEAR 2011,"","","","RUBINO,SHELLEY M"
,DEMOCRATIC CAUCUS,2011Q1,PERSONNEL COMPENSATION,"","RUBINO,SHELLEY M",03/01/11,03/31/11,DISTRICT DIRECTOR,"7,187.50",FISCAL YEAR 2011,"","","","RUBINO,SHELLEY M"
,DEMOCRATIC CAUCUS,2011Q1,PERSONNEL COMPENSATION,"","STEIN,JOSHUA R",01/01/11,01/23/11,STAFF ASSISTANT,"2,236.11",FISCAL YEAR 2011,"","","","STEIN,JOSHUA R"
,DEMOCRATIC CAUCUS,2011Q1,PERSONNEL COMPENSATION,"","STEIN,JOSHUA R",01/01/11,01/23/11,STAFF ASSISTANT (OTHER COMPENSATION),194.44,FISCAL YEAR 2011,"","","","STEIN,JOSHUA R"
,DEMOCRATIC CAUCUS,2011Q1,TRAVEL,01-05,"TRAN,CATHERINE LE",12/17/10,12/17/10,TAXI/PARKING/TOLLS,12.00,FISCAL YEAR 2011,AP,Accounts payable,00064760,"TRAN,CATHERINE LE"
,DEMOCRATIC CAUCUS,2011Q1,TRAVEL,01-31,"SITCOVSKY,DAVID",01/20/11,01/20/11,TAXI/PARKING/TOLLS,2.50,FISCAL YEAR 2011,AP,Accounts payable,00082498,"SITCOVSKY,DAVID"
,DEMOCRATIC CAUCUS,2011Q1,TRAVEL,01-31,"SITCOVSKY,DAVID",01/20/11,01/20/11,GASOLINE,59.63,FISCAL YEAR 2011,AP,Accounts payable,00082501,"SITCOVSKY,DAVID"
,DEMOCRATIC CAUCUS,2011Q1,TRAVEL,01-31,"RUBINO,SHELLEY M",01/19/11,01/24/11,CAR RENTAL,701.29,FISCAL YEAR 2011,AP,Accounts payable,00082504,"RUBINO,SHELLEY M"
,DEMOCRATIC CAUCUS,2011Q1,TRAVEL,01-31,"BANJAC,SRDAN",01/20/11,01/20/11,TAXI/PARKING/TOLLS,2.50,FISCAL YEAR 2011,AP,Accounts payable,00082506,"BANJAC,SRDAN"
,DEMOCRATIC CAUCUS,2011Q1,TRAVEL,01-31,"BANJAC,SRDAN",01/21/11,01/21/11,TAXI/PARKING/TOLLS,2.50,FISCAL YEAR 2011,AP,Accounts payable,00082510,"BANJAC,SRDAN"
,DEMOCRATIC CAUCUS,2011Q1,TRAVEL,01-31,"BANJAC,SRDAN",01/22/11,01/22/11,TAXI/PARKING/TOLLS,2.50,FISCAL YEAR 2011,AP,Accounts payable,00082513,"BANJAC,SRDAN"
,DEMOCRATIC CAUCUS,2011Q1,TRAVEL,01-31,"BANJAC,SRDAN",01/20/11,01/20/11,GASOLINE,72.05,FISCAL YEAR 2011,AP,Accounts payable,00083064,"BANJAC,SRDAN"
,DEMOCRATIC CAUCUS,2011Q1,TRAVEL,01-31,"BANJAC,SRDAN",01/22/11,01/22/11,GASOLINE,28.75,FISCAL YEAR 2011,AP,Accounts payable,00083066,"BANJAC,SRDAN"
,DEMOCRATIC CAUCUS,2011Q1,TRAVEL,01-31,"SHEVLIN IV, GEORGE F",01/19/11,01/23/11,CAR RENTAL,236.27,FISCAL YEAR 2011,AP,Accounts payable,00083068,"SHEVLIN IV, GEORGE F"
,DEMOCRATIC CAUCUS,2011Q1,TRAVEL,01-31,"SHEVLIN IV, GEORGE F",01/23/11,01/23/11,GASOLINE,18.80,FISCAL YEAR 2011,AP,Accounts payable,00083070,"SHEVLIN IV, GEORGE F"
,DEMOCRATIC CAUCUS,2011Q1,TRAVEL,01-31,"SHEVLIN IV, GEORGE F",01/19/11,01/19/11,TAXI/PARKING/TOLLS,2.50,FISCAL YEAR 2011,AP,Accounts payable,00083071,"SHEVLIN IV, GEORGE F"
,DEMOCRATIC CAUCUS,2011Q1,TRAVEL,01-31,"CHU, ANNA L",01/18/11,01/18/11,TAXI/PARKING/TOLLS,14.00,FISCAL YEAR 2011,AP,Accounts payable,00083088,"CHU, ANNA L"
,DEMOCRATIC CAUCUS,2011Q1,TRAVEL,01-31,"CHU, ANNA L",01/20/11,01/20/11,TAXI/PARKING/TOLLS,20.00,FISCAL YEAR 2011,AP,Accounts payable,00083090,"CHU, ANNA L"
,DEMOCRATIC CAUCUS,2011Q1,TRAVEL,02-03,"DELANEY, ERIC",01/21/11,01/21/11,GASOLINE,66.45,FISCAL YEAR 2011,AP,Accounts payable,00085396,"DELANEY, ERIC"
,DEMOCRATIC CAUCUS,2011Q1,TRAVEL,02-03,"RODRIGUEZ-OLVERA, LORENZO A",01/24/11,01/24/11,GASOLINE,20.00,FISCAL YEAR 2011,AP,Accounts payable,00085459,"RODRIGUEZ-OLVERA, LORENZO A"
,DEMOCRATIC CAUCUS,2011Q1,TRAVEL,02-03,"RODRIGUEZ-OLVERA, LORENZO A",01/20/11,01/20/11,TAXI/PARKING/TOLLS,2.50,FISCAL YEAR 2011,AP,Accounts payable,00085461,"RODRIGUEZ-OLVERA, LORENZO A"
,DEMOCRATIC CAUCUS,2011Q1,TRAVEL,02-03,"RODRIGUEZ-OLVERA, LORENZO A",01/21/11,01/21/11,TAXI/PARKING/TOLLS,2.50,FISCAL YEAR 2011,AP,Accounts payable,00085463,"RODRIGUEZ-OLVERA, LORENZO A"
,DEMOCRATIC CAUCUS,2011Q1,TRAVEL,03-03,"TRANS PRO SERVICES, INC",01/20/11,01/22/11,TAXI/PARKING/TOLLS,"13,440.00",FISCAL YEAR 2011,AP,Accounts payable,00105531,"TRANS PRO SERVICES, INC"
,DEMOCRATIC CAUCUS,2011Q1,TRAVEL,03-09,"STEIN, JOSHUA",01/19/11,01/19/11,TAXI/PARKING/TOLLS,18.00,FISCAL YEAR 2011,AP,Accounts payable,00111046,"STEIN, JOSHUA"
,DEMOCRATIC CAUCUS,2011Q1,TRAVEL,03-11,"RUBINO,SHELLEY M",01/18/11,01/18/11,TAXI/PARKING/TOLLS,10.50,FISCAL YEAR 2011,AP,Accounts payable,00112138,"RUBINO,SHELLEY M"
,DEMOCRATIC CAUCUS,2011Q1,TRAVEL,03-11,"RUBINO,SHELLEY M",01/19/11,01/19/11,TAXI/PARKING/TOLLS,13.70,FISCAL YEAR 2011,AP,Accounts payable,00112139,"RUBINO,SHELLEY M"
,DEMOCRATIC CAUCUS,2011Q1,TRAVEL,03-16,"RUBINO,SHELLEY M",01/19/11,01/24/11,CAR RENTAL,829.97,FISCAL YEAR 2011,AP,Accounts payable,00115515,"RUBINO,SHELLEY M"
,DEMOCRATIC CAUCUS,2011Q1,TRAVEL,03-16,"RUBINO,SHELLEY M",01/19/11,01/24/11,CAR RENTAL,701.29,FISCAL YEAR 2011,AP,Accounts payable,00115516,"RUBINO,SHELLEY M"
,DEMOCRATIC CAUCUS,2011Q1,TRAVEL,03-16,"RUBINO,SHELLEY M",01/19/11,01/24/11,CAR RENTAL,701.29,FISCAL YEAR 2011,AP,Accounts payable,00115518,"RUBINO,SHELLEY M"
,DEMOCRATIC CAUCUS,2011Q1,TRAVEL,03-21,"KISSINGER,JUSTIN A",01/06/11,01/06/11,PRIVATE AUTO MILEAGE,89.05,FISCAL YEAR 2011,AP,Accounts payable,00122551,"KISSINGER,JUSTIN A"
,DEMOCRATIC CAUCUS,2011Q1,TRAVEL,03-21,"KISSINGER,JUSTIN A",01/08/11,01/08/11,PRIVATE AUTO MILEAGE,89.05,FISCAL YEAR 2011,AP,Accounts payable,00122552,"KISSINGER,JUSTIN A"
,DEMOCRATIC CAUCUS,2011Q1,TRAVEL,03-21,"KISSINGER,JUSTIN A",01/13/11,01/13/11,PRIVATE AUTO MILEAGE,89.05,FISCAL YEAR 2011,AP,Accounts payable,00122553,"KISSINGER,JUSTIN A"
,DEMOCRATIC CAUCUS,2011Q1,TRAVEL,03-21,"KISSINGER,JUSTIN A",01/17/11,01/17/11,PRIVATE AUTO MILEAGE,89.05,FISCAL YEAR 2011,AP,Accounts payable,00122554,"KISSINGER,JUSTIN A"
,DEMOCRATIC CAUCUS,2011Q1,TRAVEL,03-21,"KISSINGER,JUSTIN A",01/19/11,01/23/11,PRIVATE AUTO MILEAGE,89.05,FISCAL YEAR 2011,AP,Accounts payable,00122555,"KISSINGER,JUSTIN A"
,DEMOCRATIC CAUCUS,2011Q1,TRAVEL,03-21,"KISSINGER,JUSTIN A",01/06/11,01/06/11,TAXI/PARKING/TOLLS,2.50,FISCAL YEAR 2011,AP,Accounts payable,00122556,"KISSINGER,JUSTIN A"
,DEMOCRATIC CAUCUS,2011Q1,TRAVEL,03-21,"KISSINGER,JUSTIN A",01/08/11,01/08/11,TAXI/PARKING/TOLLS,2.50,FISCAL YEAR 2011,AP,Accounts payable,00122557,"KISSINGER,JUSTIN A"
,DEMOCRATIC CAUCUS,2011Q1,TRAVEL,03-21,"KISSINGER,JUSTIN A",01/13/11,01/13/11,TAXI/PARKING/TOLLS,2.50,FISCAL YEAR 2011,AP,Accounts payable,00122558,"KISSINGER,JUSTIN A"
,DEMOCRATIC CAUCUS,2011Q1,TRAVEL,03-21,"KISSINGER,JUSTIN A",01/17/11,01/17/11,TAXI/PARKING/TOLLS,2.50,FISCAL YEAR 2011,AP,Accounts payable,00122560,"KISSINGER,JUSTIN A"
,DEMOCRATIC CAUCUS,2011Q1,TRAVEL,03-21,"KISSINGER,JUSTIN A",01/19/11,01/19/11,TAXI/PARKING/TOLLS,2.50,FISCAL YEAR 2011,AP,Accounts payable,00122561,"KISSINGER,JUSTIN A"
,DEMOCRATIC CAUCUS,2011Q1,"RENT, COMMUNICATION, UTILITIES",03-18,HOLIDAY INN EXPRESS - CAMBRIDGE MD,01/21/11,01/21/11,TEMPORARY SPACE RENTAL,"1,155.00",FISCAL YEAR 2011,AP,Accounts payable,00121712,HOLIDAY INN EXPRESS - CAMBRIDGE MD
,DEMOCRATIC CAUCUS,2011Q1,PRINTING AND REPRODUCTION,01-25,"",01/03/11,01/03/11,PRINTING & REPRODUCTION,-175.00,FISCAL YEAR 2011,GL,General ledger,GLA0004337,""
,DEMOCRATIC CAUCUS,2011Q1,OTHER SERVICES,01-10,"BANJAC,SRDAN",01/03/11,01/03/11,LAUNDRY SERVICES,74.27,FISCAL YEAR 2011,AP,Accounts payable,00067591,"BANJAC,SRDAN"
,DEMOCRATIC CAUCUS,2011Q1,OTHER SERVICES,01-31,"BANJAC,SRDAN",01/24/11,01/24/11,LAUNDRY SERVICES,84.88,FISCAL YEAR 2011,AP,Accounts payable,00083052,"BANJAC,SRDAN"
,DEMOCRATIC CAUCUS,2011Q1,OTHER SERVICES,02-09,GREAT SCOTT MOVING INC,01/20/11,01/22/11,NON-TECHNOLOGY SERVICE CONTR,"1,560.00",FISCAL YEAR 2011,AP,Accounts payable,00089095,GREAT SCOTT MOVING INC
,DEMOCRATIC CAUCUS,2011Q1,OTHER SERVICES,02-17,"BANJAC,SRDAN",02/09/11,02/09/11,LAUNDRY SERVICES,63.66,FISCAL YEAR 2011,AP,Accounts payable,00094229,"BANJAC,SRDAN"
,DEMOCRATIC CAUCUS,2011Q1,OTHER SERVICES,03-01,"BANJAC,SRDAN",02/09/11,02/09/11,LAUNDRY SERVICES,53.05,FISCAL YEAR 2011,AP,Accounts payable,00102217,"BANJAC,SRDAN"
,DEMOCRATIC CAUCUS,2011Q1,OTHER SERVICES,03-01,"BANJAC,SRDAN",02/09/11,02/09/11,LAUNDRY SERVICES,53.05,FISCAL YEAR 2011,AP,Accounts payable,00102227,"BANJAC,SRDAN"
,DEMOCRATIC CAUCUS,2011Q1,OTHER SERVICES,03-16,CAPITOL VALET,03/02/11,03/02/11,LAUNDRY SERVICES,116.60,FISCAL YEAR 2011,AP,Accounts payable,00115514,CAPITOL VALET
,DEMOCRATIC CAUCUS,2011Q1,SUPPLIES AND MATERIALS,01-10,"RUBINO,SHELLEY M",01/04/11,01/04/11,FOOD & BEVERAGE,18.06,FISCAL YEAR 2011,AP,Accounts payable,00067586,"RUBINO,SHELLEY M"
,DEMOCRATIC CAUCUS,2011Q1,SUPPLIES AND MATERIALS,01-10,"RUBINO,SHELLEY M",01/04/11,01/04/11,FOOD & BEVERAGE,40.86,FISCAL YEAR 2011,AP,Accounts payable,00067588,"RUBINO,SHELLEY M"
,DEMOCRATIC CAUCUS,2011Q1,SUPPLIES AND MATERIALS,01-10,"SHEVLIN IV, GEORGE F",01/04/11,01/04/11,FOOD & BEVERAGE,238.83,FISCAL YEAR 2011,AP,Accounts payable,00067589,"SHEVLIN IV, GEORGE F"
,DEMOCRATIC CAUCUS,2011Q1,SUPPLIES AND MATERIALS,01-19,"JAWORSKI, KIMBERLY H",01/07/11,01/07/11,FOOD & BEVERAGE,122.18,FISCAL YEAR 2011,AP,Accounts payable,00073482,"JAWORSKI, KIMBERLY H"
,DEMOCRATIC CAUCUS,2011Q1,SUPPLIES AND MATERIALS,01-19,"MCGRANE, BILLIE",01/06/11,01/06/11,FOOD & BEVERAGE,21.77,FISCAL YEAR 2011,AP,Accounts payable,00073486,"MCGRANE, BILLIE"
,DEMOCRATIC CAUCUS,2011Q1,SUPPLIES AND MATERIALS,01-25,"",01/03/11,01/03/11,OFFICE SUPPLIES (OUTSIDE),-315.99,FISCAL YEAR 2011,GL,General ledger,GLA0004337,""
,DEMOCRATIC CAUCUS,2011Q1,SUPPLIES AND MATERIALS,01-31,"BANJAC,SRDAN",01/19/11,01/19/11,FOOD & BEVERAGE,219.43,FISCAL YEAR 2011,AP,Accounts payable,00083054,"BANJAC,SRDAN"
,DEMOCRATIC CAUCUS,2011Q1,SUPPLIES AND MATERIALS,01-31,"RUBINO,SHELLEY M",01/19/11,01/19/11,FOOD & BEVERAGE,47.92,FISCAL YEAR 2011,AP,Accounts payable,00083061,"RUBINO,SHELLEY M"
,DEMOCRATIC CAUCUS,2011Q1,SUPPLIES AND MATERIALS,01-31,"RUBINO,SHELLEY M",01/18/11,01/18/11,FOOD & BEVERAGE,118.96,FISCAL YEAR 2011,AP,Accounts payable,00083075,"RUBINO,SHELLEY M"
,DEMOCRATIC CAUCUS,2011Q1,SUPPLIES AND MATERIALS,01-31,"RUBINO,SHELLEY M",01/19/11,01/19/11,FOOD & BEVERAGE,23.97,FISCAL YEAR 2011,AP,Accounts payable,00083076,"RUBINO,SHELLEY M"
,DEMOCRATIC CAUCUS,2011Q1,SUPPLIES AND MATERIALS,01-31,"MCGRANE, BILLIE",01/24/11,01/24/11,FOOD & BEVERAGE,59.96,FISCAL YEAR 2011,AP,Accounts payable,00083078,"MCGRANE, BILLIE"
,DEMOCRATIC CAUCUS,2011Q1,SUPPLIES AND MATERIALS,01-31,"MCGRANE, BILLIE",01/12/11,01/12/11,FOOD & BEVERAGE,55.42,FISCAL YEAR 2011,AP,Accounts payable,00083079,"MCGRANE, BILLIE"
,DEMOCRATIC CAUCUS,2011Q1,SUPPLIES AND MATERIALS,01-31,"SHEVLIN IV, GEORGE F",01/18/11,01/18/11,FOOD & BEVERAGE,113.49,FISCAL YEAR 2011,AP,Accounts payable,00083081,"SHEVLIN IV, GEORGE F"
,DEMOCRATIC CAUCUS,2011Q1,SUPPLIES AND MATERIALS,01-31,"RUBINO,SHELLEY M",01/19/11,01/19/11,FOOD & BEVERAGE,715.00,FISCAL YEAR 2011,AP,Accounts payable,00083084,"RUBINO,SHELLEY M"
,DEMOCRATIC CAUCUS,2011Q1,SUPPLIES AND MATERIALS,01-31,"RUBINO,SHELLEY M",01/25/11,01/25/11,FOOD & BEVERAGE,"1,875.00",FISCAL YEAR 2011,AP,Accounts payable,00083087,"RUBINO,SHELLEY M"
,DEMOCRATIC CAUCUS,2011Q1,SUPPLIES AND MATERIALS,02-04,ARROWHEAD,12/31/10,12/31/10,BOTTLED WATER,134.89,FISCAL YEAR 2011,AP,Accounts payable,00086620,ARROWHEAD
,DEMOCRATIC CAUCUS,2011Q1,SUPPLIES AND MATERIALS,02-09,"RESENDEZ, MARVENE R",01/25/11,01/02/11,FOOD & BEVERAGE,14.58,FISCAL YEAR 2011,AP,Accounts payable,00089091,"RESENDEZ, MARVENE R"
,DEMOCRATIC CAUCUS,2011Q1,SUPPLIES AND MATERIALS,02-09,"RESENDEZ, MARVENE R",01/25/11,01/25/11,FOOD & BEVERAGE,29.16,FISCAL YEAR 2011,AP,Accounts payable,00089093,"RESENDEZ, MARVENE R"
,DEMOCRATIC CAUCUS,2011Q1,SUPPLIES AND MATERIALS,02-17,"SHEVLIN IV, GEORGE F",02/07/11,02/07/11,FOOD & BEVERAGE,210.12,FISCAL YEAR 2011,AP,Accounts payable,00094230,"SHEVLIN IV, GEORGE F"
,DEMOCRATIC CAUCUS,2011Q1,SUPPLIES AND MATERIALS,02-17,"RUBINO,SHELLEY M",02/08/11,02/08/11,FOOD & BEVERAGE,62.47,FISCAL YEAR 2011,AP,Accounts payable,00094231,"RUBINO,SHELLEY M"
,DEMOCRATIC CAUCUS,2011Q1,SUPPLIES AND MATERIALS,02-17,"RUBINO,SHELLEY M",02/08/11,02/08/11,FOOD & BEVERAGE,183.74,FISCAL YEAR 2011,AP,Accounts payable,00094232,"RUBINO,SHELLEY M"
,DEMOCRATIC CAUCUS,2011Q1,SUPPLIES AND MATERIALS,02-17,"RUBINO,SHELLEY M",01/15/11,01/15/11,FOOD & BEVERAGE,139.52,FISCAL YEAR 2011,AP,Accounts payable,00094233,"RUBINO,SHELLEY M"
,DEMOCRATIC CAUCUS,2011Q1,SUPPLIES AND MATERIALS,02-17,"RUBINO,SHELLEY M",02/10/11,02/10/11,FOOD & BEVERAGE,110.59,FISCAL YEAR 2011,AP,Accounts payable,00094240,"RUBINO,SHELLEY M"
,DEMOCRATIC CAUCUS,2011Q1,SUPPLIES AND MATERIALS,02-17,"RUBINO,SHELLEY M",02/11/11,02/11/11,FOOD & BEVERAGE,163.56,FISCAL YEAR 2011,AP,Accounts payable,00094241,"RUBINO,SHELLEY M"
,DEMOCRATIC CAUCUS,2011Q1,SUPPLIES AND MATERIALS,02-17,CHANTILLY DONUTS,02/11/11,02/11/11,FOOD & BEVERAGE,32.60,FISCAL YEAR 2011,AP,Accounts payable,00094287,CHANTILLY DONUTS
,DEMOCRATIC CAUCUS,2011Q1,SUPPLIES AND MATERIALS,02-17,CHANTILLY DONUTS,02/09/11,02/09/11,FOOD & BEVERAGE,109.20,FISCAL YEAR 2011,AP,Accounts payable,00094288,CHANTILLY DONUTS
,DEMOCRATIC CAUCUS,2011Q1,SUPPLIES AND MATERIALS,02-17,"RUBINO,SHELLEY M",01/16/11,01/16/11,FOOD & BEVERAGE,108.14,FISCAL YEAR 2011,AP,Accounts payable,00094289,"RUBINO,SHELLEY M"
,DEMOCRATIC CAUCUS,2011Q1,SUPPLIES AND MATERIALS,02-17,"RUBINO,SHELLEY M",01/15/11,01/15/11,FOOD & BEVERAGE,700.15,FISCAL YEAR 2011,AP,Accounts payable,00094290,"RUBINO,SHELLEY M"
,DEMOCRATIC CAUCUS,2011Q1,SUPPLIES AND MATERIALS,02-17,"RUBINO,SHELLEY M",02/10/11,02/10/11,FOOD & BEVERAGE,20.48,FISCAL YEAR 2011,AP,Accounts payable,00094291,"RUBINO,SHELLEY M"
,DEMOCRATIC CAUCUS,2011Q1,SUPPLIES AND MATERIALS,03-01,"RUBINO,SHELLEY M",02/14/11,02/14/11,FOOD & BEVERAGE,167.73,FISCAL YEAR 2011,AP,Accounts payable,00102219,"RUBINO,SHELLEY M"
,DEMOCRATIC CAUCUS,2011Q1,SUPPLIES AND MATERIALS,03-01,"RUBINO,SHELLEY M",02/14/11,02/14/11,FOOD & BEVERAGE,54.80,FISCAL YEAR 2011,AP,Accounts payable,00102222,"RUBINO,SHELLEY M"
,DEMOCRATIC CAUCUS,2011Q1,SUPPLIES AND MATERIALS,03-01,"RUBINO,SHELLEY M",02/15/11,02/15/11,FOOD & BEVERAGE,255.00,FISCAL YEAR 2011,AP,Accounts payable,00102225,"RUBINO,SHELLEY M"
,DEMOCRATIC CAUCUS,2011Q1,SUPPLIES AND MATERIALS,03-03,CHANTILLY DONUTS,02/15/11,02/15/11,FOOD & BEVERAGE,56.40,FISCAL YEAR 2011,AP,Accounts payable,00105529,CHANTILLY DONUTS
,DEMOCRATIC CAUCUS,2011Q1,SUPPLIES AND MATERIALS,03-08,CHANTILLY DONUTS,03/01/11,03/01/11,FOOD & BEVERAGE,56.40,FISCAL YEAR 2011,AP,Accounts payable,00109049,CHANTILLY DONUTS
,DEMOCRATIC CAUCUS,2011Q1,SUPPLIES AND MATERIALS,03-08,"SHEVLIN IV, GEORGE F",02/25/11,02/25/11,FOOD & BEVERAGE,113.49,FISCAL YEAR 2011,AP,Accounts payable,00109050,"SHEVLIN IV, GEORGE F"
,DEMOCRATIC CAUCUS,2011Q1,SUPPLIES AND MATERIALS,03-08,"RUBINO,SHELLEY M",02/28/11,02/28/11,FOOD & BEVERAGE,143.63,FISCAL YEAR 2011,AP,Accounts payable,00109052,"RUBINO,SHELLEY M"
,DEMOCRATIC CAUCUS,2011Q1,SUPPLIES AND MATERIALS,03-08,"RUBINO,SHELLEY M",02/28/11,02/28/11,FOOD & BEVERAGE,16.86,FISCAL YEAR 2011,AP,Accounts payable,00109053,"RUBINO,SHELLEY M"
,DEMOCRATIC CAUCUS,2011Q1,SUPPLIES AND MATERIALS,03-08,"RUBINO,SHELLEY M",03/01/11,03/01/11,FOOD & BEVERAGE,251.28,FISCAL YEAR 2011,AP,Accounts payable,00109054,"RUBINO,SHELLEY M"
,DEMOCRATIC CAUCUS,2011Q1,SUPPLIES AND MATERIALS,03-08,ARROWHEAD,01/31/11,01/31/11,BOTTLED WATER,16.00,FISCAL YEAR 2011,AP,Accounts payable,00109581,ARROWHEAD
,DEMOCRATIC CAUCUS,2011Q1,SUPPLIES AND MATERIALS,03-11,CAPITOL HOST,02/09/11,02/09/11,FOOD & BEVERAGE,28.80,FISCAL YEAR 2011,AP,Accounts payable,00112136,CAPITOL HOST
,DEMOCRATIC CAUCUS,2011Q1,SUPPLIES AND MATERIALS,03-11,"RUBINO,SHELLEY M",01/20/11,01/20/11,FOOD & BEVERAGE,"1,425.00",FISCAL YEAR 2011,AP,Accounts payable,00112137,"RUBINO,SHELLEY M"
,DEMOCRATIC CAUCUS,2011Q1,SUPPLIES AND MATERIALS,03-15,"RUBINO,SHELLEY M",03/09/11,03/09/11,FOOD & BEVERAGE,208.43,FISCAL YEAR 2011,AP,Accounts payable,00114093,"RUBINO,SHELLEY M"
,DEMOCRATIC CAUCUS,2011Q1,SUPPLIES AND MATERIALS,03-15,"RUBINO,SHELLEY M",03/08/11,03/08/11,FOOD & BEVERAGE,18.84,FISCAL YEAR 2011,AP,Accounts payable,00114094,"RUBINO,SHELLEY M"
,DEMOCRATIC CAUCUS,2011Q1,SUPPLIES AND MATERIALS,03-15,"RUBINO,SHELLEY M",03/08/11,03/08/11,FOOD & BEVERAGE,104.41,FISCAL YEAR 2011,AP,Accounts payable,00114096,"RUBINO,SHELLEY M"
,DEMOCRATIC CAUCUS,2011Q1,SUPPLIES AND MATERIALS,03-16,CHANTILLY DONUTS,03/09/11,03/09/11,FOOD & BEVERAGE,56.40,FISCAL YEAR 2011,AP,Accounts payable,00115513,CHANTILLY DONUTS
,DEMOCRATIC CAUCUS,2011Q1,SUPPLIES AND MATERIALS,03-21,CHANTILLY DONUTS,03/15/11,03/15/11,FOOD & BEVERAGE,56.40,FISCAL YEAR 2011,AP,Accounts payable,00122542,CHANTILLY DONUTS
,DEMOCRATIC CAUCUS,2011Q1,SUPPLIES AND MATERIALS,03-21,"RUBINO,SHELLEY M",03/15/11,03/15/11,FOOD & BEVERAGE,208.43,FISCAL YEAR 2011,AP,Accounts payable,00122543,"RUBINO,SHELLEY M"
,DEMOCRATIC CAUCUS,2011Q1,SUPPLIES AND MATERIALS,03-21,"RUBINO,SHELLEY M",03/14/11,03/14/11,FOOD & BEVERAGE,183.05,FISCAL YEAR 2011,AP,Accounts payable,00122544,"RUBINO,SHELLEY M"
,DEMOCRATIC CAUCUS,2011Q1,SUPPLIES AND MATERIALS,03-21,"RUBINO,SHELLEY M",03/14/11,03/14/11,FOOD & BEVERAGE,104.48,FISCAL YEAR 2011,AP,Accounts payable,00122545,"RUBINO,SHELLEY M"
,DEMOCRATIC CAUCUS,2011Q1,SUPPLIES AND MATERIALS,03-21,"RUBINO,SHELLEY M",03/14/11,03/14/11,FOOD & BEVERAGE,18.37,FISCAL YEAR 2011,AP,Accounts payable,00122546,"RUBINO,SHELLEY M"
,DEMOCRATIC CAUCUS,2011Q1,SUPPLIES AND MATERIALS,03-21,"RUBINO,SHELLEY M",03/15/11,03/15/11,FOOD & BEVERAGE,68.99,FISCAL YEAR 2011,AP,Accounts payable,00122548,"RUBINO,SHELLEY M"
,DEMOCRATIC CAUCUS,2011Q1,SUPPLIES AND MATERIALS,03-21,"DAGADAKIS,STAMATIOS",03/14/11,04/13/11,PUBLICATIONS/REFERENCE MAT'L,99.00,FISCAL YEAR 2011,AP,Accounts payable,00122550,"DAGADAKIS,STAMATIOS"
,DEMOCRATIC CAUCUS,2011Q1,SUPPLIES AND MATERIALS,03-24,ARROWHEAD,02/28/11,02/28/11,BOTTLED WATER,137.90,FISCAL YEAR 2011,AP,Accounts payable,00126294,ARROWHEAD
,DEMOCRATIC CAUCUS,2011Q1,SUPPLIES AND MATERIALS,03-31,CHANTILLY DONUTS,03/17/11,03/17/11,FOOD & BEVERAGE,19.55,FISCAL YEAR 2011,AP,Accounts payable,00132216,CHANTILLY DONUTS
,DEMOCRATIC CAUCUS,2011Q1,SUPPLIES AND MATERIALS,03-31,"RUBINO,SHELLEY M",03/11/11,03/11/11,FOOD & BEVERAGE,15.95,FISCAL YEAR 2011,AP,Accounts payable,00132217,"RUBINO,SHELLEY M"
,REPUBLICAN CONFERENCE,2011Q1,PERSONNEL COMPENSATION,"","BUCHANAN, MICHAEL D",01/03/11,03/31/11,CHIEF OF STAFF (STATUTORY),"41,465.83",FISCAL YEAR 2011,"","","","BUCHANAN, MICHAEL D"
,REPUBLICAN CONFERENCE,2011Q1,PERSONNEL COMPENSATION,"","FLAHERTY,SHANNON",01/10/11,03/31/11,COMMUNICATIONS DIR (STATUTORY),"31,500.01",FISCAL YEAR 2011,"","","","FLAHERTY,SHANNON"
,REPUBLICAN CONFERENCE,2011Q1,PERSONNEL COMPENSATION,"","PITCOCK, JOSH",01/01/11,01/02/11,DEP CHIEF OF STAFF/GEN COUNSEL,861.11,FISCAL YEAR 2011,"","","","PITCOCK, JOSH"
,REPUBLICAN CONFERENCE,2011Q1,PERSONNEL COMPENSATION,"","SHORT,MARC T",01/01/11,01/02/11,CHIEF OF STAFF (STATUTORY),958.33,FISCAL YEAR 2011,"","","","SHORT,MARC T"
,REPUBLICAN CONFERENCE,2011Q1,PERSONNEL COMPENSATION,"","BROWN, CHELSEA E",01/03/11,03/31/11,DEPUTY DIRECTOR OF MEMBER SVCS,"12,211.10",FISCAL YEAR 2011,"","","","BROWN, CHELSEA E"
,REPUBLICAN CONFERENCE,2011Q1,PERSONNEL COMPENSATION,"","CASTILLO, ANDELIZ N",01/01/11,01/02/11,DIR OUTRCH COMMS/DEP PRESS SEC,338.89,FISCAL YEAR 2011,"","","","CASTILLO, ANDELIZ N"
,REPUBLICAN CONFERENCE,2011Q1,PERSONNEL COMPENSATION,"","COLLIGAN,DYLAN H",01/18/11,03/31/11,STAFF ASSISTANT,"6,083.33",FISCAL YEAR 2011,"","","","COLLIGAN,DYLAN H"
,REPUBLICAN CONFERENCE,2011Q1,PERSONNEL COMPENSATION,"","DEUTSCH,JEREMY",01/01/11,01/02/11,SHARED EMPLOYEE,416.67,FISCAL YEAR 2011,"","","","DEUTSCH,JEREMY"
,REPUBLICAN CONFERENCE,2011Q1,PERSONNEL COMPENSATION,"","GRAY,JOHN W",01/01/11,01/02/11,POLICY ADVISOR,277.78,FISCAL YEAR 2011,"","","","GRAY,JOHN W"
,REPUBLICAN CONFERENCE,2011Q1,PERSONNEL COMPENSATION,"","HEPBURN, ADAM J",01/01/11,01/02/11,POLICY ADVISOR,266.67,FISCAL YEAR 2011,"","","","HEPBURN, ADAM J"
,REPUBLICAN CONFERENCE,2011Q1,PERSONNEL COMPENSATION,"","HILER,JONATHAN D",01/01/11,03/31/11,POLICY ADVISOR,"12,000.00",FISCAL YEAR 2011,"","","","HILER,JONATHAN D"
,REPUBLICAN CONFERENCE,2011Q1,PERSONNEL COMPENSATION,"","HOWARD,BENJAMIN R",01/01/11,01/02/11,STAFF ASSISTANT,172.22,FISCAL YEAR 2011,"","","","HOWARD,BENJAMIN R"
,REPUBLICAN CONFERENCE,2011Q1,PERSONNEL COMPENSATION,"","HUGHES, KAITLYNN",01/01/11,01/25/11,PRESS ASSISTANT,"2,077.78",FISCAL YEAR 2011,"","","","HUGHES, KAITLYNN"
,REPUBLICAN CONFERENCE,2011Q1,PERSONNEL COMPENSATION,"","KOENIG,ANDREW D",01/01/11,02/28/11,POLICY ADVISOR,"9,972.23",FISCAL YEAR 2011,"","","","KOENIG,ANDREW D"
,REPUBLICAN CONFERENCE,2011Q1,PERSONNEL COMPENSATION,"","KOENIG,ANDREW D",03/01/11,03/31/11,DEPUTY POLICY DIRECTOR,"6,250.00",FISCAL YEAR 2011,"","","","KOENIG,ANDREW D"
,REPUBLICAN CONFERENCE,2011Q1,PERSONNEL COMPENSATION,"","KOLB,COURTNEY L",01/01/11,01/02/11,DEPUTY PRESS SECRETARY,261.11,FISCAL YEAR 2011,"","","","KOLB,COURTNEY L"
,REPUBLICAN CONFERENCE,2011Q1,PERSONNEL COMPENSATION,"","MACLEAN, MARY G",01/01/11,01/02/11,DEPUTY COMMUNICATIONS DIRECTOR,444.44,FISCAL YEAR 2011,"","","","MACLEAN, MARY G"
,REPUBLICAN CONFERENCE,2011Q1,PERSONNEL COMPENSATION,"","MAKIN, SARAH E",01/01/11,03/31/11,POLICY ADV & COALITIONS LIAISO,"14,250.00",FISCAL YEAR 2011,"","","","MAKIN, SARAH E"
,REPUBLICAN CONFERENCE,2011Q1,PERSONNEL COMPENSATION,"","MCMANUS,BRIAN F",01/01/11,01/31/11,POLICY ADV & COALITIONS LIAISO,"6,250.00",FISCAL YEAR 2011,"","","","MCMANUS,BRIAN F"
,REPUBLICAN CONFERENCE,2011Q1,PERSONNEL COMPENSATION,"","MEEKS,DARIS",01/03/11,03/31/11,POLICY DIRECTOR,"24,444.44",FISCAL YEAR 2011,"","","","MEEKS,DARIS"
,REPUBLICAN CONFERENCE,2011Q1,PERSONNEL COMPENSATION,"","PICKETT,EMILY H",01/01/11,02/04/11,PRESS ASSISTANT,"2,827.77",FISCAL YEAR 2011,"","","","PICKETT,EMILY H"
,REPUBLICAN CONFERENCE,2011Q1,PERSONNEL COMPENSATION,"","PITCOCK, JOSH",01/03/11,03/31/11,GENERAL COUNSEL,"29,333.33",FISCAL YEAR 2011,"","","","PITCOCK, JOSH"
,REPUBLICAN CONFERENCE,2011Q1,PERSONNEL COMPENSATION,"","POPP, DAVID M",02/05/11,03/31/11,DEPUTY COMMUNICATIONS DIRECTOR,"10,111.11",FISCAL YEAR 2011,"","","","POPP, DAVID M"
,REPUBLICAN CONFERENCE,2011Q1,PERSONNEL COMPENSATION,"","PROPP,ELIZABETH R",02/08/11,03/31/11,DEPUTY PRESS SECRETARY,"6,183.33",FISCAL YEAR 2011,"","","","PROPP,ELIZABETH R"
,REPUBLICAN CONFERENCE,2011Q1,PERSONNEL COMPENSATION,"","PUSKAR,JOHN E",01/10/11,03/31/11,STAFF ASSISTANT,"7,166.62",FISCAL YEAR 2011,"","","","PUSKAR,JOHN E"
,REPUBLICAN CONFERENCE,2011Q1,PERSONNEL COMPENSATION,"","QUALTERE,THOMAS A",01/30/11,03/31/11,SPEECHWRITER,"7,116.67",FISCAL YEAR 2011,"","","","QUALTERE,THOMAS A"
,REPUBLICAN CONFERENCE,2011Q1,PERSONNEL COMPENSATION,"","SEIDEL, EMILY R",01/01/11,01/02/11,OPS DIR & ASST TO CHF OF STAFF,522.22,FISCAL YEAR 2011,"","","","SEIDEL, EMILY R"
,REPUBLICAN CONFERENCE,2011Q1,PERSONNEL COMPENSATION,"","SEIDEL, EMILY R",01/03/11,03/31/11,DEPUTY CHIEF OF STAFF,"26,888.90",FISCAL YEAR 2011,"","","","SEIDEL, EMILY R"
,REPUBLICAN CONFERENCE,2011Q1,PERSONNEL COMPENSATION,"","SEMMEL,RACHEL K",01/01/11,01/02/11,TV/RADIO/BOOKER,222.22,FISCAL YEAR 2011,"","","","SEMMEL,RACHEL K"
,REPUBLICAN CONFERENCE,2011Q1,PERSONNEL COMPENSATION,"","SMITH JR, WILLIAM A",01/01/11,01/02/11,SHARED EMPLOYEE,111.11,FISCAL YEAR 2011,"","","","SMITH JR, WILLIAM A"
,REPUBLICAN CONFERENCE,2011Q1,PERSONNEL COMPENSATION,"","SMITH,JA'RON K",01/01/11,01/17/11,STAFF ASSISTANT,"1,463.89",FISCAL YEAR 2011,"","","","SMITH,JA'RON K"
,REPUBLICAN CONFERENCE,2011Q1,PERSONNEL COMPENSATION,"","STONE, JOHN E",01/01/11,01/02/11,SHARED EMPLOYEE,305.56,FISCAL YEAR 2011,"","","","STONE, JOHN E"
,REPUBLICAN CONFERENCE,2011Q1,PERSONNEL COMPENSATION,"","STRAND, KATHRYN M",01/01/11,03/31/11,DIR OF MEMBER SERVICES,"34,777.79",FISCAL YEAR 2011,"","","","STRAND, KATHRYN M"
,REPUBLICAN CONFERENCE,2011Q1,PERSONNEL COMPENSATION,"","SUTTON,CLAY",02/01/11,03/31/11,PRESS ASSISTANT,"3,250.00",FISCAL YEAR 2011,"","","","SUTTON,CLAY"
,REPUBLICAN CONFERENCE,2011Q1,PERSONNEL COMPENSATION,"","ZIELSKE,RYAN O",01/01/11,01/02/11,INTERN,66.67,FISCAL YEAR 2011,"","","","ZIELSKE,RYAN O"
,REPUBLICAN CONFERENCE,2011Q1,TRAVEL,01-18,"MCMANUS,BRIAN F",01/05/11,01/12/11,TAXI/PARKING/TOLLS,22.00,FISCAL YEAR 2011,AP,Accounts payable,00072604,"MCMANUS,BRIAN F"
,REPUBLICAN CONFERENCE,2011Q1,TRAVEL,02-02,"MCMANUS,BRIAN F",01/19/11,01/19/11,TAXI/PARKING/TOLLS,16.00,FISCAL YEAR 2011,AP,Accounts payable,00083546,"MCMANUS,BRIAN F"
,REPUBLICAN CONFERENCE,2011Q1,TRAVEL,02-02,"MAKIN, SARAH E",01/19/11,01/19/11,TAXI/PARKING/TOLLS,17.00,FISCAL YEAR 2011,AP,Accounts payable,00083547,"MAKIN, SARAH E"
,REPUBLICAN CONFERENCE,2011Q1,TRAVEL,02-07,"MCMANUS,BRIAN F",01/26/11,01/26/11,TAXI/PARKING/TOLLS,17.00,FISCAL YEAR 2011,AP,Accounts payable,00087732,"MCMANUS,BRIAN F"
,REPUBLICAN CONFERENCE,2011Q1,TRAVEL,02-22,"MAKIN, SARAH E",02/09/11,02/09/11,TAXI/PARKING/TOLLS,19.00,FISCAL YEAR 2011,AP,Accounts payable,00100177,"MAKIN, SARAH E"
,REPUBLICAN CONFERENCE,2011Q1,TRAVEL,03-16,"MAKIN, SARAH E",03/02/11,03/02/11,TAXI/PARKING/TOLLS,10.00,FISCAL YEAR 2011,AP,Accounts payable,00117354,"MAKIN, SARAH E"
,REPUBLICAN CONFERENCE,2011Q1,"RENT, COMMUNICATION, UTILITIES",02-09,"COLLIGAN, DYLAN H",02/01/11,02/01/11,POSTAGE / COURIER / BOX RENTAL,66.60,FISCAL YEAR 2011,AP,Accounts payable,00089089,"COLLIGAN, DYLAN H"
,REPUBLICAN CONFERENCE,2011Q1,"RENT, COMMUNICATION, UTILITIES",02-16,INMOTION IMAGERY,02/04/11,02/04/11,RECORDING (OUTSIDE),"1,930.00",FISCAL YEAR 2011,AP,Accounts payable,00093925,INMOTION IMAGERY
,REPUBLICAN CONFERENCE,2011Q1,SUPPLIES AND MATERIALS,01-13,CAPITOL HOST,12/08/10,12/08/10,FOOD & BEVERAGE,"6,602.82",FISCAL YEAR 2011,AP,Accounts payable,00070235,CAPITOL HOST
,REPUBLICAN CONFERENCE,2011Q1,SUPPLIES AND MATERIALS,01-13,CAPITOL HOST,12/15/10,12/15/10,FOOD & BEVERAGE,209.99,FISCAL YEAR 2011,AP,Accounts payable,00070237,CAPITOL HOST
,REPUBLICAN CONFERENCE,2011Q1,SUPPLIES AND MATERIALS,01-13,CITIBANK GOV CARD SERVICE,11/06/10,12/14/10,PUBLICATIONS/REFERENCE MAT'L,51.85,FISCAL YEAR 2011,AP,Accounts payable,00070249,CITIBANK GOV CARD SERVICE
,REPUBLICAN CONFERENCE,2011Q1,SUPPLIES AND MATERIALS,01-13,CITIBANK GOV CARD SERVICE,11/15/10,12/21/10,FOOD & BEVERAGE,"3,060.46",FISCAL YEAR 2011,AP,Accounts payable,00070250,CITIBANK GOV CARD SERVICE
,REPUBLICAN CONFERENCE,2011Q1,SUPPLIES AND MATERIALS,01-14,"STRAND, KATHRYN M",01/05/11,01/05/11,BOTTLED WATER,30.69,FISCAL YEAR 2011,AP,Accounts payable,00071154,"STRAND, KATHRYN M"
,REPUBLICAN CONFERENCE,2011Q1,SUPPLIES AND MATERIALS,01-18,"BUCHANAN, MICHAEL D",01/12/11,01/12/11,FOOD & BEVERAGE,135.89,FISCAL YEAR 2011,AP,Accounts payable,00072605,"BUCHANAN, MICHAEL D"
,REPUBLICAN CONFERENCE,2011Q1,SUPPLIES AND MATERIALS,01-18,"SEIDEL, EMILY R",01/11/11,01/11/11,FOOD & BEVERAGE,111.36,FISCAL YEAR 2011,AP,Accounts payable,00072609,"SEIDEL, EMILY R"
,REPUBLICAN CONFERENCE,2011Q1,SUPPLIES AND MATERIALS,02-02,CAPITOL HOST,01/04/11,01/04/11,FOOD & BEVERAGE,"7,869.58",FISCAL YEAR 2011,AP,Accounts payable,00083537,CAPITOL HOST
,REPUBLICAN CONFERENCE,2011Q1,SUPPLIES AND MATERIALS,02-02,"SEIDEL, EMILY R",01/21/11,01/21/11,FOOD & BEVERAGE,182.60,FISCAL YEAR 2011,AP,Accounts payable,00083538,"SEIDEL, EMILY R"
,REPUBLICAN CONFERENCE,2011Q1,SUPPLIES AND MATERIALS,02-02,"SEIDEL, EMILY R",01/24/11,01/24/11,HABITATION EXPENSE,400.62,FISCAL YEAR 2011,AP,Accounts payable,00083539,"SEIDEL, EMILY R"
,REPUBLICAN CONFERENCE,2011Q1,SUPPLIES AND MATERIALS,02-02,"SEIDEL, EMILY R",01/24/11,01/24/11,FOOD & BEVERAGE,119.72,FISCAL YEAR 2011,AP,Accounts payable,00083540,"SEIDEL, EMILY R"
,REPUBLICAN CONFERENCE,2011Q1,SUPPLIES AND MATERIALS,02-02,CHANTILLY DONUTS,01/25/11,01/25/11,FOOD & BEVERAGE,159.40,FISCAL YEAR 2011,AP,Accounts payable,00083542,CHANTILLY DONUTS
,REPUBLICAN CONFERENCE,2011Q1,SUPPLIES AND MATERIALS,02-02,CHANTILLY DONUTS,01/12/11,01/12/11,FOOD & BEVERAGE,126.80,FISCAL YEAR 2011,AP,Accounts payable,00083543,CHANTILLY DONUTS
,REPUBLICAN CONFERENCE,2011Q1,SUPPLIES AND MATERIALS,02-02,"SEIDEL, EMILY R",01/18/11,01/18/11,FOOD & BEVERAGE,131.38,FISCAL YEAR 2011,AP,Accounts payable,00083544,"SEIDEL, EMILY R"
,REPUBLICAN CONFERENCE,2011Q1,SUPPLIES AND MATERIALS,02-02,CHANTILLY DONUTS,01/19/11,01/19/11,PUBLICATIONS/REFERENCE MAT'L,159.40,FISCAL YEAR 2011,AP,Accounts payable,00083545,CHANTILLY DONUTS
,REPUBLICAN CONFERENCE,2011Q1,SUPPLIES AND MATERIALS,02-04,ARROWHEAD,12/31/10,12/31/10,BOTTLED WATER,125.87,FISCAL YEAR 2011,AP,Accounts payable,00086620,ARROWHEAD
,REPUBLICAN CONFERENCE,2011Q1,SUPPLIES AND MATERIALS,02-07,CAPITOL HOST,01/12/11,01/12/11,FOOD & BEVERAGE,315.00,FISCAL YEAR 2011,AP,Accounts payable,00087730,CAPITOL HOST
,REPUBLICAN CONFERENCE,2011Q1,SUPPLIES AND MATERIALS,02-11,CAPITOL HOST,01/19/11,01/19/11,FOOD & BEVERAGE,315.00,FISCAL YEAR 2011,AP,Accounts payable,00091317,CAPITOL HOST
,REPUBLICAN CONFERENCE,2011Q1,SUPPLIES AND MATERIALS,02-18,CAPITOL HOST,01/25/11,01/25/11,FOOD & BEVERAGE,315.00,FISCAL YEAR 2011,AP,Accounts payable,00099110,CAPITOL HOST
,REPUBLICAN CONFERENCE,2011Q1,SUPPLIES AND MATERIALS,02-22,"SEIDEL, EMILY R",02/08/11,02/08/11,FOOD & BEVERAGE,331.00,FISCAL YEAR 2011,AP,Accounts payable,00100170,"SEIDEL, EMILY R"
,REPUBLICAN CONFERENCE,2011Q1,SUPPLIES AND MATERIALS,02-22,"SEIDEL, EMILY R",02/10/11,02/10/11,FOOD & BEVERAGE,"3,040.93",FISCAL YEAR 2011,AP,Accounts payable,00100171,"SEIDEL, EMILY R"
,REPUBLICAN CONFERENCE,2011Q1,SUPPLIES AND MATERIALS,02-22,"SEIDEL, EMILY R",02/11/11,02/11/11,FOOD & BEVERAGE,204.60,FISCAL YEAR 2011,AP,Accounts payable,00100172,"SEIDEL, EMILY R"
,REPUBLICAN CONFERENCE,2011Q1,SUPPLIES AND MATERIALS,02-22,"SEIDEL, EMILY R",02/08/11,02/08/11,FOOD & BEVERAGE,125.14,FISCAL YEAR 2011,AP,Accounts payable,00100175,"SEIDEL, EMILY R"
,REPUBLICAN CONFERENCE,2011Q1,SUPPLIES AND MATERIALS,02-22,CHANTILLY DONUTS,02/09/11,02/09/11,FOOD & BEVERAGE,159.40,FISCAL YEAR 2011,AP,Accounts payable,00100176,CHANTILLY DONUTS
,REPUBLICAN CONFERENCE,2011Q1,SUPPLIES AND MATERIALS,02-22,"SEIDEL, EMILY R",02/10/11,02/10/11,FOOD & BEVERAGE,191.35,FISCAL YEAR 2011,AP,Accounts payable,00100179,"SEIDEL, EMILY R"
,REPUBLICAN CONFERENCE,2011Q1,SUPPLIES AND MATERIALS,03-02,CITIBANK GOV CARD SERVICE,01/06/11,01/06/11,FOOD & BEVERAGE,198.00,FISCAL YEAR 2011,AP,Accounts payable,00104796,CITIBANK GOV CARD SERVICE
,REPUBLICAN CONFERENCE,2011Q1,SUPPLIES AND MATERIALS,03-02,"SEIDEL, EMILY R",02/17/11,02/17/11,FOOD & BEVERAGE,8.09,FISCAL YEAR 2011,AP,Accounts payable,00104799,"SEIDEL, EMILY R"
,REPUBLICAN CONFERENCE,2011Q1,SUPPLIES AND MATERIALS,03-02,"SEIDEL, EMILY R",02/18/11,02/18/11,FOOD & BEVERAGE,177.00,FISCAL YEAR 2011,AP,Accounts payable,00104806,"SEIDEL, EMILY R"
